{"text_format":"1","workbook":"xlsx","n_sheets":23,"sheets":["-38","-42","-46","-50","-55","-60","-66","-73","-81","+81","-90","+90","-40","-44","-48","-52","-57","-63","-70","+70","-78","+78","Parameters"],"not_rendered":{"charts":0,"images":2,"macros":1,"external_links":1,"defined_names":66,"comments":0,"pivot_tables":0},"unopened":[],"bounds":{"document_bytes":16777216,"sheet_cells":100000,"rows_first":2000,"rows_last":500,"rows_between":2000,"halvings":0,"cell_chars":16384,"cell_head_chars":4096},"cells_cut":0,"cells_raw":0,"read":"whole","date_system":"1900"}

{"sheet":"-38","index":0,"n_rows":9,"n_cols":34,"rows_kept":9,"cut":false,"hidden":false,"merged":[]}
[null,null,null,null,null,null,null,null,null,"CADETES",{"$f":"TODAY()","v":"2018-02-14"}]
[null,null,null,null,null,null,null,null,null,"-38",null,null,"FPJ","Lisboa","Castelo Branco","Coimbra","Setúbal","Coimbra","V. Castelo","I.Terceira","Santarém","I.Terceira","Madeira","Lisboa","Setúbal","I.Terceira","Coimbra","LISBOA","MADEIRA","C.BRANCO","ALGARVE","GUARDA","SANTARÉM","AÇORES"]
[null,null,null,null,null,null,null,null,null,null,null,null,"2017-02-11","2017-04-01","2017-04-22","2017-04-29","2017-05-13","2017-06-17","2017-06-17","2017-06-25","2017-07-02","2017-10-21","2017-10-21","2017-11-11","2017-11-18","2017-11-18","2017-12-16","2018-01-21","2018-01-27","2018-01-27","2018-01-27","2018-01-27","2018-01-28","2018-02-03"]
["Género","Categoria",null,null,"LF",null,"NOME","Ano de Nascimento","Associação","CLUBE","Somatório de pontos","Número de provas","Camp.Nac. Cadetes","Open Cadetes","Open Cadetes \"Mestre António Morais\"","OPEN INT. CIDADE BARCELOS","Taça Cidade do Montijo","V Taça António Lopes Aleixo","III Open Int. Eurocidade Valença Tui","Torneio 41 Ano I.Terceira","V Open Int. Cadetes","Torneio Outono","Open Cadetes","Open Cadetes","Torneio Aniversário JC Pragal","Torneio AJIT","Open Cadetes","Zonal de Cadetes","Zonal de Cadetes","Zonal de Cadetes","Zonal de Cadetes","Zonal de Cadetes","Zonal de Cadetes","Zonal de Cadetes"]
[null,null,null,null,null,null,null,null,null,null,null,null,{"$f":"COUNT(M6:M546)","v":3},0,0,0,0,0,0,0,0,0,0,0,0,0,0,0,0,0,0,0,1,0]
["Masculino","-38",1,"1º CLASSIFICADO 2017",119490,{"$f":"COUNTIF(E:E,E6)","v":1},"Guilherme Gaspar",2002,"Coimbra","Associação Académica de Coimbra",{"$f":"SUM(M6:AAB6)","v":6},{"$f":"COUNT(M6:AAB6)","v":1},6]
["Masculino","-38",2,"2º CLASSIFICADO 2017",130632,{"$f":"COUNTIF(E:E,E7)","v":1},"Francisco Santos",2002,"Coimbra","Montanha Clube",{"$f":"SUM(M7:AAB7)","v":4},{"$f":"COUNT(M7:AAB7)","v":1},4]
["Masculino","-38",3,"CENTRO",126182,{"$f":"COUNTIF(E:E,E8)","v":1},"Guilherme Ramalho",2003,"Santarém","Associação de Marinheiros de Ferreira do Zêzere",{"$f":"SUM(M8:AAB8)","v":1},{"$f":"COUNT(M8:AAB8)","v":1},null,null,null,null,null,null,null,null,null,null,null,null,null,null,null,null,null,null,null,null,1]
["Masculino","-38",4,"EFECTIVO",151119,{"$f":"COUNTIF(E:E,E9)","v":1},"Ricardo Marques",2002,"Lisboa","Sport Lisboa e Benfica",1,1,1]

{"sheet":"-42","index":1,"n_rows":24,"n_cols":34,"rows_kept":24,"cut":false,"hidden":false,"merged":[]}
[null,null,null,null,null,null,null,null,null,"CADETES",{"$f":"TODAY()","v":"2018-02-14"}]
[null,null,null,null,null,null,null,null,null,"-42",null,null,"FPJ","Lisboa","Castelo Branco","Coimbra","Setúbal","Coimbra","V. Castelo","I.Terceira","Santarém","I.Terceira","Madeira","Lisboa","Setúbal","I.Terceira","Coimbra","LISBOA","MADEIRA","C.BRANCO","ALGARVE","GUARDA","SANTARÉM","AÇORES"]
[null,null,null,null,null,null,null,null,null,null,null,null,"2017-02-11","2017-04-01","2017-04-22","2017-04-29","2017-05-13","2017-06-17","2017-06-17","2017-06-25","2017-07-02","2017-10-21","2017-10-21","2017-11-11","2017-11-18","2017-11-18","2017-12-16","2018-01-21","2018-01-27","2018-01-27","2018-01-27","2018-01-27","2018-01-28","2018-02-03"]
["Género","Categoria",null,null,"LF",null,"NOME","Ano de Nascimento","Associação","CLUBE","Somatório de pontos","Número de provas","Camp.Nac. Cadetes","Open Cadetes","Open Cadetes \"Mestre António Morais\"","OPEN INT. CIDADE BARCELOS","Taça Cidade do Montijo","V Taça António Lopes Aleixo","III Open Int. Eurocidade Valença Tui","Torneio 41 Ano I.Terceira","V Open Int. Cadetes","Torneio Outono","Open Cadetes","Open Cadetes","Torneio Aniversário JC Pragal","Torneio AJIT","Open Cadetes","Zonal de Cadetes","Zonal de Cadetes","Zonal de Cadetes","Zonal de Cadetes","Zonal de Cadetes","Zonal de Cadetes","Zonal de Cadetes"]
[null,null,null,null,null,null,null,null,null,null,null,null,{"$f":"COUNT(M6:M566)","v":5},3,3,2,0,2,0,1,0,0,0,2,3,0,7,4,0,0,0,2,1,0]
["Masculino","-42",1,"1º CLASSIFICADO 2017",115084,{"$f":"COUNTIF(E:E,E6)","v":1},"Guilherme Lopes",2002,"Santarém","Sporting Clube de Tomar",{"$f":"SUM(M6:AAB6)","v":10},{"$f":"COUNT(M6:AAB6)","v":1},10]
["Masculino","-42",2,"2º CLASSIFICADO 2017",120184,1,"José Bentes",2002,"Lisboa","Universidade Lusofona de Humanidades de Tecnologias",13,3,6,6,1]
["Masculino","-42",3,"LISBOA",123894,1,"Pedro Horta",2003,"Lisboa","Universidade Lusofona de Humanidades de Tecnologias",7,1,null,null,null,null,null,null,null,null,null,null,null,null,null,null,null,7]
["Masculino","-42",4,"NORTE",137024,1,"Ivo Santos",2003,"Porto","Associação Desportiva Judo Force",7,2,null,null,null,null,null,null,null,null,null,null,null,1,null,null,null,null,null,null,null,6]
["Masculino","-42",5,"CENTRO",130632,1,"Francisco Santos",2002,"Coimbra","Montanha Clube",20,5,null,null,4,2,null,6,null,null,null,null,null,null,null,null,7,null,null,null,null,null,1]
["Masculino","-42",6,"EFECTIVO",125025,1,"Nicolae Panaite",2002,"Algarve","Judo Clube de Lagos",14,3,null,null,null,null,null,null,null,null,null,null,null,6,4,null,4]
["Masculino","-42",7,"EFECTIVO",125723,1,"David Costa",2003,"Braga","Associação Desportiva e Cultural Manhente",11,1,null,null,null,null,null,null,null,null,null,null,null,null,null,null,11]
["Masculino","-42",8,"EFECTIVO",131226,1,"António Santos",2003,"Lisboa","Ginásio Clube Português",11,2,null,null,null,null,null,null,null,null,null,null,null,null,6,null,null,5]
["Masculino","-42",9,"EFECTIVO",119490,1,"Guilherme Gaspar",2002,"Coimbra","Associação Académica de Coimbra",10,2,null,4,null,6]
["Masculino","-42",10,"EFECTIVO",137761,1,"Nuno Soares",2002,"I. Terceira","Judo Clube São Carlos",5,2,4,null,null,null,null,null,null,1]
["Masculino","-42",11,"EFECTIVO",148517,1,"O'Neil Melo",2002,"Lisboa","Academia de Judo da Amadora",5,4,2,1,1,null,null,1]
["Masculino","-42",12,"EFECTIVO",127353,1,"Duarte Martins",2003,"Braga","Casa do Povo de Ronfe",3,1,null,null,null,null,null,null,null,null,null,null,null,null,null,null,3]
["Masculino","-42",13,"EFECTIVO",122649,1,"José Neves",2003,"Lisboa","Associação Humanitária de Bombeiros dos Estoris",3,1,null,null,null,null,null,null,null,null,null,null,null,null,null,null,null,3]
["Masculino","-42",14,"EFECTIVO",135961,1,"João Martins",2003,"Coimbra","Associação Recreativa de São Miguel",2,1,null,null,null,null,null,null,null,null,null,null,null,null,null,null,2]
["Masculino","-42",15,"EFECTIVO",122597,1,"António Neto",2003,"Lisboa","Colégio Marista de Carcavelos",2,2,null,null,null,null,null,null,null,null,null,null,null,null,1,null,null,1]
["Masculino","-42",16,"EFECTIVO",118563,1,"Pedro Alves",2002,"C.Branco","Escola de Judo Ana Hormigo",1,1,1]
["Masculino","-42",17,"EFECTIVO",147174,1,"Igor Fouto",2003,"Lisboa","Academia de Judo da Amadora",1,1,null,null,null,null,null,null,null,null,null,null,null,null,null,null,1]
["Masculino","-42",18,"EFECTIVO",123207,1,"Rodrigo Rodrigues",2003,"Coimbra","Associação Recreativa de São Miguel",1,1,null,null,null,null,null,null,null,null,null,null,null,null,null,null,1]
["Masculino","-42",19,"EFECTIVO",140760,1,"Tomás Rodrigues",2003,"V. Castelo","Centro Social e Paroquial de Alvarães",1,1,null,null,null,null,null,null,null,null,null,null,null,null,null,null,null,null,null,null,null,1]

{"sheet":"-46","index":2,"n_rows":50,"n_cols":34,"rows_kept":50,"cut":false,"hidden":false,"merged":[]}
[null,null,null,null,null,null,null,null,null,"CADETES",{"$f":"TODAY()","v":"2018-02-14"}]
[null,null,null,null,null,null,null,null,null,"-46",null,null,"FPJ","Lisboa","Castelo Branco","Coimbra","Setúbal","Coimbra","V. Castelo","I.Terceira","Santarém","I.Terceira","Madeira","Lisboa","Setúbal","I.Terceira","Coimbra","LISBOA","MADEIRA","C.BRANCO","ALGARVE","GUARDA","SANTARÉM","AÇORES"]
[null,null,null,null,null,null,null,null,null,null,null,null,"2017-02-11","2017-04-01","2017-04-22","2017-04-29","2017-05-13","2017-06-17","2017-06-17","2017-06-25","2017-07-02","2017-10-21","2017-10-21","2017-11-11","2017-11-18","2017-11-18","2017-12-16","2018-01-21","2018-01-27","2018-01-27","2018-01-27","2018-01-27","2018-01-28","2018-02-03"]
["Género","Categoria",null,null,"LF",null,"NOME","Ano de Nascimento","Associação","CLUBE","Somatório de pontos","Número de provas","Camp.Nac. Cadetes","Open Cadetes","Open Cadetes \"Mestre António Morais\"","OPEN INT. CIDADE BARCELOS","Taça Cidade do Montijo","V Taça António Lopes Aleixo","III Open Int. Eurocidade Valença Tui","Torneio 41 Ano I.Terceira","V Open Int. Cadetes","Torneio Outono","Open Cadetes","Open Cadetes","Torneio Aniversário JC Pragal","Torneio AJIT","Open Cadetes","Zonal de Cadetes","Zonal de Cadetes","Zonal de Cadetes","Zonal de Cadetes","Zonal de Cadetes","Zonal de Cadetes","Zonal de Cadetes"]
[null,null,null,null,null,null,null,null,null,null,null,null,{"$f":"COUNT(M6:M549)","v":11},5,2,0,2,2,0,0,4,1,3,4,6,1,10,6,1,3,7,3,4,1]
["Masculino","-46",1,"1º CLASSIFICADO 2017",145001,{"$f":"COUNTIF(E:E,E6)","v":1},"Daniel Jesus",2002,"Algarve","Judo Clube de Portimão",{"$f":"SUM(M6:ZU6)","v":13},{"$f":"COUNT(M6:ZU6)","v":1},13]
["Masculino","-46",2,"2º CLASSIFICADO 2017",116004,1,"Duarte Lufinha",2001,"Lisboa","Colégio Marista de Carcavelos",13,2,9,4]
["Masculino","-46",3,"LISBOA",139434,1,"Tiago Silva",2003,"Lisboa","Sport Lisboa e Benfica",{"$f":"SUM(M8:ZU8)","v":26},{"$f":"COUNT(M8:ZU8)","v":4},null,null,null,null,null,null,null,null,null,null,null,7,8,null,1,10]
["Masculino","-46",4,"MADEIRA",135551,1,"José Vale",2003,"Madeira","Clube Judo Brava",2,2,null,null,null,null,null,null,null,null,null,null,1,null,null,null,null,null,1]
["Masculino","-46",5,"CENTRO SUL",133098,1,"Bruno Gonçalves",2003,"C.Branco","Escola de Judo Ana Hormigo",9,2,null,null,null,null,null,null,null,null,null,null,null,null,null,null,3,null,null,6]
["Masculino","-46",6,"SUL",134044,1,"Luis Veiga",2002,"Algarve","Judo Clube de Portuimão",19,2,null,8,null,null,null,null,null,null,null,null,null,null,null,null,null,null,null,null,11]
["Masculino","-46",7,"NORTE",125723,1,"David Costa",2003,"Braga","Associação Desportiva e Cultural Manhente",6,1,null,null,null,null,null,null,null,null,null,null,null,null,null,null,null,null,null,null,null,6]
["Masculino","-46",8,"CENTRO",134868,1,"David Antunes",2003,"Coimbra","Associação Académica de Coimbra",6,1,null,null,null,null,null,null,null,null,null,null,null,null,null,null,null,null,null,null,null,null,6]
["Masculino","-46",9,"AÇORES",137761,1,"Nuno Soares",2002,"I.Terceira","Judo Clube de São Carlos",3,3,null,null,null,null,null,null,null,null,null,1,null,null,null,1,null,null,null,null,null,null,null,1]
["Masculino","-46",10,"EFECTIVO",115084,1,"Guilherme Lopes",2002,"Santarém","Sporting Clube de Tomar",18,3,null,6,6,null,null,6]
["Masculino","-46",11,"EFECTIVO",133425,1,"Rui Pereira",2002,"Lisboa","Sport Algés e Dafundo",17,5,1,1,null,null,6,1,null,null,8]
["Masculino","-46",12,"EFECTIVO",124930,1,"Guilherme Terça",2003,"Lisboa","Sport Algés e Dafundo",16,2,null,null,null,null,null,null,null,null,null,null,null,null,null,null,9,7]
["Masculino","-46",13,"EFECTIVO",119490,1,"Guilherme Gaspar",2002,"Coimbra","Associação Académica de Coimbra",15,2,null,null,null,null,null,null,null,null,null,null,null,null,null,null,12,null,null,null,null,null,3]
["Masculino","-46",14,"EFECTIVO",127937,1,"Francisco Santos",2003,"Lisboa","Sport Algés e Dafundo",12,2,null,null,null,null,null,null,null,null,null,null,null,null,9,null,3]
["Masculino","-46",15,"EFECTIVO",135905,1,"Joaquim Rovira",2003,"Coimbra","Associação Académica de Coimbra",12,2,null,null,null,null,null,null,null,null,null,null,null,null,null,null,7,null,null,null,null,null,5]
["Masculino","-46",16,"EFECTIVO",122010,1,"Leandro Serra",2003,"C.Branco","Escola de Judo Ana Hormigo",11,2,null,null,null,null,null,null,null,null,null,null,null,null,null,null,7,null,null,4]
["Masculino","-46",17,"EFECTIVO",120184,1,"José Bentes",2002,"Lisboa","Colégio Moderno",9,2,null,null,null,null,null,null,null,null,4,null,null,5]
["Masculino","-46",18,"EFECTIVO",148517,1,"O'Neil Melo",2002,"Lisboa","Academia de Judo da Amadora",8,5,null,null,null,null,null,null,null,null,1,null,null,1,2,null,1,3]
["Masculino","-46",19,"EFECTIVO",131817,1,"Guilherme Alves",2002,"Lisboa","Oficinas São José",7,1,7]
["Masculino","-46",20,"EFECTIVO",125025,1,"Nicolae Panaite",2002,"Algarve","Judo Clube de Lagos",7,1,null,null,null,null,null,null,null,null,null,null,null,null,null,null,null,null,null,null,7]
["Masculino","-46",21,"EFECTIVO",123135,1,"Ricardo Pires",2002,"Setúbal","Judo Clube Pinhal Novo",6,1,6]
["Masculino","-46",22,"EFECTIVO",130114,1,"Artur Ramos",2003,"Madeira","Clube Judo Brava",6,1,null,null,null,null,null,null,null,null,null,null,6]
["Masculino","-46",23,"EFECTIVO",140487,1,"Rodrigo Ramalho",2003,"Algarve","Judo Clube de Lagos",6,3,null,null,null,null,null,null,null,null,null,null,null,3,null,null,1,null,null,null,2]
["Masculino","-46",24,"EFECTIVO",114599,1,"João Maximo",2002,"Lisboa","Judo Clubede Sintra",4,1,4]
["Masculino","-46",25,"EFECTIVO",126718,1,"Luís Ramos",2003,"Madeira","Clube Judo Brava",4,1,null,null,null,null,null,null,null,null,null,null,4]
["Masculino","-46",26,"EFECTIVO",123833,1,"Sidónio Serpa",2003,"Lisboa","Colégio Marista de Carcavelos",4,1,null,null,null,null,null,null,null,null,null,null,null,null,4]
["Masculino","-46",27,"EFECTIVO",127028,1,"Afonso Nascimento",2003,"Setúbal","Vitória Futebol Clube",4,1,null,null,null,null,null,null,null,null,null,null,null,null,null,null,null,null,null,null,4]
["Masculino","-46",28,"EFECTIVO",140514,1,"Miguel Brites",2002,"Setúbal","Grupo Amigos da Costa da Caparica",4,3,null,null,1,null,1,null,null,null,2]
["Masculino","-46",29,"EFECTIVO",139830,1,"Daniel Damásio",2002,"Santarém","Sociedade Filarmonia Gualdim Pais",3,1,3]
["Masculino","-46",30,"EFECTIVO",144665,1,"Rodrigo Ferreira",2003,"Algarve","C.AM.A. - Clube de Artes Marciais de Altura - Associação",3,1,null,null,null,null,null,null,null,null,null,null,null,null,null,null,null,null,null,null,3]
["Masculino","-46",31,"EFECTIVO",117728,1,"Bernardo Silva",2003,"Lisboa","Assoc. Desp. Cult. Encarnacao e Olivais",{"$f":"SUM(M36:ZU36)","v":3},{"$f":"COUNT(M36:ZU36)","v":1},null,null,null,null,null,null,null,null,null,null,null,null,null,null,null,3]
["Masculino","-46",32,"EFECTIVO",132172,1,"Henrique Leitão",2002,"Lisboa","Judo Clube de Portugal",3,2,1,2]
["Masculino","-46",33,"1º SUPLENTE",143359,1,"José Lebre",2002,"Santarém","Sociedade Filarmonia Gualdim Pais",2,1,2]
["Masculino","-46",34,"Efectivo 2º Z Açores",117863,1,"Tomás Rito",2003,"Açores","Judo Clube Ramo Grande",2,1,null,null,null,null,null,null,null,null,null,null,null,null,2]
["Masculino","-46",35,"1º SUPLENTE",135961,1,"João Martins",2003,"Coimbra","Associação Cristã da Mocidade de Coimbra",2,1,null,null,null,null,null,null,null,null,null,null,null,null,null,null,null,null,null,null,null,null,2]
["Masculino","-46",36,"Efectivo 2º Z Norte",127323,1,"Duarte Martins",2003,"Braga","Casa do Povo de Ronfe",2,1,null,null,null,null,null,null,null,null,null,null,null,null,null,null,null,null,null,null,null,2]
["Masculino","-46",37,"5º SUPLENTE",147174,1,"Igor Fouto",2003,"Lisboa","Academia de Judo da Amadora",{"$f":"SUM(M42:ZU42)","v":2},{"$f":"COUNT(M42:ZU42)","v":2},null,null,null,null,null,null,null,null,null,null,null,null,1,null,null,1]
["Masculino","-46",38,"6º SUPLENTE",145111,1,"Gustavo Guerreiro",2001,"Algarve","Academia Chushin Associação",1,1,1]
["Masculino","-46",39,"6º SUPLENTE",128745,1,"Marcio Lavandeira",2002,"Braga","ARCAP - Associação Recreativa e Cultural \"Amigos da Ponte\"",1,1,1]
["Masculino","-46",40,"6º SUPLENTE",146998,1,"Henrique Fonseca",2003,"Setúbal","Clube Cultural e Recreativo do Alto do Moinho",1,1,null,null,null,null,null,null,null,null,null,null,null,null,null,null,1]
["Masculino","-46",41,"6º SUPLENTE",143461,1,"Rafael Duarte",2002,"Lisboa","Clube de Judo da Lourinhã",1,1,null,null,null,null,null,null,null,null,null,null,null,null,null,null,null,1]
["Masculino","-46",42,"Efectivo 3º Z C.Sul",134629,1,"Luís Silva",2003,"Portalegre","Associação Desportiva Judo Clube de Portalegre",1,1,null,null,null,null,null,null,null,null,null,null,null,null,null,null,null,null,null,1]
["Masculino","-46",43,"Efectivo 3º Z Norte",155382,1,"Nelson Ribeiro",2003,"Braga","Casa do Povo de Ronfe",1,1,null,null,null,null,null,null,null,null,null,null,null,null,null,null,null,null,null,null,null,1]
["Masculino","-46",44,"6º SUPLENTE",147002,1,"Guilherme Carvalho",2003,"Setúbal","Clube Recreativo Charnequense",1,1,null,null,null,null,null,null,null,null,null,null,null,null,null,null,null,null,null,null,1]
["Masculino","-46",45,"6º SUPLENTE",127581,1,"Pedro Lage",2002,"Algarve","Judo Clube de Lagos",1,1,null,null,null,null,null,null,null,null,null,null,null,null,null,null,null,null,null,null,1]

{"sheet":"-50","index":3,"n_rows":66,"n_cols":34,"rows_kept":66,"cut":false,"hidden":false,"merged":[]}
[null,null,null,null,null,null,null,null,null,"CADETES",{"$f":"TODAY()","v":"2018-02-14"}]
[null,null,null,null,null,null,null,null,null,"-50KG ",null,null,"FPJ","Lisboa","Castelo Branco","Coimbra","Setúbal","Coimbra","V. Castelo","I.Terceira","Santarém","I.Terceira","Madeira","Lisboa","Setúbal","I.Terceira","Coimbra","LISBOA","MADEIRA","C.BRANCO","ALGARVE","GUARDA","SANTARÉM","AÇORES"]
[null,null,null,null,null,null,null,null,null,null,null,null,"2017-02-11","2017-04-01","2017-04-22","2017-04-29","2017-05-13","2017-06-17","2017-06-17","2017-06-25","2017-07-02","2017-10-21","2017-10-21","2017-11-11","2017-11-18","2017-11-18","2017-12-16","2018-01-21","2018-01-27","2018-01-27","2018-01-27","2018-01-27","2018-01-28","2018-02-03"]
["Género","Categoria",null,null,"LF",null,"NOME","Ano de Nascimento","Associação","CLUBE","Somatório de pontos","Número de provas","Camp.Nac. Cadetes","Open Cadetes","Open Cadetes \"Mestre António Morais\"","OPEN INT. CIDADE BARCELOS","Taça Cidade do Montijo","V Taça António Lopes Aleixo","III Open Int. Eurocidade Valença Tui","Torneio 41 Ano I.Terceira","V Open Int. Cadetes","Torneio Outono","Open Cadetes","Open Cadetes","Torneio Aniversário JC Pragal","Torneio AJIT","Open Cadetes","Zonal de Cadetes","Zonal de Cadetes","Zonal de Cadetes","Zonal de Cadetes","Zonal de Cadetes","Zonal de Cadetes","Zonal de Cadetes"]
[null,null,null,null,null,null,null,null,null,null,null,null,{"$f":"COUNT(M6:M528)","v":18},9,6,4,2,0,0,0,5,0,1,15,10,0,10,15,1,2,5,1,5,3]
["Masculino","-50",1,"1º CLASSIFICADO 2017",118770,{"$f":"COUNTIF(E:E,E6)","v":1},"Francisco Soares",2002,"Viseu","Judo Clube de Viseu",{"$f":"SUM(M6:ZU6)","v":32},{"$f":"COUNT(M6:ZU6)","v":3},17,null,7,null,null,null,null,null,8]
["Masculino","-50",2,"LISBOA",131817,1,"Guilherme Alves",2002,"Lisboa","Oficinas São José",35,4,null,7,null,null,null,null,null,null,2,null,null,13,null,null,null,13]
["Masculino","-50",3,"MADEIRA",135503,1,"João Martins",2003,"Madeira","Grupo Desportivo APEL",5,3,null,null,null,null,null,null,null,null,null,null,1,3,null,null,null,null,1]
["Masculino","-50",4,"CENTRO SUL",111692,1,"Afonso Folgado",2003,"C.Branco","Escola de Judo Ana Hormigo",16,2,null,null,null,null,null,null,null,null,null,null,null,null,null,null,10,null,null,6]
["Masculino","-50",5,"SUL",147003,1,"Tomás Gomes",2003,"Setúbal","Clube Recrativo Charnequense",22,3,null,null,null,null,null,null,null,null,null,null,null,null,13,null,1,null,null,null,8]
["Masculino","-50",null,"NORTE",155381,1,"Rui Ribeiro",2003,"Braga","Casa do Povo de Ronfe",{"$f":"SUM(M11:ZU11)","v":1},{"$f":"COUNT(M11:ZU11)","v":1},null,null,null,null,null,null,null,null,null,null,null,null,null,null,null,null,null,null,null,1]
["Masculino","-50",6,"CENTRO",123496,1,"Bernardo Ribeiro",2001,"Santarém","Sport Clube Operário Cem Soldos",34,4,10,null,10,null,null,null,null,null,6,null,null,null,null,null,null,null,null,null,null,null,8]
["Masculino","-50",7,"AÇORES",121537,1,"Rodrigo Cordeiro",2003,"Açores","Judo Clube de Ponta Delgada",6,1,null,null,null,null,null,null,null,null,null,null,null,null,null,null,null,null,null,null,null,null,null,6]
["Masculino","-50",8,"EFECTIVO",128125,1,"Alexandre Moreira",2003,"Lisboa","Ginásio Clube Português",{"$f":"SUM(M14:ZU14)","v":36},{"$f":"COUNT(M14:ZU14)","v":4},null,null,null,null,null,null,null,null,null,null,null,10,7,null,12,7]
["Masculino","-50",9,"EFECTIVO",123135,1,"Ricardo Pires",2002,"Setúbal","Judo Clube Pinhal Novo",{"$f":"SUM(M15:ZU15)-O15","v":35},6,null,null,3,null,6,null,null,null,4,null,null,9,10,null,null,null,null,null,6]
["Masculino","-50",10,"EFECTIVO",129975,1,"Emanuel Lemos",2001,"Porto","Escola Secundária Fontes Pereira de Melo",30,4,10,9,3,8]
["Masculino","-50",11,"EFECTIVO",139830,1,"Daniel Damásio",2002,"Santarém","Sociedade Filarmonia Gualdim Pais",19,5,null,2,1,null,null,null,null,null,null,null,null,7,null,null,3,null,null,null,null,null,6]
["Masculino","-50",12,"EFECTIVO",139769,1,"Henrique Gonçalves",2001,"Lisboa","Judo clubede Portugal",13,2,1,12]
["Masculino","-50",13,"EFECTIVO",132171,1,"Duarte Leitão",2002,"Lisboa","Judo Clube de Portugal",12,2,null,null,null,null,null,null,null,null,null,null,null,2,null,null,null,10]
["Masculino","-50",14,"EFECTIVO",131932,1,"João Ildefonso",2001,"Algarve","Judo Clube de Lagos",11,2,null,null,null,null,null,null,null,null,null,null,null,null,7,null,null,null,null,null,4]
["Masculino","-50",15,"EFECTIVO",128123,1,"Rodrigo Almeida",2003,"Lisboa","Ginásio Clube Português",11,4,null,null,null,null,null,null,null,null,null,null,null,1,3,null,3,4]
["Masculino","-50",16,"EFECTIVO",133425,1,"Rui Pereira",2002,"Lisboa","Sport Algés e Dafundo",10,3,null,null,null,null,null,null,null,null,null,null,null,1,3,null,6]
["Masculino","-50",17,"EFECTIVO",145555,1,"Miguel Cunha",2001,"Açores","Clube de Judo de Angra do Heroísmo",9,2,3,6]
["Masculino","-50",18,"EFECTIVO",149508,1,"João Silva",2002,"Lisboa","Judo Clube de Lisboa",9,3,null,null,null,null,null,null,null,null,null,null,null,1,null,null,7,1]
["Masculino","-50",19,"EFECTIVO",115084,1,"Guilherme Lopes",2002,"Santarém","Sporting Clube de Tomar",8,2,null,null,null,null,null,null,null,null,null,null,null,4,null,null,null,null,null,null,null,null,4]
["Masculino","-50",20,"EFECTIVO",141710,1,"Vasco Deusdado",2003,"Lisboa","Oficinas São José",8,2,null,null,null,null,null,null,null,null,null,null,null,1,null,null,null,7]
["Masculino","-50",21,"EFECTIVO",149185,1,"Gonçalo Silva",2001,"Setúbal","CCD-Clube Judo Montijo",7,1,7]
["Masculino","-50",22,"EFECTIVO",120599,1,"Duarte Lopes",2002,"Lisboa","Sporting Clube de Portugal",6,1,6]
["Masculino","-50",23,"EFECTIVO",128757,1,"Diogo Boas",2002,"Coimbra","Judo Clube de Barcelos - JUBA",6,1,null,null,null,6]
["Masculino","-50",24,"EFECTIVO",132172,1,"Henrique Leitão",2002,"Lisboa","Judo Clube de Portugal",6,2,null,null,null,null,null,null,null,null,null,null,null,5,null,null,null,1]
["Masculino","-50",25,"EFECTIVO",145001,1,"Daniel Jesus",2002,"Algarve","Judo Clube de Portimão",5,2,null,3,null,null,null,null,null,null,null,null,null,null,null,null,null,null,null,null,2]
["Masculino","-50",26,"EFECTIVO",139875,1,"Diogo Covas",2002,"Porto","Associação Desportiva Judo Force",4,1,null,null,null,4]
["Masculino","-50",27,"EFECTIVO",114599,1,"João Maximo",2002,"Lisboa","Judo Clubede Sintra",4,1,null,null,null,null,null,null,null,null,null,null,null,null,null,null,null,4]
["Masculino","-50",28,"EFECTIVO",117863,1,"Tomás Rito",2003,"Açores","Judo Clube Ramo Grande",4,1,null,null,null,null,null,null,null,null,null,null,null,null,null,null,null,null,null,null,null,null,null,4]
["Masculino","-50",29,"EFECTIVO",136266,1,"Francisco Martins",2002,"Setúbal","Vitória Futebol Clube",3,1,3]
["Masculino","-50",30,"EFECTIVO",120279,1,"Vicente Sousa",2002,"Lisboa","Universidade Lusofona de Humanidades de Tecnologias",3,1,3]
["Masculino","-50",31,"EFECTIVO",119382,1,"Francisco Santos",2002,"Setúbal","St. Peters School",3,1,3]
["Masculino","-50",32,"EFECTIVO",120699,{"$f":"COUNTIF(E:E,E38)","v":1},"Miguel Raposo",2003,"C.Branco","Escola de Judo Ana Hormigo",3,2,null,null,null,null,null,null,null,null,null,null,null,null,null,null,2,null,null,1]
["Masculino","-50",33,"EFECTIVO",137038,1,"Rodrigo Pires",2003,"Lisboa","Sociedade Recreativa Casainhos",{"$f":"SUM(M39:ZU39)","v":3},{"$f":"COUNT(M39:ZU39)","v":2},null,null,null,null,null,null,null,null,null,null,null,1,null,null,null,2]
["Masculino","-50",34,"EFECTIVO",126075,1,"Tomás Gomes",2002,"Lisboa","Sporting Clube de Portugal",3,2,null,null,null,null,null,null,null,null,null,null,null,null,1,null,null,2]
["Masculino","-50",35,"1º SUPLENTE",113421,1,"Tiago Guerra",2001,"Lisboa","Assoc. Desp. Cul. Encarnação e Olivais",2,1,2]
["Masculino","-50",36,"1º SUPLENTE",116339,1,"Duarte Diniz",2002,"Santarém","Casa do Povo de Rio Maior",2,1,2]
["Masculino","-50",37,"1º SUPLENTE",130870,1,"Bruno Bidarra",2001,"Lisboa","Grupo Recreativo Gonçalvinhense",2,1,2]
["Masculino","-50",38,"1º SUPLENTE",115869,1,"Guilherme Neves",2003,"Lisboa","Escola de Judo Nuno Delgado",2,1,null,null,null,null,null,null,null,null,null,null,null,null,null,null,null,2]
["Masculino","-50",39,"1º SUPLENTE",124506,1,"Francisco Silva",2003,"Lisboa","Universidade Lusofona de Humanidades de Tecnologias",2,1,null,null,null,null,null,null,null,null,null,null,null,null,null,null,null,2]
["Masculino","-50",40,"1º SUPLENTE",127937,1,"Francisco Santos",2003,"Lisboa","Sport Algés e Dafundo",2,1,null,null,null,null,null,null,null,null,null,null,null,null,null,null,null,2]
["Masculino","-50",41,"1º SUPLENTE",124737,1,"João Martins",2003,"Leiria","Judo Clube da Marinha Grande",2,1,null,null,null,null,null,null,null,null,null,null,null,null,null,null,null,null,null,null,null,null,2]
["Masculino","-50",42,"7º SUPLENTE",131217,1,"Guilherme Venâncio",2002,"Lisboa","Ginásio clube Português",2,2,1,null,null,null,1]
["Masculino","-50",43,"7º SUPLENTE",142694,1,"Luis Salvador",2001,"Coimbra","Associação Académica de Coimbra",2,2,1,null,null,1]
["Masculino","-50",44,"7º SUPLENTE",123668,1,"Tiago Brito",2002,"Lisboa","Grupo Recreativo Gonçalvinhense",2,2,null,1,null,null,null,null,null,null,1]
["Masculino","-50",45,"7º SUPLENTE",143359,1,"José Lebre",2002,"Santarém","Sociedade Filarmonia Gualdim Pais",2,2,null,1,1]
["Masculino","-50",46,"7º SUPLENTE",140458,1,"Alexandre Gonçalinho",2002,"Lisboa","Judo Clube de Albufeira",2,2,null,null,null,null,null,null,null,null,null,null,null,1,1]
["Masculino","-50",47,"12º SUPLENTE",134044,1,"Luis Veiga",2002,"Algarve","Judo Clube de Portuimão",1,1,1]
["Masculino","-50",48,"12º SUPLENTE",129939,1,"Tomás Monteiro",2002,"Viseu","Dinamo Clube Estação",1,1,1]
["Masculino","-50",49,"12º SUPLENTE",144759,1,"Samuel Machado",2002,"Coimbra","Escola de Judo de Coimbra",1,1,1]
["Masculino","-50",50,"12º SUPLENTE",132641,1,"Márcio Costa",2002,"Lisboa","Sporting Clube de Portugal",1,1,null,1]
["Masculino","-50",51,"12º SUPLENTE",148128,1,"João Fiuza",2003,"Lisboa","Associação Instituto do Judo",1,1,null,null,null,null,null,null,null,null,null,null,null,1]
["Masculino","-50",52,"12º SUPLENTE",116004,1,"Duarte Lufinha",2001,"Lisboa","Colégio Marista de Carcavelos",1,1,null,null,null,null,null,null,null,null,null,null,null,null,1]
["Masculino","-50",53,"12º SUPLENTE",140514,1,"Miguel Brites",2002,"Setúbal","Grupo Amigos da Costa da Caparica",1,1,null,null,null,null,null,null,null,null,null,null,null,null,1]
["Masculino","-50",54,"12º SUPLENTE",146998,1,"Henrique Fonseca",2003,"Setúbal","Clube Cultural e Recreativo do Alto do Moinho",1,1,null,null,null,null,null,null,null,null,null,null,null,null,null,null,1]
["Masculino","-50",55,"12º SUPLENTE",127234,1,"Gonçalo Germano",2003,"Santarém","Grupo Recreativo 1º Outubro de 1911",1,1,null,null,null,null,null,null,null,null,null,null,null,null,null,null,1]
["Masculino","-50",56,"12º SUPLENTE",123833,1,"Sidónio Serpa",2003,"Lisboa","Colégio Marista de Carcavelos",1,1,null,null,null,null,null,null,null,null,null,null,null,null,null,null,null,1]
["Masculino","-50",57,"12º SUPLENTE",120184,1,"José Bentes",2002,"Lisboa","Colégio Moderno",1,1,null,null,null,null,null,null,null,null,null,null,null,null,null,null,null,1]
["Masculino","-50",58,"12º SUPLENTE",149098,1,"Francisco Luz",2003,"Açores","JUDOLAG - Judo Clube Lagoa",1,1,null,null,null,null,null,null,null,null,null,null,null,null,null,null,null,null,null,null,null,null,null,1]
["Masculino","-50",59,"12º SUPLENTE",125393,1,"Martim Santos",2003,"Santarém","Judo Clube Salvaterra de Magos",1,1,null,null,null,null,null,null,null,null,null,null,null,null,null,null,null,null,null,null,null,null,1]
["Masculino","-50",60,"12º SUPLENTE",131587,1,"Jorge Assis",2003,"Algarve","Clube Desportivo Areias de São João",1,1,null,null,null,null,null,null,null,null,null,null,null,null,null,null,null,null,null,null,1]

{"sheet":"-55","index":4,"n_rows":99,"n_cols":34,"rows_kept":99,"cut":false,"hidden":false,"merged":[]}
[null,null,null,null,null,null,null,null,null,"CADETES",null,{"$f":"TODAY()","v":"2018-02-14"}]
[null,null,null,null,null,null,null,null,null,"-55KG ",null,null,"FPJ","Lisboa","Castelo Branco","Coimbra","Setúbal","Coimbra","V. Castelo","I.Terceira","Santarém","I.Terceira","Madeira","Lisboa","Setúbal","I.Terceira","Coimbra","LISBOA","MADEIRA","C.BRANCO","ALGARVE","GUARDA","SANTARÉM","AÇORES"]
[null,null,null,null,null,null,null,null,null,null,null,null,"2017-02-11","2017-04-01","2017-04-22","2017-04-29","2017-05-13","2017-06-17","2017-06-17","2017-06-25","2017-07-02","2017-10-21","2017-10-21","2017-11-11","2017-11-18","2017-11-18","2017-12-16","2018-01-21","2018-01-27","2018-01-27","2018-01-27","2018-01-27","2018-01-28","2018-02-03"]
["Género","Categoria",null,null,"LF",null,"NOME","Ano de Nascimento","Associação","CLUBE","Somatório de pontos","Número de provas","Camp.Nac. Cadetes","Open Cadetes","Open Cadetes \"Mestre António Morais\"","OPEN INT. CIDADE BARCELOS","Taça Cidade do Montijo","V Taça António Lopes Aleixo","III Open Int. Eurocidade Valença Tui","Torneio 41 Ano I.Terceira","V Open Int. Cadetes","Torneio Outono","Open Cadetes","Open Cadetes","Torneio Aniversário JC Pragal","Torneio AJIT","Open Cadetes","Zonal de Cadetes","Zonal de Cadetes","Zonal de Cadetes","Zonal de Cadetes","Zonal de Cadetes","Zonal de Cadetes","Zonal de Cadetes"]
[null,null,null,null,null,null,null,null,null,null,null,null,{"$f":"COUNT(M6:M511)","v":23},26,6,8,10,12,4,0,14,0,0,20,9,0,29,15,0,2,7,9,12,4]
["Masculino","-55",1,"2º CLASSIFICADO 2017",122477,{"$f":"COUNTIF(E:E,E6)","v":1},"Gonçalo Oliveira",2001,"Lisboa","Judo Clube de Lisboa",{"$f":"SUM(M6:ZU6)","v":31},{"$f":"COUNT(M6:ZU6)","v":2},13,18]
["Masculino","-55",2,"LISBOA",139769,1,"Henrique Gonçalves",2001,"Lisboa","Judo Clube de Portugal",27,2,null,null,null,null,null,null,null,null,null,null,null,14,null,null,null,13]
["Masculino","-55",3,"CENTRO SUL",113725,1,"João Gardete",2003,"C.Branco","Academia de Judo de Castelo Branco",9,2,null,null,null,null,null,null,null,null,null,null,null,null,null,null,3,null,null,6]
["Masculino","-55",4,"SUL",119363,1,"Nuno Martins",2002,"Setúbal","Judo Clube Pinhal Novo",{"$f":"SUM(M9:ZU9)-U9","v":44},{"$f":"COUNT(M9:ZU9)","v":6},8,7,8,null,10,null,null,null,4,null,null,null,null,null,null,null,null,null,11]
["Masculino","-55",5,"NORTE",118770,1,"Francisco Soares",2002,"Viseu","Judo Clube de Viseu",24,2,null,null,null,null,null,null,null,null,null,null,null,null,null,null,12,null,null,null,null,12]
["Masculino","-55",6,"CENTRO",120899,1,"Duarte Santos",2002,"Coimbra","Judo Clube de Coimbra",{"$f":"SUM(M11:ZU11)-M11","v":45},6,2,null,null,12,null,7,null,null,7,null,null,null,null,null,7,null,null,null,null,null,12]
["Masculino","-55",7,"AÇORES",114825,1,"José Ramos",2002,"Açores","Judo clube de Ponta delgada",6,1,null,null,null,null,null,null,null,null,null,null,null,null,null,null,null,null,null,null,null,null,null,6]
["Masculino","-55",8,"EFECTIVO",112730,1,"André Diogo",2001,"Coimbra","Judo Clube de Coimbra",45,4,1,null,null,null,null,13,null,null,13,null,null,null,null,null,18]
["Masculino","-55",9,"EFECTIVO",131600,1,"Gonçalo Monteiro",2002,"Viseu","Dinamo Clube Estação",43,9,2,1,4,6,null,null,2,null,10,null,null,1,null,null,11,null,null,null,null,6]
["Masculino","-55",10,"EFECTIVO",120693,1,"Miguel Gago",2003,"Algarve","Unbreakable Force - Associação Desportiva e Cultural",31,3,null,null,null,null,null,null,null,null,null,null,null,18,6,null,null,null,null,null,7]
["Masculino","-55",11,"EFECTIVO",140805,1,"Daniel Costa",2001,"Coimbra","Judo Clube de Coimbra",29,3,8,null,null,null,null,null,null,null,null,null,null,null,null,null,14,null,null,null,null,null,7]
["Masculino","-55",12,"EFECTIVO",115242,1,"Afonso Esteves",2001,"Lisboa","Colégio Marista de Carcavelos",28,5,4,5,null,null,null,null,null,null,null,null,null,11,6,null,null,2]
["Masculino","-55",13,"EFECTIVO",116339,1,"Duarte Diniz",2002,"Santarém","Casa do Povo de Rio Maior",27,3,null,null,null,null,null,null,null,null,null,null,null,10,10,null,null,null,null,null,null,null,7]
["Masculino","-55",14,"EFECTIVO",120897,1,"Carlos Santos",2002,"Coimbra","Judo Clube de Coimbra",22,5,2,null,null,null,null,10,null,null,5,null,null,null,null,null,3,null,null,null,null,null,2]
["Masculino","-55",15,"EFECTIVO",129939,1,"Tomás Monteiro",2002,"Viseu","Dinamo Clube Estação",19,8,null,1,1,9,null,null,3,null,1,null,null,1,null,null,1,null,null,null,null,2]
["Masculino","-55",16,"EFECTIVO",129975,1,"Emanuel Lemos",2001,"Porto","Escola Secundária Fontes Pereira de Melo",18,2,null,null,null,null,null,null,8,null,null,null,null,null,null,null,null,null,null,null,null,10]
["Masculino","-55",17,"EFECTIVO",120599,1,"Duarte Lopes",2002,"Lisboa","Sporting Clube de Portugal",17,3,null,8,null,null,7,null,null,null,2]
["Masculino","-55",18,"EFECTIVO",147394,1,"André Sousa",2003,"Lisboa","Sport Algés e Dafundo",16,3,null,null,null,null,null,null,null,null,null,null,null,7,null,null,2,7]
["Masculino","-55",19,"EFECTIVO",125291,1,"Pedro Teles",2002,"Leiria","Judo Clube Marinha Grande",15,3,null,null,null,null,null,2,null,null,null,null,null,null,null,null,4,null,null,null,null,null,9]
["Masculino","-55",20,"EFECTIVO",141579,1,"Sebastião Holtreman",2002,"Lisboa","Ginásio Clube Portugues",15,5,2,1,null,null,2,null,null,null,null,null,null,null,null,null,4,6]
["Masculino","-55",21,"EFECTIVO",130870,1,"Bruno Bidarra",2001,"Lisboa","Grupo Recreativo Gonçalvinhense",13,7,null,1,null,1,null,3,null,null,1,null,null,2,3,null,2]
["Masculino","-55",22,"EFECTIVO",122122,1,"João Marques",2001,"Lisboa","Grupo Recreativo Gonçalvinhense",13,8,null,1,null,4,null,1,null,null,1,null,null,1,2,null,2,1]
["Masculino","-55",23,"EFECTIVO",120454,1,"David Barros",2002,"Lisboa","Judo Clube de Lisboa",12,1,12]
["Masculino","-55",24,"EFECTIVO",123496,1,"Bernardo Ribeiro",2001,"Santarém","Sport Clube Operário Cem Soldos",12,1,null,null,null,null,null,null,null,null,null,null,null,null,12]
["Masculino","-55",25,"EFECTIVO",113421,1,"Tiago Guerra",2001,"Lisboa","Assoc. Desp. Cul. Encarnação e Olivais",12,2,null,null,null,null,null,null,null,null,null,null,null,2,null,null,null,10]
["Masculino","-55",26,"EFECTIVO",131217,1,"Guilherme Venâncio",2002,"Lisboa","Ginásio Clube Português",12,5,null,1,null,null,null,null,null,null,null,null,null,1,3,null,3,4]
["Masculino","-55",27,"EFECTIVO",117333,1,"Iuri Correia",2002,"Lisboa","Grupo Recreativo Gonçalvinhense",11,3,null,3,null,6,null,2]
["Masculino","-55",28,"EFECTIVO",137626,1,"Pedro Carvalho",2003,"Porto"," Associação Desportiva Judo Force",10,2,null,null,null,null,null,null,null,null,null,null,null,4,null,null,null,null,null,null,null,6]
["Masculino","-55",29,"EFECTIVO",113461,1,"João Azevedo",2002,"Lisboa","Escola de Judo Nuno Delgado",10,3,5,1,null,null,4]
["Masculino","-55",30,"EFECTIVO",131214,1,"Vicente Santos",2001,"Lisboa","Ginásio Clube Português",10,5,2,1,null,null,4,null,null,null,null,null,null,null,null,null,1,2]
["Masculino","-55",31,"EFECTIVO",149185,1,"Gonçalo Silva",2001,"Setúbal","CCD-Clube Judo Montijo",8,2,null,null,null,null,1,7]
["Masculino","-55",32,"EFECTIVO",144759,1,"Samuel Machado",2002,"Coimbra","Escola de Judo de Coimbra",8,2,null,null,null,null,null,1,null,null,null,null,null,null,null,null,7]
["Masculino","-55",33,"1º SUPLENTE",127793,{"$f":"COUNTIF(E:E,E38)","v":1},"Pedro Morais",2002,"Lisboa","Colégio Marista de Carcavelos",{"$f":"SUM(M38:ZU38)","v":7},{"$f":"COUNT(M38:ZU38)","v":2},null,null,null,null,null,null,null,null,null,null,null,6,null,null,null,1]
["Masculino","-55",34,"2º SUPLENTE",127809,1,"Guilherme Pereira",2001,"Lisboa","Sport Algés e Dafundo",7,4,1,1,4,null,null,null,null,null,1]
["Masculino","-55",35,"3º SUPLENTE",144349,1,"Kaleb Silva",2001,"Lisboa","Escola de Judo Nuno Delgado",6,2,3,3]
["Masculino","-55",36,"4º SUPLENTE",137098,1,"Dinis Santos",2003,"Viseu","Dinamo Clube Estação",6,3,null,null,null,null,null,null,null,null,null,null,null,2,null,null,1,null,null,null,null,3]
["Masculino","-55",37,"5º SUPLENTE",137826,1,"Tiago Rocha",2002,"Lisboa","Judo Clube de Lisboa",6,4,null,1,null,null,null,null,null,null,1,null,null,2,null,null,null,2]
["Masculino","-55",38,"Efectivo 2º Z Açores",130177,1,"Tiago Machado",2001,"Açores","Clube Escolar Desp. Escola Basica de Arrifes",5,1,null,null,null,null,null,null,null,null,null,null,null,null,null,null,null,null,null,null,null,null,null,5]
["Masculino","-55",39,"7º SUPLENTE",116004,1,"Duarte Lufinha",2001,"Lisboa","Colégio Marista de Carcavelos",5,2,null,null,null,null,null,null,null,null,null,null,null,3,null,null,null,2]
["Masculino","-55",40,"8º SUPLENTE",146987,1,"Duarte Silva",2002,"Setúbal","Centro Cultural e Recreativo do Alto do Moinho",5,3,null,null,null,null,1,null,null,null,null,null,null,null,1,null,3]
["Masculino","-55",41,"9º SUPLENTE",148518,1,"Sandro Couto",2002,"Lisboa","Academia de Judo da Amadora",5,5,null,null,1,null,null,null,null,null,null,null,null,1,1,null,1,1]
["Masculino","-55",42,"10º SUPLENTE",115483,1,"Gonçalo Mortágua",2001,"Coimbra","Escola de Judo de Coimbra",4,1,null,null,null,null,null,4]
["Masculino","-55",43,"10º SUPLENTE",140302,1,"Martim Matias",2003,"Lisboa","Universidade Lusofona de Humanidades de Tecnologias",4,1,null,null,null,null,null,null,null,null,null,null,null,null,null,null,null,4]
["Masculino","-55",44,"Efectivo 3º Z Açores",121319,1,"Francisco Festa",2002,"Açores","Clube de Judo de Angra do Heroismo",4,1,null,null,null,null,null,null,null,null,null,null,null,null,null,null,null,null,null,null,null,null,null,4]
["Masculino","-55",45,"10º SUPLENTE",134600,1,"Gabriel Costa",2003,"Setúbal","Grupo Desportivo Fabril do Barreiro",4,1,null,null,null,null,null,null,null,null,null,null,null,null,null,null,null,null,null,null,4]
["Masculino","-55",46,"14º SUPLENTE",130923,1,"Tiago Marques",2002,"Lisboa","Oficinas São José",4,2,null,null,null,null,null,null,null,null,null,null,null,2,null,null,null,2]
["Masculino","-55",47,"14º SUPLENTE",136840,1,"Ricardo Santos",2002,"Porto","Escola Básica Dr. Costa Matos",4,2,null,null,null,null,null,null,null,null,1,null,null,null,null,null,null,null,null,null,null,3]
["Masculino","-55",48,"14º SUPLENTE",141514,1,"Afonso Costa",2003,"Coimbra","Judo Clube de Coimbra",4,2,null,null,null,null,null,null,null,null,null,null,null,null,null,null,1,null,null,null,null,null,3]
["Masculino","-55",49,"17º SUPLENTE",133770,1,"Luis Leite",2002,"Porto","Escola Secundária de Fontes Pereira de Melo",4,3,1,1,null,null,null,null,2]
["Masculino","-55",50,"17º SUPLENTE",140773,1,"André Lopes",2002,"Santarém","Sporting Clube de Tomar",4,3,null,1,2,null,null,1]
["Masculino","-55",51,"19º SUPLENTE",112634,1,"Tiago Lopes",2001,"Coimbra","Escola de Judo de Coimbra",3,1,3]
["Masculino","-55",52,"19º SUPLENTE",130418,1,"Denis Levchuk",2002,"Setúbal","Judo Clube do Pragal",3,1,3]
["Masculino","-55",53,"19º SUPLENTE",111393,1,"António Candeias",2001,"Açores","Clube de Judo de Angra do Heroísmo",3,1,null,3]
["Masculino","-55",54,"19º SUPLENTE",147893,1,"Tomás Rosário",2002,"Beja","Associacao Bombeiros Voluntarios de Beja",3,1,null,null,null,null,3]
["Masculino","-55",55,"19º SUPLENTE",118244,1,"Bernardo Roque",2003,"Leiria","Judo Clube da Marinha Grande",3,1,null,null,null,null,null,null,null,null,null,null,null,null,null,null,null,null,null,null,null,null,3]
["Masculino","-55",56,"19º SUPLENTE",140529,1,"João Cavaco",2003,"Setúbal","Clube Recreativo Charnequense",3,1,null,null,null,null,null,null,null,null,null,null,null,null,null,null,null,null,null,null,3]
["Masculino","-55",57,"25º SUPLENTE",137546,1,"Manuel Ferreira",2001,"Açores","Judo Clube de PontaDelgada",3,2,1,2]
["Masculino","-55",58,"25º SUPLENTE",118733,1,"Pedro Gouveia",2002,"Lisboa","Escola de Judo Nuno Delgado",3,2,null,2,null,null,1]
["Masculino","-55",59,"25º SUPLENTE",146906,1,"Gonçalo Vieira",2003,"Coimbra","Judo Clube de Barcelos - JUBA",3,2,null,null,null,null,null,null,null,null,null,null,null,null,null,null,2,null,null,null,null,null,1]
["Masculino","-55",60,"28º SUPLENTE",138772,1,"Gonçalo Torre",2002,"Lisboa","Colégio Marista de Carcavelos",2,1,null,2]
["Masculino","-55",61,"28º SUPLENTE",144348,1,"Jonatas Silva",2002,"Lisboa","Escola de Judo Nuno Delgado",2,1,null,2]
["Masculino","-55",62,"28º SUPLENTE",131023,1,"António Mendonça",2001,"Açores","Clube de Judo de Angra do Heroísmo",2,1,null,2]
["Masculino","-55",63,"28º SUPLENTE",133641,1,"João Conchinha",2003,"Santarém","Sport Clube Operário Cem Soldos",2,1,null,null,null,null,null,null,null,null,null,null,null,null,null,null,null,null,null,null,null,null,2]
["Masculino","-55",64,"28º SUPLENTE",126874,1,"Pedro Carreiro",2003,"Setúbal","Clube Recreativo Charnequense",2,1,null,null,null,null,null,null,null,null,null,null,null,null,null,null,null,null,null,null,2]
["Masculino","-55",65,"33º SUPLENTE",150889,{"$f":"COUNTIF(E:E,E70)","v":1},"Samuel Lourenço",2002,"C.Branco","Atlético Clube Fundanense",{"$f":"SUM(M70:ZU70)","v":2},{"$f":"COUNT(M70:ZU70)","v":2},1,null,null,null,null,1]
["Masculino","-55",66,"33º SUPLENTE",137088,1,"Ricardo Varalonga",2003,"Viseu","Dinamo Clube Estação",2,2,null,null,null,null,null,null,null,null,null,null,null,1,null,null,1]
["Masculino","-55",67,"33º SUPLENTE",120735,1,"Pedro Esteves",2003,"Santarém","Clube de Judo de Riachos",2,2,null,null,null,null,null,null,null,null,null,null,null,null,null,null,1,null,null,null,null,null,1]
["Masculino","-55",68,"35º SUPLENTE",122698,1,"Tomás Ezequiel",2001,"Lisboa","Judo Clube de Portugal",1,1,1]
["Masculino","-55",69,"35º SUPLENTE",132412,1,"Ricardo Oliveira",2002,"V. Castelo","Associação Desportiva e Cultural Taiki-Budo",1,1,1]
["Masculino","-55",70,"Efectivo 2º Z C.Sul",150888,1,"Emanuel Lourenço",2002,"C.Branco","Atlético Clube Fundanense",1,1,1]
["Masculino","-55",71,"35º SUPLENTE",139561,1,"Tomás Ribeiro",2001,"Lisboa","Sport Algés e Dafundo",1,1,null,null,null,null,null,null,null,null,1]
["Masculino","-55",72,"35º SUPLENTE",120828,1,"Rúben Coutinho",2002,"Braga","Casa do Povo de Ronfe",1,1,null,null,null,1]
["Masculino","-55",73,"35º SUPLENTE",133162,1,"Henrique Pereira",2001,"V. Castelo","Judo Clube de Caminha",1,1,null,1]
["Masculino","-55",74,"35º SUPLENTE",134138,1,"Diogo Guerreiro",2001,"Algarve","Judo Clube do Algarve",1,1,1]
["Masculino","-55",75,"35º SUPLENTE",132171,1,"Duarte Leitão",2002,"Lisboa","Judo Clube de Portugal",1,1,null,1]
["Masculino","-55",76,"35º SUPLENTE",151536,1,"Rafael Oliveira",2002,"Lisboa","Grupo Recreativo Gonçalvinhense",1,1,null,null,null,1]
["Masculino","-55",77,"35º SUPLENTE",120279,1,"Vicente Sousa",2002,"Lisboa","Universidade Lusofona de Humanidades de Tecnologias",1,1,null,null,null,null,1]
["Masculino","-55",78,"35º SUPLENTE",136266,1,"Francisco Martins",2002,"Setúbal","Vitória Futebol Clube",1,1,null,null,null,null,null,null,null,null,1]
["Masculino","-55",79,"35º SUPLENTE",126075,1,"Tomás Gomes",2002,"Lisboa","Sporting Clube de Portugal",1,1,null,null,null,null,null,null,null,null,null,null,null,1]
["Masculino","-55",80,"35º SUPLENTE",154942,1,"Fábio Lourenço",2003,"Guarda","Clube de Judo da Guarda",1,1,null,null,null,null,null,null,null,null,null,null,null,null,null,null,1]
["Masculino","-55",81,"Efectivo 3º Z C.Sul",122287,1,"Ricardo Pinho",2003,"C.Branco","Academia de Judo de Castelo Branco",1,1,null,null,null,null,null,null,null,null,null,null,null,null,null,null,1]
["Masculino","-55",82,"35º SUPLENTE",152089,1,"Rodrigo Ricardo",2003,"Setúbal","Clube Cultural e Recreativo do Alto do Moinho",1,1,null,null,null,null,null,null,null,null,null,null,null,null,null,null,1]
["Masculino","-55",83,"35º SUPLENTE",137589,1,"Gonçalo Simão",2001,"Leiria","Escola de Judo de Pombal",1,1,null,null,null,null,null,null,null,null,null,null,null,null,null,null,1]
["Masculino","-55",84,"35º SUPLENTE",146997,1,"Guilherme David",2003,"Setúbal","Clube Cultural e Recreativo do Alto do Moinho",1,1,null,null,null,null,null,null,null,null,null,null,null,null,null,null,1]
["Masculino","-55",85,"35º SUPLENTE",145077,1,"André Pires",2002,"Aveiro","Associação Académica da Universidade de Aveiro",1,1,null,null,null,null,null,null,null,null,null,null,null,null,null,null,1]
["Masculino","-55",86,"35º SUPLENTE",145036,1,"João Benitez",2003,"Lisboa","Sport Algés e Dafundo",1,1,null,null,null,null,null,null,null,null,null,null,null,null,null,null,null,1]
["Masculino","-55",87,"35º SUPLENTE",153782,1,"João Marques",2003,"C.Branco","Escola de Judo Ana Hormigo",1,1,null,null,null,null,null,null,null,null,null,null,null,null,null,null,null,null,null,1]
["Masculino","-55",88,"35º SUPLENTE",137686,1,"Alexandre Mântua",2002,"Açores","JUDOLAG - Judo Clube Lagoa",1,1,null,null,null,null,null,null,null,null,null,null,null,null,null,null,null,null,null,null,null,null,null,1]
["Masculino","-55",89,"35º SUPLENTE",114483,1,"João Ferreira",2003,"Leiria","Grupo Desportivo de Santo Amaro",1,1,null,null,null,null,null,null,null,null,null,null,null,null,null,null,null,null,null,null,null,null,1]
["Masculino","-55",90,"35º SUPLENTE",127234,1,"Gonçalo Germano",2003,"Santarém","Grupo Recreativo 1º Outubro de 1911",1,1,null,null,null,null,null,null,null,null,null,null,null,null,null,null,null,null,null,null,null,null,1]
["Masculino","-55",91,"35º SUPLENTE",128745,1,"Márcio Lavandeira",2002,"Braga","ARCAP - Associação Recreativa e Cultural \"Amigos da Ponte\"",1,1,null,null,null,null,null,null,null,null,null,null,null,null,null,null,null,null,null,null,null,1]
["Masculino","-55",92,"35º SUPLENTE",139369,1,"Henrique Cunha",2002,"Braga","Casa do Povo de Ronfe",1,1,null,null,null,null,null,null,null,null,null,null,null,null,null,null,null,null,null,null,null,1]
["Masculino","-55",93,"35º SUPLENTE",145111,1,"Gustavo Guerreiro",2001,"Algarve","Academia Chushin Associação",1,1,null,null,null,null,null,null,null,null,null,null,null,null,null,null,null,null,null,null,1]
["Masculino","-55",94,"35º SUPLENTE",150188,1,"Bernardo Gonçalves",2003,"Algarve","Academia Chushin Associação",1,1,null,null,null,null,null,null,null,null,null,null,null,null,null,null,null,null,null,null,1]

{"sheet":"-60","index":5,"n_rows":110,"n_cols":34,"rows_kept":110,"cut":false,"hidden":false,"merged":[]}
[null,null,null,null,null,null,null,null,null,"CADETES",{"$f":"TODAY()","v":"2018-02-14"}]
[null,null,null,null,null,null,null,null,null,"-60KG ",null,null,"FPJ","Lisboa","Castelo Branco","Coimbra","Setúbal","Coimbra","V. Castelo","I.Terceira","Santarém","I.Terceira","Madeira","Lisboa","Setúbal","I.Terceira","Coimbra","LISBOA","MADEIRA","C.BRANCO","ALGARVE","GUARDA","SANTARÉM","AÇORES"]
[null,null,null,null,null,null,null,null,null,null,null,null,"2017-02-11","2017-04-01","2017-04-22","2017-04-29","2017-05-13","2017-06-17","2017-06-17","2017-06-25","2017-07-02","2017-10-21","2017-10-21","2017-11-11","2017-11-18","2017-11-18","2017-12-16","2018-01-21","2018-01-27","2018-01-27","2018-01-27","2018-01-27","2018-01-28","2018-02-03"]
["Género","Categoria",null,null,"LF",null,"NOME","Ano de Nascimento","Associação","CLUBE","Somatório Pontos","Número de provas","Camp.Nac. Cadetes","Open Cadetes","Open Cadetes \"Mestre António Morais\"","OPEN INT. CIDADE BARCELOS","Taça Cidade do Montijo","V Taça António Lopes Aleixo","III Open Int. Eurocidade Valença Tui","Torneio 41 Anos I.Terceira","V Open Int. Cadetes","Torneio Outono","Open Cadetes","Open Cadetes","Torneio Aniversário JC Pragal","Torneio AJIT","Open Cadetes","Zonal de Cadetes","Zonal de Cadetes","Zonal de Cadetes","Zonal de Cadetes","Zonal de Cadetes","Zonal de Cadetes","Zonal de Cadetes"]
[null,null,null,null,null,null,null,null,null,null,null,null,{"$f":"COUNT(M6:M485)","v":22},19,14,6,14,17,2,1,16,0,2,19,15,1,20,17,1,6,10,13,12,3]
["Masculino","-60",1,"1º CLASSIFICADO 2017",133642,{"$f":"COUNTIF(E:E,E6)","v":1},"Bruno Barros",2001,"Santarém","Sport Clube Operário Cem Soldos",{"$f":"SUM(M6:ZU6)","v":51},{"$f":"COUNT(M6:ZU6)","v":3},21,18,null,null,null,null,null,null,null,null,null,null,null,null,null,null,null,null,null,null,12]
["Masculino","-60",2,"LISBOA",148008,1,"Arthur Gottheiner",2002,"Lisboa","Sport Algés e Dafundo",{"$f":"SUM(M7:ZU7)-O7-U7-Y7","v":82},{"$f":"COUNT(M7:ZU7)","v":8},null,13,3,null,17,null,null,null,11,null,null,17,7,null,18,17]
["Masculino","-60",3,"MADEIRA",121957,1,"Américo Gomes",2001,"Madeira","Judo Clube da Madeira",{"$f":"SUM(M8:ZU8)","v":3},{"$f":"COUNT(M8:ZU8)","v":3},null,null,null,null,null,null,null,null,null,null,1,1,null,null,null,null,1]
["Masculino","-60",4,"CENTRO SUL",124483,1,"João Vicente",2003,"C.Branco","Escola de Judo Ana Hormigo",9,1,null,null,null,null,null,null,null,null,null,null,null,null,null,null,null,null,null,9]
["Masculino","-60",5,"SUL",123066,1,"Rafael Chambel",2002,"Setúbal","Judo Clube Pinhal Novo",43,4,7,null,null,null,12,null,null,null,11,null,null,null,null,null,null,null,null,null,13]
["Masculino","-60",6,"NORTE",137628,1,"Francisco Vieira",2002,"Porto"," Associação Desportiva Judo Force",29,5,null,2,3,7,null,null,null,null,null,null,null,null,null,null,5,null,null,null,null,12]
["Masculino","-60",7,"CENTRO",115427,1,"Bernardo Fernandes",2003,"Coimbra","Associação Cristã da Mocidade de Coimbra",10,2,null,null,null,null,null,null,null,null,null,null,null,null,null,null,1,null,null,null,null,null,9]
["Masculino","-60",8,"AÇORES",111392,1,"António Ventura",2002,"Açores","Clube de Judo de Angra do Heroísmo",12,4,1,1,null,null,null,null,null,null,null,null,null,null,null,null,4,null,null,null,null,null,null,6]
["Masculino","-60",9,"EFECTIVO",143706,1,"Alexandrino Gomes",2001,"Lisboa","Sport Lisboa e Benfica",{"$f":"SUM(M14:ZU14)-N14-O14-Q14-R14","v":58},9,12,2,10,null,4,1,null,null,null,null,null,10,13,null,10,13]
["Masculino","-60",10,"EFECTIVO",128958,1,"Francisco Carmo",2002,"Lisboa","Universidade Lusofona de Humanidades de Tecnologias",{"$f":"SUM(M15:ZU15)-O15-M15","v":41},{"$f":"COUNT(M15:ZU15)","v":7},2,10,1,null,6,null,null,null,4,null,null,10,null,null,null,11]
["Masculino","-60",11,"EFECTIVO",133069,1,"Tomás Fernandes",2001,"Lisboa","Sporting Clube de Portugal",40,3,14,null,13,null,13]
["Masculino","-60",12,"EFECTIVO",116835,1,"Tiago Barreiros",2001,"Leiria","Judo Clube Marinha Grande",36,4,2,null,null,null,null,14,null,null,null,null,null,null,null,null,13,null,null,null,null,null,7]
["Masculino","-60",13,"EFECTIVO",130418,1,"Denis Levchuk",2002,"Setúbal","Judo Clube do Pragal",35,4,null,null,8,null,6,11,null,null,null,null,null,null,10]
["Masculino","-60",14,"EFECTIVO",123219,1,"Bruno Caldeira",2003,"Santarém","Sociedade Filarmonica Gualdim Pais",28,3,null,null,null,null,null,null,null,null,null,null,null,13,null,null,11,null,null,null,null,null,4]
["Masculino","-60",15,"EFECTIVO",128483,1,"Vitor Condelipes",2002,"Setúbal","Clube de Judo Montijo",27,4,null,null,null,null,4,10,null,null,null,null,null,null,4,null,null,null,null,null,9]
["Masculino","-60",16,"EFECTIVO",120454,1,"David Barros",2002,"Lisboa","Judo Clube de Lisboa",25,2,null,11,null,null,null,null,null,null,14]
["Masculino","-60",17,"EFECTIVO",140178,1,"Vasco Pimenta",2001,"Lisboa","Sport Lisboa e Benfica",24,3,null,null,null,null,null,17,null,null,6,null,null,null,null,null,null,1]
["Masculino","-60",18,"EFECTIVO",112302,1,"Mauro Faria",2002,"Madeira","Clube Naval do Funchal",16,3,2,null,null,null,null,null,null,null,null,null,6,8]
["Masculino","-60",19,"EFECTIVO",117333,1,"Iuri Correia",2002,"Lisboa","Grupo Recreativo Gonçalvinhense",16,5,null,null,null,null,null,null,null,null,2,null,null,2,1,null,1,10]
["Masculino","-60",20,"EFECTIVO",137622,1,"João Lopes",2001,"Porto"," Associação Desportiva Judo Force",15,3,1,null,4,null,null,null,null,null,null,null,null,null,null,null,null,null,null,null,null,10]
["Masculino","-60",21,"EFECTIVO",124107,1,"Diogo Rangel",2003,"Lisboa","Sport Lisboa e Benfica",14,3,null,null,null,null,null,null,null,null,null,null,null,1,7,null,6]
["Masculino","-60",22,"EFECTIVO",139791,1,"Afonso Silva",2001,"Lisboa","Universidade Lusofona de Humanidades de Tecnologias",12,4,1,2,7,null,null,null,null,null,2]
["Masculino","-60",23,"EFECTIVO",119839,1,"Pedro Pinheiro",2001,"Aveiro","Sport Clube Beira Mar",11,4,1,null,2,null,null,7,null,null,null,null,null,null,null,null,1]
["Masculino","-60",24,"EFECTIVO",132414,1,"Cristian Morari",2002,"Lisboa","Judo Clube de Portugal",10,2,null,null,null,null,null,null,null,null,null,null,null,7,null,null,null,3]
["Masculino","-60",25,"EFECTIVO",116969,1,"Manuel Mega",2002,"C.Branco","Academia de Judo de Castelo Branco",10,5,1,null,null,null,1,4,null,null,1,null,null,null,null,null,null,null,null,3]
["Masculino","-60",26,"EFECTIVO",131767,1,"Francisco Gil",2001,"Lisboa","Grupo Desportivo Gonçalvinhense",8,2,null,null,null,7,null,null,null,null,null,null,null,null,1]
["Masculino","-60",27,"EFECTIVO",134048,1,"André Godinho",2003,"Setúbal","CCD-Clube Judo Montijo",8,2,null,null,null,null,null,null,null,null,null,null,null,null,2,null,null,null,null,null,6]
["Masculino","-60",28,"EFECTIVO",137546,1,"Manuel Ferreira",2001,"Lisboa","Sport Algés e Dafundo",8,2,null,null,null,null,null,null,null,null,null,null,null,null,1,null,null,7]
["Masculino","-60",29,"EFECTIVO",124229,1,"Maxim Gumeniuc",2001,"Lisboa","Sport Lisboa e Benfica",8,4,2,4,null,null,1,null,null,null,1]
["Masculino","-60",30,"EFECTIVO",113461,1,"João Azevedo",2002,"Lisboa","Escola de Judo Nuno Delgado",8,4,null,null,null,null,null,null,null,null,2,null,null,1,4,null,null,1]
["Masculino","-60",31,"EFECTIVO",128642,1,"João Martins",2001,"Santarém","Grupo Recreativo 1º Outubro",8,5,null,1,2,1,null,2,null,null,2]
["Masculino","-60",32,"EFECTIVO",112300,1,"João Costa",2001,"Madeira","Judo Clube Madeira",7,1,7]
["Masculino","-60",33,"EFECTIVO",122287,{"$f":"COUNTIF(E:E,E38)","v":1},"Ricardo Pinho",2003,"C.Branco","Academia de Judo de Castelo Branco",7,1,null,null,null,null,null,null,null,null,null,null,null,null,null,null,null,null,null,7]
["Masculino","-60",34,"EFECTIVO",112730,1,"André Diogo",2001,"Coimbra","Judo Clube de Coimbra",7,1,null,null,null,null,null,null,null,null,null,null,null,null,null,null,null,null,null,null,null,null,7]
["Masculino","-60",35,"EFECTIVO",132412,1,"Ricardo Oliveira",2002,"V.Castelo","Associação Desportiva e Cultural Taiki-Budo",{"$f":"SUM(M40:ZU40)","v":7},{"$f":"COUNT(M40:ZU40)","v":1},null,null,null,null,null,null,null,null,null,null,null,null,null,null,null,null,null,null,null,7]
["Masculino","-60",36,"1º SUPLENTE",139562,1,"Manuel Esteves",2001,"Lisboa","Sport Algés e Dafundo",7,2,null,null,null,null,null,null,null,null,null,null,null,null,1,null,null,6]
["Masculino","-60",37,"2º SUPLENTE",151536,1,"Rafael Oliveira",2002,"Lisboa","Grupo Recreativo Gonçalvinhense",7,5,null,null,null,null,null,3,null,null,1,null,null,1,1,null,1]
["Masculino","-60",38,"3º SUPLENTE",133770,1,"Luís Leite",2002,"Porto","Escola Secundária Fontes Pereira de Melo",6,1,null,null,null,null,null,null,null,null,null,null,null,null,null,null,null,null,null,null,null,6]
["Masculino","-60",39,"3º SUPLENTE",146987,1,"Duarte Silva",2002,"Setúbal","Centro Cultural e Recreativo do Alto do Moinho",6,1,null,null,null,null,null,null,null,null,null,null,null,null,null,null,null,null,null,null,6]
["Masculino","-60",40,"5º SUPLENTE",120756,1,"Gonçalo Rodrigues",2001,"Coimbra","Judo Clube de Barcelos - JUBA",6,2,null,1,null,5]
["Masculino","-60",41,"5º SUPLENTE",129470,1,"Luís Pereira",2002,"Braga","Associação Desportiva e Cultural Manhente",6,2,null,null,null,4,null,null,2]
["Masculino","-60",42,"5º SUPLENTE",113310,1,"Alexandre Francisco",2001,"Lisboa","Judo Clube Odivelas",6,2,null,null,null,null,null,null,null,null,null,null,null,2,null,null,null,4]
["Masculino","-60",43,"8º SUPLENTE",126951,1,"Daniel Almeida",2001,"Setúbal","Externato Frei Luis de Sousa",6,3,4,1,null,null,1]
["Masculino","-60",44,"9º SUPLENTE",139561,1,"Tomás Ribeiro",2001,"Lisboa","Sport Algés e Dafundo",6,4,null,null,1,null,1,2,null,null,null,null,null,null,null,null,null,2]
["Masculino","-60",45,"10º SUPLENTE",141579,1,"Sebastião Holtreman",2002,"Lisboa","Ginásio Clube Portugues",5,2,null,null,null,null,null,null,null,null,null,null,null,3,2]
["Masculino","-60",46,"11º SUPLENTE",134391,1,"Daniel Fino",2001,"Setúbal","Vitória Futebol Clube",5,3,1,3,null,null,1]
["Masculino","-60",47,"11º SUPLENTE",138408,1,"Duarte Dias",2003,"Setúbal","Judo Clube do Pinhal Novo",5,3,null,null,null,null,null,null,null,null,null,null,null,2,2,null,null,null,null,null,1]
["Masculino","-60",48,"11º SUPLENTE",152862,1,"Diogo Leitão",2001,"C.Branco","Escola de Judo Ana Hormigo",5,3,null,null,null,null,null,1,null,null,null,null,null,null,null,null,1,null,null,3]
["Masculino","-60",49,"14º SUPLENTE",125481,1,"Diogo Ferreira",2002,"Coimbra","Associação Académica de Coimbra",4,1,null,null,null,null,null,4]
["Masculino","-60",50,"14º SUPLENTE",122477,1,"Gonçalo Oliveira",2001,"Lisboa","Judo Clube de Lisboa",4,1,null,null,null,null,null,null,null,null,4]
["Masculino","-60",51,"14º SUPLENTE",138772,1,"Gonçalo Torre",2002,"Lisboa","Colégio Marista de Carcavelos",4,1,null,null,null,null,null,null,null,null,null,null,null,4]
["Masculino","-60",52,"14º SUPLENTE",122396,1,"Gaspar Domingues",2002,"Leiria","Escola de Judo de Pombal",4,1,null,null,null,null,null,null,null,null,null,null,null,null,null,null,4]
["Masculino","-60",53,"14º SUPLENTE",142324,1,"Bruno Esteves",2001,"V.Castelo","Centro Social e Paroquial de Alvarães",4,1,null,null,null,null,null,null,null,null,null,null,null,null,null,null,null,null,null,null,null,4]
["Masculino","-60",54,"Efectivo 2º Z Açores",122140,1,"Vasco Sousa",2003,"Açores","Judo Clube de Ponta Delgada",4,1,null,null,null,null,null,null,null,null,null,null,null,null,null,null,null,null,null,null,null,null,null,4]
["Masculino","-60",55,"14º SUPLENTE",137088,1,"Ricardo Varalonga",2003,"Viseu","Dinamo Clube Estação",4,1,null,null,null,null,null,null,null,null,null,null,null,null,null,null,null,null,null,null,null,4]
["Masculino","-60",56,"14º SUPLENTE",147893,1,"Tomás Rosário",2002,"Beja","Associação Bombeiros Voluntários de Beja",4,1,null,null,null,null,null,null,null,null,null,null,null,null,null,null,null,null,null,null,4]
["Masculino","-60",57,"22º SUPLENTE",127797,1,"Diogo Silva",2002,"Lisboa","Judo Clube de Lisboa",4,3,null,1,null,null,null,null,null,null,null,null,null,null,2,null,null,1]
["Masculino","-60",58,"23º SUPLENTE",141544,1,"Rafael Santos",2002,"Coimbra","Montanha Clube",4,4,null,null,null,1,null,1,null,null,1,null,null,null,null,null,null,null,null,null,null,null,1]
["Masculino","-60",59,"24º SUPLENTE",139615,1,"Martim Garcia",2003,"Lisboa","Ginásio Clube Portugues",3,1,null,null,null,null,null,null,null,null,null,null,null,null,null,null,3]
["Masculino","-60",60,"24º SUPLENTE",115197,1,"Francisco Sebastião",2003,"Santarém","Associação Académica e Desportiva de Rio Maior",3,1,null,null,null,null,null,null,null,null,null,null,null,null,null,null,null,null,null,null,null,null,3]
["Masculino","-60",61,"24º SUPLENTE",154942,1,"Fábio Lourenço",2003,"Guarda","Clube de Judo da Guarda",3,1,null,null,null,null,null,null,null,null,null,null,null,null,null,null,null,null,null,null,null,3]
["Masculino","-60",62,"24º SUPLENTE",136268,1,"Bruno Gavazzi",2003,"Setúbal","Vitória Futebol Clube",3,1,null,null,null,null,null,null,null,null,null,null,null,null,null,null,null,null,null,null,3]
["Masculino","-60",63,"28º SUPLENTE",115483,1,"Gonçalo Mortágua",2001,"Coimbra","Escola de Judo de Coimbra",3,2,1,null,null,null,null,null,null,null,null,null,null,null,null,null,2]
["Masculino","-60",64,"28º SUPLENTE",123565,1,"João Egea",2002,"Açores","Judo Clube de Ponta Delgada",3,2,1,2]
["Masculino","-60",65,"28º SUPLENTE",127809,{"$f":"COUNTIF(E:E,E70)","v":1},"Guilherme Pereira",2001,"Lisboa","Sport Algés e Dafundo",3,2,2,null,null,null,null,null,null,null,null,null,null,1]
["Masculino","-60",66,"28º SUPLENTE",145350,1,"Tomás Gonçalves",2002,"Setúbal","Grupo Desportivo Fabril do Barreiro",3,2,null,1,null,null,2]
["Masculino","-60",67,"32º SUPLENTE",147391,1,"Guilherme Cepeda",2001,"Lisboa","Sport Algés e Dafundo",{"$f":"SUM(M72:ZU72)","v":3},{"$f":"COUNT(M72:ZU72)","v":3},null,1,null,null,1,null,null,null,1]
["Masculino","-60",68,"32º SUPLENTE",140916,1,"Rafael Baptista",2003,"Lisboa","Os Preguiças – Colégio Integrado Monte Maior",3,3,null,null,null,null,null,null,null,null,null,null,null,1,null,null,1,1]
["Masculino","-60",69,"34º SUPLENTE",144636,1,"Ricardo Dias",2002,"Coimbra","Associação Recreativa de São Miguel",2,1,null,null,null,null,null,null,null,null,null,null,null,null,null,null,2]
["Masculino","-60",70,"34º SUPLENTE",125727,1,"Luís Costa",2003,"Braga","Associação Desportiva e Cultural Manhente",2,1,null,null,null,null,null,null,null,null,null,null,null,null,null,null,2]
["Masculino","-60",71,"34º SUPLENTE",110298,1,"Guilherme Rodrigres",2001,"Portalegre","Eléctrico Futebol Clube",2,1,null,null,null,null,null,null,null,null,null,null,null,null,null,null,null,null,null,2]
["Masculino","-60",72,"34º SUPLENTE",144348,1,"Jonatas Silva",2002,"Lisboa","Escola de Judo Nuno Delgado",2,1,null,null,null,null,null,null,null,null,null,null,null,null,null,null,null,2]
["Masculino","-60",73,"34º SUPLENTE",145694,1,"Alexandre Escudeiro",2003,"Lisboa","Judo Clube de Sintra",2,1,null,null,null,null,null,null,null,null,null,null,null,null,null,null,null,2]
["Masculino","-60",74,"34º SUPLENTE",129466,1,"Lourenço Miguel",2001,"Santarém","Sporting Clube de Tomar",2,1,null,null,null,null,null,null,null,null,null,null,null,null,null,null,null,null,null,null,null,null,2]
["Masculino","-60",75,"34º SUPLENTE",133132,1,"João Soares",2003,"Coimbra","Clube de Judo do Porto",2,1,null,null,null,null,null,null,null,null,null,null,null,null,null,null,null,null,null,null,null,null,2]
["Masculino","-60",76,"34º SUPLENTE",132411,1,"João Silva",2003,"V.Castelo","Associação Desportiva e Cultural Taiki-Budo",2,1,null,null,null,null,null,null,null,null,null,null,null,null,null,null,null,null,null,null,null,2]
["Masculino","-60",77,"42º SUPLENTE",141340,1,"Rodrigo Silvestre",2002,"Santarém","Grupo Recreativo 1º Outubro",2,2,null,null,1,null,null,1]
["Masculino","-60",78,"42º SUPLENTE",148920,1,"Pedro Mateus",2002,"Lisboa","Clube Atlético de Alvalade",2,2,null,1,null,null,null,null,null,null,1]
["Masculino","-60",79,"42º SUPLENTE",150888,1,"Emanuel Lourenço",2002,"C.Branco","Atlético Clube Fundanense",2,2,null,null,1,null,null,1]
["Masculino","-60",80,"42º SUPLENTE",120828,1,"Rúben Coutinho",2002,"Braga","Casa do Povo de Ronfe",2,2,null,null,null,null,null,null,1,null,null,null,null,null,null,null,null,null,null,null,null,1]
["Masculino","-60",81,"Efectivo 3º Z Açores",149767,1,"José Homem",2003,"I. Terceira","Clube de Judo da Praia da Vitória",2,2,null,null,null,null,null,null,null,null,null,null,null,null,null,1,null,null,null,null,null,null,null,1]
["Masculino","-60",82,"42º SUPLENTE",148879,1,"Bernardo Henriques",2001,"Aveiro","Associação 4Judo Project",2,2,null,null,null,null,null,null,null,null,null,null,null,null,null,null,1,null,null,null,null,1]
["Masculino","-60",83,"48º SUPLENTE",145729,1,"João Gregório",2002,"C.Branco","Escola de Judo Ana Hormigo",1,1,1]
["Masculino","-60",84,"48º SUPLENTE",124821,1,"Bernardo Vasconcelos",2002,"Santarém","Sporting Clube de Tomar",1,1,1]
["Masculino","-60",85,"48º SUPLENTE",147173,1,"Antonio Murias",2001,"Lisboa","Academia de Judo da Amadora",1,1,null,1]
["Masculino","-60",86,"48º SUPLENTE",128741,1,"Nelson Almeida",2002,"Braga","ARCAP - Associação Recreativa e Cultural \"Amigos da Ponte\"",1,1,1]
["Masculino","-60",87,"48º SUPLENTE",113793,1,"João Silva",2001,"Santarém","Grupo Recreativo 1º Outubro",1,1,null,null,null,null,null,1]
["Masculino","-60",88,"48º SUPLENTE",137572,1,"Daniel Rocha",2002,"Lisboa","Grupo Recreativo Gonçalvinhense",1,1,null,null,null,null,null,1]
["Masculino","-60",89,"48º SUPLENTE",150889,1,"Samuel Lourenço",2002,"C.Branco","Atlético Clube Fundanense",1,1,null,null,1]
["Masculino","-60",90,"48º SUPLENTE",147669,1,"Vasco Moura",2003,"Lisboa","Grupo Recreativo Gonçalvinhense",1,1,null,null,null,null,null,null,null,null,null,null,null,1]
["Masculino","-60",91,"48º SUPLENTE",140773,1,"André Lopes",2002,"Santarém","Sporting Clube de Tomar",1,1,null,null,null,null,null,null,null,null,null,null,null,1]
["Masculino","-60",92,"48º SUPLENTE",131214,1,"Vicente Santos",2001,"Lisboa","Ginásio Clube Portugues",1,1,null,null,null,null,null,null,null,1]
["Masculino","-60",93,"48º SUPLENTE",122161,1,"Gonçalo Silva",2003,"Coimbra","Escola de Judo de Coimbra",1,1,null,null,null,null,null,null,null,null,null,null,null,null,null,null,1]
["Masculino","-60",94,"48º SUPLENTE",127742,1,"Pedro Guerra",2003,"Lisboa","Assoc. Desp. Cult. Encarnacao e Olivais",1,1,null,null,null,null,null,null,null,null,null,null,null,null,null,null,null,1]
["Masculino","-60",95,"48º SUPLENTE",127753,1,"Afonso Boavida",2001,"Lisboa","Judo Clube de Lisboa",1,1,null,null,null,null,null,null,null,null,null,null,null,null,null,null,null,1]
["Masculino","-60",96,"48º SUPLENTE",151275,1,"Telmo Proença",2003,"C.Branco","Academia de Judo de Castelo Branco",1,1,null,null,null,null,null,null,null,null,null,null,null,null,null,null,null,null,null,1]
["Masculino","-60",97,"48º SUPLENTE",129192,{"$f":"COUNTIF(E:E,E102)","v":1},"Diogo Reis",2001,"Coimbra","Clube de Judo do Porto",1,1,null,null,null,null,null,null,null,null,null,null,null,null,null,null,null,null,null,null,null,null,1]
["Masculino","-60",98,"48º SUPLENTE",155492,1,"Augusto Oliveira",2001,"Coimbra","Casa do Povo de Miranda do Corvo",1,1,null,null,null,null,null,null,null,null,null,null,null,null,null,null,null,null,null,null,null,null,1]
["Masculino","-60",99,"48º SUPLENTE",137652,1,"Guilherme Pereiria",2002,"Santarém","Sporting Clube de Tomar",{"$f":"SUM(M104:ZU104)","v":1},{"$f":"COUNT(M104:ZU104)","v":1},null,null,null,null,null,null,null,null,null,null,null,null,null,null,null,null,null,null,null,null,1]
["Masculino","-60",100,"48º SUPLENTE",132415,1,"Tiago Oliveira",2002,"V.Castelo","Associação Desportiva e Cultural Taiki-Budo",1,1,null,null,null,null,null,null,null,null,null,null,null,null,null,null,null,null,null,null,null,1]
["Masculino","-60",101,"48º SUPLENTE",126126,1,"João Neca",2003,"Guarda","Sporting Clube do Sabugal",1,1,null,null,null,null,null,null,null,null,null,null,null,null,null,null,null,null,null,null,null,1]
["Masculino","-60",102,"48º SUPLENTE",145077,1,"André Pires",2002,"Aveiro","Associação Académica da Universidade de Aveiro",1,1,null,null,null,null,null,null,null,null,null,null,null,null,null,null,null,null,null,null,null,1]
["Masculino","-60",103,"48º SUPLENTE",155456,1,"Martim Moore",2003,"Algarve","Judo Clube de Lagos",1,1,null,null,null,null,null,null,null,null,null,null,null,null,null,null,null,null,null,null,1]
["Masculino","-60",104,"48º SUPLENTE",135053,1,"Valentim Santos",2002,"Algarve","C.AM.A. - Clube de Artes Marciais de Altura - Associação",1,1,null,null,null,null,null,null,null,null,null,null,null,null,null,null,null,null,null,null,1]
["Masculino","-60",105,"48º SUPLENTE",136270,1,"Daniel Madeira",2003,"Setúbal","Vitória Futebol Clube",1,1,null,null,null,null,null,null,null,null,null,null,null,null,null,null,null,null,null,null,1]

{"sheet":"-66","index":6,"n_rows":112,"n_cols":34,"rows_kept":112,"cut":false,"hidden":false,"merged":[]}
[null,null,null,null,null,null,null,null,null,"CADETES",{"$f":"TODAY()","v":"2018-02-14"}]
[null,null,null,null,null,null,null,null,null,"-66KG ",null,null,"FPJ","Lisboa","Castelo Branco","Coimbra","Setúbal","Coimbra","V. Castelo","I.Terceira","Santarém","I.Terceira","Madeira","Lisboa","Setúbal","I.Terceira","Coimbra","LISBOA","MADEIRA","C.BRANCO","ALGARVE","GUARDA","SANTARÉM","AÇORES"]
[null,null,null,null,null,null,null,null,null,null,null,null,"2017-02-11","2017-04-01","2017-04-22","2017-04-29","2017-05-13","2017-06-17","2017-06-17","2017-06-25","2017-07-02","2017-10-21","2017-10-21","2017-11-11","2017-11-18","2017-11-18","2017-12-16","2018-01-21","2018-01-27","2018-01-27","2018-01-27","2018-01-27","2018-01-28","2018-02-03"]
["Género","Categoria",null,null,"LF",null,"NOME","Ano de Nascimento","Associação","CLUBE","Somatório Pontos","Número de provas","Camp.Nac. Cadetes","Open Cadetes","Open Cadetes \"Mestre António Morais\"","OPEN INT. CIDADE BARCELOS","Taça Cidade do Montijo","V Taça António Lopes Aleixo","III Open Int. Eurocidade Valença Tui","Torneio 41 Ano I.Terceira","V Open Int. Cadetes","Torneio Outono","Open Cadetes","Open Cadetes","Torneio Aniversário JC Pragal","Torneio AJIT","Open Cadetes","Zonal de Cadetes","Zonal de Cadetes","Zonal de Cadetes","Zonal de Cadetes","Zonal de Cadetes","Zonal de Cadetes","Zonal de Cadetes"]
[null,null,null,null,null,null,null,null,null,null,null,null,{"$f":"COUNT(M6:M489)","v":24},24,18,7,14,10,5,1,17,1,2,17,21,1,27,23,3,5,12,5,15,7]
["Masculino","-66",1,"LISBOA",136581,{"$f":"COUNTIF(E:E,E6)","v":1},"Rodrigo Pires",2003,"Lisboa","Sport Lisboa e Benfica",{"$f":"SUM(M6:ZU6)","v":59},{"$f":"COUNT(M6:ZU6)","v":4},null,null,null,null,null,null,null,null,null,null,null,13,10,null,18,18]
["Masculino","-66",2,"MADEIRA",112300,1,"João Costa",2001,"Madeira","Judo Clube da Madeira",13,3,null,null,null,null,null,null,null,null,null,null,6,1,null,null,null,null,6]
["Masculino","-66",3,"CENTRO SUL",121426,1,"António Mega",2003,"C.Branco","Academia de Judo de Castelo Branco",8,2,null,null,null,null,null,null,null,null,null,null,null,null,null,null,1,null,null,7]
["Masculino","-66",4,"SUL",118230,1,"Tomás Góis",2001,"Algarve","Academia de Judo de Faro",53,4,11,null,null,null,11,null,null,null,18,null,null,null,null,null,null,null,null,null,13]
["Masculino","-66",5,"NORTE",128741,1,"Nelson Almeida",2002,"Braga","ARCAP - Associação Recreativa e Cultural \"Amigos da Ponte\"",11,2,null,null,null,1,null,null,null,null,null,null,null,null,null,null,null,null,null,null,null,10]
["Masculino","-66",6,"CENTRO",122161,1,"Gonçalo Silva",2003,"Coimbra","Escola de Judo de Coimbra",13,1,null,null,null,null,null,null,null,null,null,null,null,null,null,null,null,null,null,null,null,null,13]
["Masculino","-66",7,"AÇORES",139557,1,"Diogo Lopes",2003,"Açores","Judo Clube de São Carlos",21,3,null,null,null,null,null,null,null,null,null,null,null,null,7,null,5,null,null,null,null,null,null,9]
["Masculino","-66",8,"EFECTIVO",132177,{"$f":"COUNTIF(E:E,E13)","v":1},"Pedro Raposo",2002,"Lisboa","Sport Lisboa e Benfica",{"$f":"SUM(M13:ZU13)-N13-Q13-X13-Y13-AB13","v":60},{"$f":"COUNT(M13:ZU13)","v":10},13,2,14,null,1,10,null,null,11,null,null,2,6,null,12,2]
["Masculino","-66",10,"EFECTIVO",112253,1,"Jaques Rico",2001,"Lisboa","Judo Clube Lisboa",{"$f":"SUM(M14:ZU14)-Y14","v":55},6,14,14,null,null,null,null,null,null,null,null,null,11,1,null,2,14]
["Masculino","-66",9,"EFECTIVO",127809,1,"Guilherme Pereira",2001,"Lisboa","Sport Algés e Dafundo",{"$f":"SUM(M15:ZU15)-N15-R15-AB15","v":49},8,null,2,5,null,6,3,null,null,10,null,null,17,null,null,11,4]
["Masculino","-66",11,"EFECTIVO",120454,1,"David Barros",2002,"Lisboa","Judo Clube de Lisboa",{"$f":"SUM(M16:ZU16)","v":42},3,null,null,null,null,null,null,null,null,null,null,null,11,17,null,14]
["Masculino","-66",12,"EFECTIVO",113258,1,"Ricardo Venâncio",2002,"Lisboa","Sporting Clube de Portugal",{"$f":"SUM(M17:ZU17)","v":37},6,1,null,11,null,4,null,null,null,2,null,null,null,null,null,8,11]
["Masculino","-66",13,"EFECTIVO",117570,1,"Sebastião Oliveira",2001,"Lisboa","Sport Algés e Dafundo",{"$f":"SUM(M18:ZU18)-M18-N18-O18-AB18","v":25},9,1,1,1,null,2,7,null,null,7,null,null,6,null,null,3,1]
["Masculino","-66",15,"EFECTIVO",124106,1,"Vicente Ribeiro",2002,"Lisboa","Sporting Clube de Portugal",{"$f":"SUM(M19:ZU19)","v":23},2,null,12,null,null,11]
["Masculino","-66",16,"EFECTIVO",133090,1,"Bruno Costa",2001,"Braga","Associação Desportiva e Cultural Manhente",{"$f":"SUM(M20:ZU20)","v":23},4,7,null,null,7,null,null,7,null,null,null,null,null,null,null,2]
["Masculino","-66",14,"EFECTIVO",116178,1,"Frederico Espirito Santo",2001,"Lisboa","Sport Algés e Dafundo",{"$f":"SUM(M21:ZU21)-M21-X21","v":23},7,2,6,8,null,3,null,null,null,null,null,null,1,4,null,null,2]
["Masculino","-66",17,"EFECTIVO",123169,1,"Diogo Gancho",2003,"Setúbal","CCD-Clube Judo Montijo",{"$f":"SUM(M22:ZU22)","v":18},2,null,null,null,null,null,null,null,null,null,null,null,null,11,null,null,null,null,null,7]
["Masculino","-66",18,"EFECTIVO",139791,1,"Afonso Silva",2001,"Lisboa","Universidade Lusofona de Humanidades de Tecnologias",{"$f":"SUM(M23:ZU23)","v":17},2,null,null,null,null,null,null,null,null,null,null,null,6,null,null,null,11]
["Masculino","-66",19,"EFECTIVO",129183,1,"Miguel Martins",2001,"Lisboa","Universidade Lusofona de Humanidades de Tecnologias",{"$f":"SUM(M24:ZU24)","v":17},5,3,4,2,null,null,null,null,null,3,null,null,null,null,null,null,5]
["Masculino","-66",20,"EFECTIVO",110652,1,"Leonardo Coelho",2001,"Lisboa","Ginásio Clube Portugues",{"$f":"SUM(M25:ZU25)-N25","v":15},6,2,1,null,null,null,null,null,null,null,null,null,3,1,null,5,4]
["Masculino","-66",21,"EFECTIVO",130380,1,"André Mira",2001,"Setúbal","Vitoria Futebol Clube",15,3,2,4,null,null,null,null,null,null,null,null,null,null,null,null,null,null,null,null,9]
["Masculino","-66",22,"EFECTIVO",133642,1,"Bruno Barros",2001,"Santarém","Sport Clube Operário Cem Soldos",13,1,null,null,null,null,null,null,null,null,null,null,null,null,13]
["Masculino","-66",23,"EFECTIVO",119296,1,"João Esteves",2001,"V.Castelo","Judo Clube de Valença - Juvalença",13,3,2,null,null,7,null,null,4]
["Masculino","-66",24,"EFECTIVO",141770,1,"Marcelo Caetano",2002,"Coimbra","Associação Académica de Coimbra",13,4,null,1,null,3,null,null,null,null,null,null,null,null,null,null,2,null,null,null,null,null,7]
["Masculino","-66",25,"EFECTIVO",129538,1,"Diogo Alves",2001,"Lisboa","Escola de Judo Nuno Delgado",12,4,3,1,null,null,4,null,null,null,4]
["Masculino","-66",26,"EFECTIVO",120199,1,"João Garcês",2002,"Lisboa","Universidade Lusofona de Humanidades de Tecnologias",12,4,null,4,5,null,2,null,null,null,1]
["Masculino","-66",27,"EFECTIVO",123531,1,"Manuel Barbosa",2001,"Viseu","Clube de Judo de Viseu",11,5,1,null,1,2,null,null,5,null,2]
["Masculino","-66",28,"EFECTIVO",115483,1,"Gonçalo Mortágua",2001,"Coimbra","Escola de Judo de Coimbra",10,1,null,null,null,null,null,null,null,null,null,null,null,null,null,null,null,null,null,null,null,null,10]
["Masculino","-66",29,"EFECTIVO",124103,1,"Rodrigo Almeida",2003,"Lisboa","Judo Clube de Lisboa",10,4,null,null,null,null,null,null,null,null,null,null,null,2,4,null,1,3]
["Masculino","-66",30,"EFECTIVO",124229,1,"Maxim Gumeniuc",2001,"Lisboa","Sport Lisboa e Benfica",9,2,null,null,null,null,null,null,null,null,null,null,null,null,null,null,8,1]
["Masculino","-66",31,"EFECTIVO",126951,1,"Daniel Almeida",2001,"Setúbal","Externato Frei Luis de Sousa",9,2,null,null,null,null,null,null,null,null,null,null,null,null,3,null,null,null,null,null,6]
["Masculino","-66",32,"EFECTIVO",123565,1,"João Egea",2002,"Açores","Judo Clube de Ponta Delgada",9,2,null,null,null,null,null,null,null,null,null,null,null,null,2,null,null,null,null,null,null,null,null,7]
["Masculino","-66",33,"1º SUPLENTE",144636,{"$f":"COUNTIF(E:E,E38)","v":1},"Ricardo Dias",2002,"Coimbra","Associação Recreativa de São Miguel",{"$f":"SUM(M38:ZU38)","v":8},{"$f":"COUNT(M38:ZU38)","v":1},null,null,null,null,null,null,null,null,null,null,null,null,null,null,null,null,null,null,null,null,8]
["Masculino","-66",34,"Efectivo 2ª Z C.Sul",109731,1,"João Mendes",2002,"C.Branco","Academia de Judo de Castelo Branco",8,4,null,null,1,null,1,null,null,null,null,null,null,null,null,null,2,null,null,4]
["Masculino","-66",35,"3º SUPLENTE",124107,1,"Diogo Rangel",2003,"Lisboa","Sport Lisboa e Benfica",7,1,null,null,null,null,null,null,null,null,null,null,null,null,null,null,null,7]
["Masculino","-66",36,"3º SUPLENTE",155463,1,"Luiz Coelho",2002,"Porto","Boavista Futebol Clube",7,1,null,null,null,null,null,null,null,null,null,null,null,null,null,null,null,null,null,null,null,7]
["Masculino","-66",37,"Efectivo 3ª Z C.Sul",118601,1,"João Dias",2003,"C.Branco","Escola de Judo Ana Hormigo",7,2,null,null,null,null,null,null,null,null,null,null,null,null,null,null,1,null,null,6]
["Masculino","-66",38,"6º SUPLENTE",111668,1,"João Batista",2002,"C.Branco","Atlético clube fundanense",7,4,1,null,1,null,null,4,null,null,1]
["Masculino","-66",39,"6º SUPLENTE",143840,1,"David Silva",2003,"Algarve","Judo Clube de Lagos",7,4,null,null,null,null,null,null,null,null,null,null,null,4,1,null,1,null,null,null,1]
["Masculino","-66",40,"6º SUPLENTE",141832,1,"Alexandre Gitanu",2001,"Setúbal","Externato Frei Luis de Sousa",7,4,null,1,null,null,1,null,null,null,null,null,null,null,1,null,null,null,null,null,4]
["Masculino","-66",41,"9º SUPLENTE",143167,1,"Fábio Veríssimo",2002,"Santarém","Grupro Recreativo 1º de Outubro de 1911",7,5,null,1,null,1,null,1,null,null,1,null,null,null,null,null,null,null,null,null,null,null,3]
["Masculino","-66",42,"10º SUPLENTE",145350,1,"Tomás Gonçalves",2002,"Setúbal","Grupo Desportivo Fabril do Barreiro",6,2,null,null,null,null,null,null,null,null,null,null,null,null,2,null,null,null,null,null,4]
["Masculino","-66",43,"Efectivo 3º Z Açores",145546,1,"Bruno Carlos",2001,"Açores","Judo Clube de Ponta Delgada",6,2,null,null,null,null,null,null,null,null,null,null,null,null,1,null,null,null,null,null,null,null,null,5]
["Masculino","-66",44,"12º SUPLENTE",112940,1,"Leandro Monteiro",2001,"Santarém","Clube de Judo Riachos",6,3,1,null,null,null,null,1,null,null,4]
["Masculino","-66",45,"13º SUPLENTE",141340,1,"Rodrigo Silvestre",2002,"Santarém","Grupo Recreativo 1º Outubro",6,4,null,null,null,null,null,null,null,null,1,null,null,1,null,null,1,null,null,null,null,null,3]
["Masculino","-66",46,"14º SUPLENTE",113899,1,"João Vera",2001,"Lisboa","Colégio Marista de Carcavelos",5,3,2,1,null,null,null,null,null,null,null,null,null,null,2]
["Masculino","-66",47,"Efectivo 2º  Z. Madeira",112302,1,"Mauro Faria",2002,"Madeira","Clube Naval do Funchal",4,1,null,null,null,null,null,null,null,null,null,null,null,null,null,null,null,null,4]
["Masculino","-66",48,"15º SUPLENTE",142485,1,"Oceano Faria",2003,"Açores","Judo Clube de S. Jorge",4,1,null,null,null,null,null,null,null,null,null,null,null,null,null,null,null,null,null,null,null,null,null,4]
["Masculino","-66",49,"15º SUPLENTE",148437,1,"José Silva",2001,"Coimbra","Clube de Judo do Porto",4,1,null,null,null,null,null,null,null,null,null,null,null,null,null,null,null,null,null,null,null,null,4]
["Masculino","-66",50,"15º SUPLENTE",150770,1,"Diogo Rodrigues",2003,"Coimbra","Clube de Judo do Porto",4,1,null,null,null,null,null,null,null,null,null,null,null,null,null,null,null,null,null,null,null,null,4]
["Masculino","-66",51,"19º SUPLENTE",146282,1,"Daniel Moreira",2002,"Guarda","Clube de Judo da Guarda",4,2,null,null,null,null,null,null,null,null,null,null,null,null,null,null,1,null,null,null,null,3]
["Masculino","-66",52,"20º SUPLENTE",124387,1,"Simão Pereira",2001,"Leiria","Judo Clube Marinha Grande",4,3,2,null,null,null,null,1,null,null,null,null,null,null,null,null,1]
["Masculino","-66",53,"20º SUPLENTE",144439,1,"Pedro Costa",2002,"Lisboa","Judo Clube de Lisboa",4,3,null,null,null,null,null,null,null,null,2,null,null,1,null,null,1]
["Masculino","-66",54,"20º SUPLENTE",149091,1,"Rui Palma",2002,"Beja","Associacao Bombeiros Voluntarios de Beja",4,3,null,null,null,null,1,null,null,null,null,null,null,null,2,null,null,null,null,null,1]
["Masculino","-66",55,"20º SUPLENTE",128666,1,"Cosmin Pidghirnii",2002,"Algarve","Unbreakable Force - Associação Desportiva e Cultural",4,3,null,1,null,null,null,null,null,null,null,null,null,1,null,null,null,null,null,null,2]
["Masculino","-66",56,"24º SUPLENTE",122371,1,"Rodrigo Camara",2002,"I.Terceira","Clube de Judo da Praia da Vitória",4,4,1,null,null,null,null,null,null,1,null,1,null,null,null,1]
["Masculino","-66",57,"24º SUPLENTE",124821,1,"Bernardo Vasconcelos",2002,"Santarém","Sporting Clube de Tomar",4,4,null,1,1,null,null,null,null,null,1,null,null,null,null,null,null,null,null,null,null,null,1]
["Masculino","-66",58,"24º SUPLENTE",137572,1,"Daniel Rocha",2002,"Lisboa","Grupo Recreativo Gonçalvinhense",4,4,null,null,null,null,null,null,null,null,null,null,null,1,1,null,1,1]
["Masculino","-66",59,"27º SUPLENTE",113139,1,"Diogo Ferreira",2001,"Lisboa","Colégio Marista de Carcavelos",3,1,null,3]
["Masculino","-66",60,"27º SUPLENTE",146792,1,"Rodrigo Rufo",2002,"Portalegre","Casa do Povo de Castelo de Vide",3,1,null,null,null,null,null,null,null,null,null,null,null,null,null,null,null,null,null,3]
["Masculino","-66",61,"27º SUPLENTE",125727,1,"Luís Costa",2003,"Braga","Associação Desportiva e Cultural Manhente",3,1,null,null,null,null,null,null,null,null,null,null,null,null,null,null,null,null,null,null,null,3]
["Masculino","-66",62,"30º SUPLENTE",131860,1,"Pedro Medeiros",2001,"Açores","Judo Clube de Ponta Delgada",3,2,2,1]
["Masculino","-66",63,"30º SUPLENTE",139562,1,"Manuel Esteves",2001,"Lisboa","Sport Algés e Dafundo",3,2,null,1,null,null,2]
["Masculino","-66",64,"30º SUPLENTE",152794,1,"Silas Pereira",2002,"Setúbal","Clube Cultural e Recreativo do Alto do Moinho",3,2,null,null,null,null,null,null,null,null,null,null,null,null,1,null,2]
["Masculino","-66",65,"30º SUPLENTE",134391,{"$f":"COUNTIF(E:E,E70)","v":1},"Daniel Fino",2001,"Setúbal","Vitória Futebol Clube",{"$f":"SUM(M70:ZU70)","v":3},{"$f":"COUNT(M70:ZU70)","v":2},null,null,null,null,null,null,null,null,1,null,null,null,null,null,null,null,null,null,2]
["Masculino","-66",66,"30º SUPLENTE",144514,1,"Nuno Gomes",2001,"Aveiro","Clube Desportivo Feirense",3,3,null,null,1,null,null,1,null,null,null,null,null,null,1]
["Masculino","-66",67,"35º SUPLENTE",125624,1,"Afonso Gonçalves",2002,"Madeira","Clube Naval do Funchal",2,1,2]
["Masculino","-66",68,"35º SUPLENTE",120327,1,"Cristiano Gherman",2002,"Algarve","Judo Clube de Portimão",2,1,null,2]
["Masculino","-66",69,"35º SUPLENTE",148139,1,"André Soares",2001,"Aveiro","Clube Desportivo Feirense",2,1,null,null,null,null,null,2]
["Masculino","-66",70,"35º SUPLENTE",147555,1,"João Peixoto",2002,"Lisboa","União Mucifalense",2,1,null,2]
["Masculino","-66",71,"35º SUPLENTE",120756,1,"Gonçalo Rodrigues",2001,"Coimbra","Judo Clube de Barcelos - JUBA",2,1,null,null,null,null,null,null,2]
["Masculino","-66",72,"35º SUPLENTE",115085,1,"Diogo Cabreiro",2002,"Santarém","Sporting Clube de Tomar",2,1,null,null,2]
["Masculino","-66",73,"35º SUPLENTE",132175,1,"Martin Guibert",2002,"Lisboa","Judo Clube de Portugal",2,1,null,null,null,null,null,null,null,null,null,null,null,null,null,null,null,2]
["Masculino","-66",74,"35º SUPLENTE",139615,1,"Martim Garcia",2003,"Lisboa","Ginásio Clube Portugues",2,1,null,null,null,null,null,null,null,null,null,null,null,null,null,null,null,2]
["Masculino","-66",75,"35º SUPLENTE",118811,1,"João Bettencourt",2003,"Açores","Clube Escolar Desp. Escola Basica de Arrifes",2,1,null,null,null,null,null,null,null,null,null,null,null,null,null,null,null,null,null,null,null,null,null,2]
["Masculino","-66",76,"44º SUPLENTE",145594,1,"Gonçalo Correia",2001,"Aveiro","Associação Académica da Universidade de Aveiro",2,2,1,null,1]
["Masculino","-66",77,"44º SUPLENTE",144862,1,"Ricardo Martins",2001,"Santarém","Associação Académica e Desportiva de Rio Maior",2,2,null,null,1,null,null,null,null,null,1]
["Masculino","-66",78,"44º SUPLENTE",120736,1,"André Morgado",2002,"Santarém","Clube de Judo de Riachos",2,2,1,null,null,null,null,1]
["Masculino","-66",79,"44º SUPLENTE",145729,1,"João Gregório",2002,"C.Branco","Escola de Judo Ana Hormigo",2,2,null,null,1,null,1]
["Masculino","-66",80,"44º SUPLENTE",124016,1,"Pedro Barreno",2001,"Lisboa","A Turma dos Judokinhas - Associação Desportiva de Sintra",2,2,null,1,null,null,null,null,null,null,null,null,null,null,null,null,null,1]
["Masculino","-66",81,"Efectivo 3º Z. Madeira",153143,1,"Sérgio Abreu",2001,"Madeira","ACDGQ - Associação Cultural e Desportiva da Quinta Grande",2,2,null,null,null,null,null,null,null,null,null,null,1,null,null,null,null,null,1]
["Masculino","-66",82,"44º SUPLENTE",141622,1,"Jonathan Sousa",2003,"Santarém","Clube de Judo de Riachos",2,2,null,null,null,null,null,null,null,null,null,null,null,null,null,null,1,null,null,null,null,null,1]
["Masculino","-66",83,"44º SUPLENTE",117746,1,"Guilherme Minas",2003,"Coimbra","Associação Academica de Coimbra",2,2,null,null,null,null,null,null,null,null,null,null,null,null,null,null,1,null,null,null,null,null,1]
["Masculino","-66",84,"44º SUPLENTE",125481,1,"Diogo Ferreira",2002,"Coimbra","Associação Academica de Coimbra",2,2,null,null,null,null,null,null,null,null,null,null,null,null,null,null,1,null,null,null,null,null,1]
["Masculino","-66",85,"44º SUPLENTE",128642,1,"João Martins",2001,"Santarém","Grupo Recreativo 1º Outubro de 1911",2,2,null,null,null,null,null,null,null,null,null,null,null,null,null,null,1,null,null,null,null,null,1]
["Masculino","-66",86,"54º SUPLENTE",136089,1,"Tiago Lima",2001,"V.Castelo","Associação Desportiva e Cultural Taiki-Budo",1,1,null,null,null,null,null,null,1]
["Masculino","-66",87,"54º SUPLENTE",119509,1,"Francisco Gomes",2001,"Setúbal","Externato Frei Luis de Sousa",1,1,null,1]
["Masculino","-66",88,"54º SUPLENTE",147173,1,"António Murias",2001,"Lisboa","Academia de Judo da Amadora",1,1,null,null,1]
["Masculino","-66",89,"54º SUPLENTE",144863,1,"Rui Martins",2001,"Santarém","Associação Académica e Desportiva de Rio Maior",1,1,null,null,1]
["Masculino","-66",90,"54º SUPLENTE",141543,1,"Marco Borralho",2002,"Beja","Associacao Bombeiros Voluntarios de Beja",1,1,1]
["Masculino","-66",91,"54º SUPLENTE",122550,1,"Hugo Galamba",2001,"Lisboa","Sport Lisboa e Benfica",1,1,1]
["Masculino","-66",92,"54º SUPLENTE",152605,1,"Pedro Ribeiro",2002,"Coimbra","Judo Clube de Barcelos - JUBA",1,1,null,null,null,1]
["Masculino","-66",93,"54º SUPLENTE",131767,1,"Francisco Gil",2001,"Lisboa","Grupo Recreativo Gonçalvinhense",1,1,null,null,null,null,null,null,null,null,null,null,null,1]
["Masculino","-66",94,"54º SUPLENTE",147476,1,"Gilberto Domingos",2002,"Lisboa","Escola de Judo Nuno Delgado",1,1,null,null,null,null,null,null,null,null,null,null,null,null,null,null,null,1]
["Masculino","-66",95,"54º SUPLENTE",121703,1,"Miguel Pinheiro",2003,"Lisboa","Universidade Lusofona de Humanidades de Tecnologias",1,1,null,null,null,null,null,null,null,null,null,null,null,null,null,null,null,1]
["Masculino","-66",96,"54º SUPLENTE",117337,1,"Guilherme Santos",2002,"Lisboa","A Turma dos Judokinhas - Associação Desportiva de Sintra",1,1,null,null,null,null,null,null,null,null,null,null,null,null,null,null,null,1]
["Masculino","-66",97,"54º SUPLENTE",131552,{"$f":"COUNTIF(E:E,E102)","v":1},"Miguel Fontan",2002,"Lisboa","A Turma dos Judokinhas - Associação Desportiva de Sintra",{"$f":"SUM(M102:ZU102)","v":1},{"$f":"COUNT(M102:ZU102)","v":1},null,null,null,null,null,null,null,null,null,null,null,null,null,null,null,1]
["Masculino","-66",98,"54º SUPLENTE",151536,1,"Rafael Oliveira",2002,"Lisboa","Grupo Recreativo Gonçalvinhense",1,1,null,null,null,null,null,null,null,null,null,null,null,null,null,null,null,1]
["Masculino","-66",99,"54º SUPLENTE",113523,1,"Rodrigo Silva",2002,"Lisboa","Judo Clube de Portugal",1,1,null,null,null,null,null,null,null,null,null,null,null,null,null,null,null,1]
["Masculino","-66",100,"54º SUPLENTE",146696,1,"Francisco Amaral",2001,"C.Branco","Sport Tortosendo e Benfica",1,1,null,null,null,null,null,null,null,null,null,null,null,null,null,null,null,null,null,1]
["Masculino","-66",101,"54º SUPLENTE",135490,1,"Tiago Almeida",2003,"Açores","Judo Clube de Ponta Delgada",1,1,null,null,null,null,null,null,null,null,null,null,null,null,null,null,null,null,null,null,null,null,null,1]
["Masculino","-66",102,"54º SUPLENTE",137688,1,"Henrique Carreiro",2002,"Açores","JUDOLAG - Judo Clube Lagoa",1,1,null,null,null,null,null,null,null,null,null,null,null,null,null,null,null,null,null,null,null,null,null,1]
["Masculino","-66",103,"54º SUPLENTE",140773,1,"André Lopes",2002,"Santarém","Sporting Clube de Tomar",1,1,null,null,null,null,null,null,null,null,null,null,null,null,null,null,null,null,null,null,null,null,1]
["Masculino","-66",104,"54º SUPLENTE",148951,1,"Anton Mamus",2003,"Leiria","Clube de Judo \"O Dragão\"",1,1,null,null,null,null,null,null,null,null,null,null,null,null,null,null,null,null,null,null,null,null,1]
["Masculino","-66",105,"54º SUPLENTE",151981,1,"Tiago Miranda",2003,"Porto","Associação Desportiva Judo Force",1,1,null,null,null,null,null,null,null,null,null,null,null,null,null,null,null,null,null,null,null,1]
["Masculino","-66",106,"54º SUPLENTE",130503,1,"Carlos Oliveira",2003,"Setúbal","Externato Frei Luis de Sousa",1,1,null,null,null,null,null,null,null,null,null,null,null,null,null,null,null,null,null,null,1]
["Masculino","-66",107,"54º SUPLENTE",130418,1,"Denis Levchuk",2002,"Setúbal","Judo Clube do Pragal",1,1,null,null,null,null,null,null,null,null,null,null,null,null,null,null,null,null,null,null,1]

{"sheet":"-73","index":7,"n_rows":78,"n_cols":34,"rows_kept":78,"cut":false,"hidden":false,"merged":[]}
[null,null,null,null,null,null,null,null,null,"CADETES",{"$f":"TODAY()","v":"2018-02-14"}]
[null,null,null,null,null,null,null,null,null,"-73KG ",null,null,"FPJ","Lisboa","Castelo Branco","Coimbra","Setúbal","Coimbra","V. Castelo","I.Terceira","Santarém","I.Terceira","Madeira","Lisboa","Setúbal","I.Terceira","Coimbra","LISBOA","MADEIRA","C.BRANCO","ALGARVE","GUARDA","SANTARÉM","AÇORES"]
[null,null,null,null,null,null,null,null,null,null,null,null,"2017-02-11","2017-04-01","2017-04-22","2017-04-29","2017-05-13","2017-06-17","2017-06-17","2017-06-25","2017-07-02","2017-10-21","2017-10-21","2017-11-11","2017-11-18","2017-11-18","2017-12-16","2018-01-21","2018-01-27","2018-01-27","2018-01-27","2018-01-27","2018-01-28","2018-02-03"]
["Género","Categoria",null,null,"LF",null,"NOME","Ano de Nascimento","Associação","CLUBE","Somatório Pontos","Número de provas","Camp.Nac. Cadetes","Open Cadetes","Open Cadetes \"Mestre António Morais\"","OPEN INT. CIDADE BARCELOS","Taça Cidade do Montijo","V Taça António Lopes Aleixo","III Open Int. Eurocidade Valença Tui","Torneio 41 Ano I.Terceira","V Open Int. Cadetes","Torneio Outono","Open Cadetes","Open Cadetes","Torneio Aniversário JC Pragal","Torneio AJIT","Open Cadetes","Zonal de Cadetes","Zonal de Cadetes","Zonal de Cadetes","Zonal de Cadetes","Zonal de Cadetes","Zonal de Cadetes","Zonal de Cadetes"]
[null,null,null,null,null,null,null,null,null,null,null,null,{"$f":"COUNT(M6:M521)","v":18},13,9,4,10,5,4,0,8,0,2,12,14,0,16,11,2,5,9,8,8,9]
["Masculino","-73",1,"2º CLASSIFICADO 2017",128267,{"$f":"COUNTIF(E:E,E6)","v":1},"António Tetino",2001,"Lisboa","Escola de Judo Nuno Delgado",{"$f":"SUM(M6:ZU6)-N6-Q6","v":64},{"$f":"COUNT(M6:ZU6)","v":7},14,10,null,null,9,null,null,null,12,null,null,12,13,null,null,13]
["Masculino","-73",2,"LISBOA",125380,1,"Diogo Antunes",2001,"Lisboa","Sport Algés e Dafundo",{"$f":"SUM(M7:ZU7)-M7-N7-U7","v":42},{"$f":"COUNT(M7:ZU7)","v":8},1,2,null,null,7,8,null,null,3,null,null,10,null,null,8,9]
["Masculino","-73",3,"MADEIRA",125624,1,"Afonso Gonçalves",2002,"Madeira","Clube Naval do Funchal",{"$f":"SUM(M8:ZU8)","v":9},3,null,null,null,null,null,null,null,null,null,null,1,7,null,null,null,null,1]
["Masculino","-73",4,"CENTRO SUL",111668,1,"João Batista",2002,"C.Branco","Atlético Clube Fundanense",9,2,null,null,null,null,null,null,null,null,null,null,null,null,null,null,1,null,null,8]
["Masculino","-73",5,"SUL",140085,1,"Bernardo Lopes",2001,"Setúbal","Clube Recreativo Charnequense",{"$f":"SUM(M10:ZU10)-Q10","v":36},6,7,4,null,null,3,null,null,null,6,null,null,null,7,null,null,null,null,null,12]
["Masculino","-73",6,"NORTE",137621,1,"Nuno Oliveira",2001,"Porto","Associação Desportiva Judo Force",{"$f":"SUM(M11:ZU11)-M11-N11-O11","v":28},8,2,2,2,2,null,null,3,null,null,null,null,2,null,null,10,null,null,null,null,11]
["Masculino","-73",7,"CENTRO",124387,1,"Simão Pereira",2001,"Leiria","Judo Clube Marinha Grande",11,1,null,null,null,null,null,null,null,null,null,null,null,null,null,null,null,null,null,null,null,null,11]
["Masculino","-73",8,"AÇORES",142250,1,"Pedro Meneses",2001,"Açores","Judo Clube Ramo Grande",17,4,1,1,null,null,null,null,null,null,null,null,null,null,2,null,null,null,null,null,null,null,null,13]
["Masculino","-73",9,"EFECTIVO",108074,{"$f":"COUNTIF(E:E,E14)","v":1},"Francisco Rovira",2001,"Coimbra","Associação Academica de Coimbra",{"$f":"SUM(M14:ZU14)","v":50},{"$f":"COUNT(M14:ZU14)","v":5},11,13,7,null,null,6,null,null,null,null,null,null,null,null,13]
["Masculino","-73",10,"EFECTIVO",118793,1,"Rodrigo Boavida",2001,"Viseu","Judo Clube Viseu",{"$f":"SUM(M15:ZU15)","v":41},5,8,null,9,10,null,null,10,null,4]
["Masculino","-73",11,"EFECTIVO",124234,1,"Ruben Melo",2001,"Lisboa","Sport Lisboa e Benfica",{"$f":"SUM(M16:ZU16)-M16-Q16-X16","v":29},8,2,7,7,null,1,null,null,null,6,null,null,2,3,null,null,6]
["Masculino","-73",12,"EFECTIVO",139759,1,"Miguel Carrera",2002,"Setúbal","Clube de Judo Montijo",{"$f":"SUM(M17:ZU17)","v":24},4,null,null,null,null,7,4,null,null,null,null,null,null,4,null,null,null,null,null,9]
["Masculino","-73",14,"EFECTIVO",129538,1,"Diogo Alves",2001,"Lisboa","Escola de Judo Nuno Delgado",{"$f":"SUM(M18:ZU18)","v":20},3,null,null,null,null,null,null,null,null,null,null,null,7,3,null,null,10]
["Masculino","-73",13,"EFECTIVO",128819,1,"Francisco Silva",2002,"Porto"," Associação Desportiva Judo Force",{"$f":"SUM(M19:ZU19)-M19-X19","v":19},7,2,3,4,null,null,null,3,null,null,null,null,1,null,null,4,null,null,null,null,5]
["Masculino","-73",15,"EFECTIVO",128943,1,"Pedro Lima",2003,"Lisboa","Escola de Judo Nuno Delgado",{"$f":"SUM(M20:ZU20)","v":18},3,null,null,null,null,null,null,null,null,null,null,null,4,7,null,null,7]
["Masculino","-73",16,"EFECTIVO",124106,1,"Vicente Ribeiro",2002,"Lisboa","Sporting Clube de Portugal",{"$f":"SUM(M21:ZU21)","v":14},3,null,null,null,null,null,null,null,null,null,null,null,1,10,null,null,3]
["Masculino","-73",17,"EFECTIVO",137383,1,"Miguel Colesnic",2001,"Algarve","Unbreakable Force - Associação Desportiva e Cultural",{"$f":"SUM(M22:ZU22)","v":14},5,2,1,null,null,null,null,null,null,1,null,null,4,null,null,null,null,null,null,6]
["Masculino","-73",18,"EFECTIVO",112253,1,"Jaques Rico",2001,"Lisboa","Judo Clube Lisboa",{"$f":"SUM(M23:ZU23)","v":9},1,null,null,null,null,null,null,null,null,9]
["Masculino","-73",19,"EFECTIVO",122371,1,"Rodrigo Camara",2002,"I.Terceira","Clube de Judo da Praia da Vitória",{"$f":"SUM(M24:ZU24)","v":9},1,null,null,null,null,null,null,null,null,null,null,null,null,null,null,null,null,null,null,null,null,null,9]
["Masculino","-73",20,"EFECTIVO",113001,1,"Lucas Rosa",2001,"Leiria","Judo Clube Marinha Grande",9,2,null,null,null,null,null,null,null,null,null,null,null,null,null,null,4,null,null,null,null,null,5]
["Masculino","-73",21,"EFECTIVO",145594,1,"Gonçalo Correia",2001,"Aveiro","Associação Académica da Universidade de Aveiro",9,2,null,null,null,null,null,null,null,null,null,null,null,null,null,null,2,null,null,null,null,7]
["Masculino","-73",22,"EFECTIVO",145801,1,"Afonso Pimentel",2003,"Açores","Judo Clube de São Carlos",9,3,null,null,null,null,null,null,null,null,null,null,null,null,1,null,2,null,null,null,null,null,null,6]
["Masculino","-73",23,"EFECTIVO",123531,1,"Manuel Barbosa",2001,"Viseu","Clube de Judo de Viseu",8,2,null,null,null,null,null,null,null,null,null,null,null,null,null,null,7,null,null,null,null,1]
["Masculino","-73",24,"EFECTIVO",117964,1,"Guilherme Silva",2003,"Lisboa","Grupo Recreativo Gonçalvinhense",8,4,null,null,null,null,null,null,null,null,null,null,null,1,2,null,3,2]
["Masculino","-73",25,"EFECTIVO",112940,1,"Leandro Monteiro",2001,"Santarém","Clube de Judo de Riachos",7,1,null,null,null,null,null,null,null,null,null,null,null,null,null,null,null,null,null,null,null,null,7]
["Masculino","-73",26,"EFECTIVO",120327,1,"Cristiano Gherman",2002,"Algarve","Judo Clube de Portimão",7,1,null,null,null,null,null,null,null,null,null,null,null,null,null,null,null,null,null,null,7]
["Masculino","-73",27,"EFECTIVO",145729,1,"João Gregório",2002,"C.Branco","Escola de Judo Ana Hormigo",7,2,null,null,null,null,null,null,null,null,null,null,null,null,null,null,1,null,null,6]
["Masculino","-73",28,"EFECTIVO",137614,1,"Bruno Silva",2001,"Açores","Clube de Judo de Angra do Heroismo",6,1,null,null,null,null,null,null,null,null,null,null,null,null,null,null,null,null,null,null,null,null,null,6]
["Masculino","-73",29,"EFECTIVO",117288,1,"Pedro Matos",2001,"Lisboa","Sport Algés e Dafundo",6,2,2,null,null,null,4]
["Masculino","-73",30,"EFECTIVO",113747,1,"Diogo Gonçalves",2002,"C.Branco","Academia de Judo de Castelo Branco",6,4,null,null,1,null,null,null,null,null,null,null,null,null,null,null,1,null,2,2]
["Masculino","-73",31,"EFECTIVO",119561,1,"Paulo Cortesão",2001,"Coimbra","Escola de judo de Coimbra",5,2,3,null,null,null,null,2]
["Masculino","-73",32,"EFECTIVO",130824,1,"José Faria",2001,"Braga","ARCAP - Associação Recreativa e Cultural \"Amigos da Ponte\"",5,2,1,null,null,4]
["Masculino","-73",33,"EFECTIVO",125346,{"$f":"COUNTIF(E:E,E38)","v":1},"Manuel Salvado",2003,"C.Branco","Escola de Judo Ana Hormigo",5,2,null,null,null,null,null,null,null,null,null,null,null,null,null,null,1,null,null,4]
["Masculino","-73",34,"1º SUPLENTE",144366,1,"Martim Louzeiro",2002,"Lisboa","Ginásio Clube Portugues",{"$f":"SUM(M39:ZU39)","v":5},{"$f":"COUNT(M39:ZU39)","v":3},2,2,null,null,1]
["Masculino","-73",35,"2º SUPLENTE",151095,1,"Marco Borges",2002,"Lisboa","Sport Algés e Dafundo",4,1,null,null,4]
["Masculino","-73",36,"2º SUPLENTE",149664,1,"Henrique Mota",2001,"Açores","JUDOLAG - Judo Clube Lagoa",4,1,null,null,null,null,null,null,null,null,null,null,null,null,null,null,null,null,null,null,null,null,null,4]
["Masculino","-73",37,"2º SUPLENTE",129470,1,"Luís Pereira",2002,"Coimbra","Judo Clube de Barcelos - JUBA",4,1,null,null,null,null,null,null,null,null,null,null,null,null,null,null,null,null,null,null,null,null,4]
["Masculino","-73",38,"2º SUPLENTE",131942,1,"Leandro Domingos",2003,"Algarve","Clube Desportivo Areias de São João",4,1,null,null,null,null,null,null,null,null,null,null,null,null,null,null,null,null,null,null,4]
["Masculino","-73",39,"6º SUPLENTE",142615,1,"Pedro Gil",2003,"Guarda","Clube de Judo da Guarda",4,2,null,null,null,null,null,null,null,null,null,null,null,null,null,null,1,null,null,null,null,3]
["Masculino","-73",40,"7º SUPLENTE",153629,1,"Lucas Ourique",2001,"Açores","Judo Clube Ramo Grande",3,1,null,null,null,null,null,null,null,null,null,null,null,null,null,null,null,null,null,null,null,null,null,3]
["Masculino","-73",41,"7º SUPLENTE",130378,1,"Afonso Ferreira",2002,"Setúbal","Vitória Futebol Clube",3,1,null,null,null,null,null,null,null,null,null,null,null,null,null,null,null,null,null,null,3]
["Masculino","-73",42,"9º SUPLENTE",113138,1,"Eduardo Rodrigues",2002,"Lisboa","Colégio Marista de Carcavelos",3,2,1,2]
["Masculino","-73",43,"9º SUPLENTE",144863,1,"Rui Martins",2001,"Santarém","Associação Académica e Desportiva de Rio Maior",3,2,null,null,null,null,null,null,null,null,2,null,null,null,null,null,null,null,null,null,null,null,1]
["Masculino","-73",44,"9º SUPLENTE",153566,1,"Eduardo Marreiros",2002,"Algarve","Judo Clube de Lagos",3,2,null,null,null,null,null,null,null,null,null,null,null,null,null,null,2,null,null,null,1]
["Masculino","-73",45,"12º SUPLENTE",141124,1,"Diogo Côrte",2002,"C.Branco","Associação Escola Judo Ana Hormigo",3,3,1,null,1,null,null,null,null,null,null,null,null,null,null,null,null,null,null,1]
["Masculino","-73",46,"12º SUPLENTE",113139,1,"Diogo Ferreira",2001,"Lisboa","Colégio Marista de Carcavelos",3,3,null,null,null,null,null,null,null,null,null,null,null,1,1,null,null,1]
["Masculino","-73",47,"14º SUPLENTE",110652,1,"Leonardo Coelho",2001,"Lisboa","Ginásio Clube Portugues",2,1,null,null,null,null,2]
["Masculino","-73",48,"14º SUPLENTE",126286,1,"João Lima",2003,"Açores","Clube Escolar Desp. Escola Basica de Arrifes",2,1,null,null,null,null,null,null,null,null,null,null,null,null,null,null,null,null,null,null,null,null,null,2]
["Masculino","-73",49,"14º SUPLENTE",139971,1,"Dávid Domingos",2001,"Santarém","Casa do Povo de Rio Maior",2,1,null,null,null,null,null,null,null,null,null,null,null,null,null,null,null,null,null,null,null,null,2]
["Masculino","-73",50,"14º SUPLENTE",120736,1,"André Morgado",2002,"Santarém","Clube de Judo de Riachos",2,1,null,null,null,null,null,null,null,null,null,null,null,null,null,null,null,null,null,null,null,null,2]
["Masculino","-73",51,"14º SUPLENTE",133090,1,"Bruno Costa",2001,"Braga","Associação Desportiva e Cultural Manhente",2,1,null,null,null,null,null,null,null,null,null,null,null,null,null,null,null,null,null,null,null,2]
["Masculino","-73",52,"14º SUPLENTE",153375,1,"Diogo Almeida",2002,"Viseu","Judo Clube de Viseu",2,1,null,null,null,null,null,null,null,null,null,null,null,null,null,null,null,null,null,null,null,2]
["Masculino","-73",53,"14º SUPLENTE",148139,1,"André Soares",2001,"Aveiro","Associação 4Judo Project",2,1,null,null,null,null,null,null,null,null,null,null,null,null,null,null,null,null,null,null,null,2]
["Masculino","-73",54,"21º SUPLENTE",140525,1,"Diogo Carrapiço",2002,"Setúbal","Clube Recreativo Charnequense",2,2,1,null,null,null,1]
["Masculino","-73",55,"21º SUPLENTE",140294,1,"Marco Afonso",2002,"C.Branco","Associação Escola Judo Ana Hormigo",2,2,null,null,1,null,null,1]
["Masculino","-73",56,"21º SUPLENTE",125266,1,"Francisco Ramalho",2003,"Lisboa","Colégio Marista de Carcavelos",2,2,null,null,null,null,null,null,null,null,null,null,null,null,1,null,null,1]
["Masculino","-73",57,"24º SUPLENTE",135040,1,"Rodrigo Santos",2002,"C.Branco","Academia de Judo de Castelo Branco",1,1,1]
["Masculino","-73",58,"24º SUPLENTE",147387,1,"Dinis Morgado",2002,"Lisboa","Judo clube de Portugal",1,1,null,1]
["Masculino","-73",59,"24º SUPLENTE",127036,1,"Diogo Santos",2002,"Setúbal","Vitória Futebol Clube",1,1,null,1]
["Masculino","-73",60,"24º SUPLENTE",142278,1,"Diogo Fernandes",2001,"Braga","Casa do Povo de Ronfe",1,1,null,null,null,1]
["Masculino","-73",61,"24º SUPLENTE",135240,1,"Rodrigo Costa",2001,"Lisboa","Universidade Lusofona de Humanidades de Tecnologias",1,1,null,null,null,null,1]
["Masculino","-73",62,"24º SUPLENTE",125885,1,"Diogo Costa",2001,"V.Castelo","Judo Clube de Valença - Juvalença",1,1,null,null,null,null,null,null,1]
["Masculino","-73",63,"24º SUPLENTE",122740,1,"Marco Vieira",2003,"Madeira","Judo Clube da Madeira",1,1,null,null,null,null,null,null,null,null,null,null,1]
["Masculino","-73",64,"24º SUPLENTE",134425,1,"David Prokopchuk",2002,"Setúbal","Judo Clube do Pragal",1,1,null,null,null,null,null,null,null,null,null,null,null,null,1]
["Masculino","-73",65,"24º SUPLENTE",137886,{"$f":"COUNTIF(E:E,E70)","v":1},"Danilo Prforov",2002,"Setúbal","Sociedade Filarmónica União Artística Piedense",1,1,null,null,null,null,null,null,null,null,null,null,null,null,1]
["Masculino","-73",66,"24º SUPLENTE",155054,1,"Yevgeniy Vysochyna",2002,"Guarda","Clube de Judo da Guarda",{"$f":"SUM(M71:ZU71)","v":1},{"$f":"COUNT(M71:ZU71)","v":1},null,null,null,null,null,null,null,null,null,null,null,null,null,null,1]
["Masculino","-73",67,"24º SUPLENTE",135526,1,"Maik Verheij",2002,"Algarve","C.AM.A. - Clube de Artes Marciais de Altura - Associação",1,1,null,null,null,null,null,null,null,null,null,null,null,null,null,null,null,null,null,null,1]
["Masculino","-73",68,"24º SUPLENTE",113889,1,"João Vera",2001,"Lisboa","Colégio Marista de Carcavelos",1,1,null,null,null,null,null,null,null,null,null,null,null,null,null,null,null,1]
["Masculino","-73",69,"24º SUPLENTE",120199,1,"João Garcês",2002,"Lisboa","Universidade Lusofona de Humanidades de Tecnologias",1,1,null,null,null,null,null,null,null,null,null,null,null,null,null,null,null,1]
["Masculino","-73",70,"24º SUPLENTE",150466,1,"Ruben Avelar",2003,"Açores","Judo Clube de São Carlos",1,1,null,null,null,null,null,null,null,null,null,null,null,null,null,null,null,null,null,null,null,null,null,1]
["Masculino","-73",71,"24º SUPLENTE",153040,1,"Sérgio Mateus",2003,"Açores","Clube Escolar Desp. Escola Basica de Arrifes",1,1,null,null,null,null,null,null,null,null,null,null,null,null,null,null,null,null,null,null,null,null,null,1]
["Masculino","-73",72,"24º SUPLENTE",134707,1,"Gonçalo Costa",2003,"Leiria","Grupo Desportivo de Santo Amaro",1,1,null,null,null,null,null,null,null,null,null,null,null,null,null,null,null,null,null,null,null,null,1]
["Masculino","-73",73,"24º SUPLENTE",147390,1,"Lucas Duarte",2003,"Setúbal","Vitória Futebol Clube",1,1,null,null,null,null,null,null,null,null,null,null,null,null,null,null,null,null,null,null,1]

{"sheet":"-81","index":8,"n_rows":38,"n_cols":34,"rows_kept":38,"cut":false,"hidden":false,"merged":[]}
[null,null,null,null,null,null,null,null,null,"CADETES",{"$f":"TODAY()","v":"2018-02-14"}]
[null,null,null,null,null,null,null,null,null,"-81KG ",null,null,"FPJ","Lisboa","Castelo Branco","Coimbra","Setúbal","Coimbra","V. Castelo","I.Terceira","Santarém","I.Terceira","Madeira","Lisboa","Setúbal","I.Terceira","Coimbra","LISBOA","MADEIRA","C.BRANCO","ALGARVE","GUARDA","SANTARÉM","AÇORES"]
[null,null,null,null,null,null,null,null,null,null,null,null,"2017-02-11","2017-04-01","2017-04-22","2017-04-29","2017-05-13","2017-06-17","2017-06-17","2017-06-25","2017-07-02","2017-10-21","2017-10-21","2017-11-11","2017-11-18","2017-11-18","2017-12-16","2018-01-21","2018-01-27","2018-01-27","2018-01-27","2018-01-27","2018-01-28","2018-02-03"]
["Género","Categoria",null,null,"LF",null,"NOME","Ano de Nascimento","Associação","CLUBE","Somatório de pontos","Número de provas","Camp.Nac. Cadetes","Open Cadetes","Open Cadetes \"Mestre António Morais\"","OPEN INT. CIDADE BARCELOS","Taça Cidade do Montijo","V Taça António Lopes Aleixo","III Open Int. Eurocidade Valença Tui","Torneio 41 Ano I.Terceira","V Open Int. Cadetes","Torneio Outono","Open Cadetes","Open Cadetes","Torneio Aniversário JC Pragal","Torneio AJIT","Open Cadetes","Zonal de Cadetes","Zonal de Cadetes","Zonal de Cadetes","Zonal de Cadetes","Zonal de Cadetes","Zonal de Cadetes","Zonal de Cadetes"]
[null,null,null,null,null,null,null,null,null,null,null,null,{"$f":"COUNT(M6:M545)","v":11},5,5,4,5,2,2,0,3,0,0,10,5,0,9,7,1,4,1,7,6,1]
["Masculino","-81",1,"1º CLASSIFICADO 2017",108075,{"$f":"COUNTIF(E:E,E6)","v":1},"Vicente Rovira",2001,"Coimbra","Associação Académica de Coimbra",{"$f":"SUM(M6:ZU6)-O6","v":54},{"$f":"COUNT(M6:ZU6)","v":6},17,7,6,null,null,7,null,null,null,null,null,null,null,null,13,null,null,null,null,null,10]
["Masculino","-81",2,"2º CLASSIFICADO 2017",112121,1,"José Cardoso",2001,"Santarém","Sport Clube Operário Cem Soldos",{"$f":"SUM(M7:ZU7)","v":25},{"$f":"COUNT(M7:ZU7)","v":3},13,null,9,null,null,null,null,null,null,null,null,null,null,null,null,null,null,null,null,null,3]
["Masculino","-81",3,"LISBOA",124933,1,"João Afonso",2001,"Lisboa","Sport Algés e Dafundo",26,3,11,4,null,null,null,null,null,null,null,null,null,null,null,null,null,11]
["Masculino","-81",4,"MADEIRA",122740,1,"Marco Vieira",2003,"Madeira","Judo Clube da Madeira",8,2,null,null,null,null,null,null,null,null,null,null,null,7,null,null,null,null,1]
["Masculino","-81",5,"CENTRO SUL",140294,1,"Marco Afonso",2002,"C.Branco","Associação Escola Judo Ana Hormigo",9,2,null,null,null,null,2,null,null,null,null,null,null,null,null,null,null,null,null,7]
["Masculino","-81",6,"SUL",140525,1,"Diogo Carrapiço",2002,"Setúbal","Clube Recreativo Charnequense",8,2,null,null,null,null,null,null,null,null,null,null,null,null,7,null,null,null,null,null,1]
["Masculino","-81",7,"NORTE",118793,1,"Rodrigo Boavida",2001,"Viseu","Judo Clube Viseu",20,2,null,null,null,null,null,null,null,null,null,null,null,null,null,null,9,null,null,null,null,11]
["Masculino","-81",8,"CENTRO",108074,1,"Francisco Rovira",2001,"Coimbra","Associação Academica de Coimbra",7,1,null,null,null,null,null,null,null,null,null,null,null,null,null,null,null,null,null,null,null,null,7]
["Masculino","-81",9,"AÇORES",148936,1,"Rafael Colaço",2002,"I. Terceira","Clube de Judo da Praia da Vitória",1,1,null,null,null,null,null,null,null,null,null,null,null,null,null,null,null,null,null,null,null,null,null,1]
["Masculino","-81",11,"EFECTIVO",149131,{"$f":"COUNTIF(E:E,E15)","v":1},"Yan Ferreira",2001,"V.Castelo","Sport Clube Vianense",{"$f":"SUM(M15:ZU15)-M15-O15","v":28},{"$f":"COUNT(M15:ZU15)","v":7},1,2,1,8,null,null,null,null,null,null,null,7,null,null,4,null,null,null,null,7]
["Masculino","-81",10,"EFECTIVO",111959,{"$f":"COUNTIF(E:E,E16)","v":1},"Ricardo Lopes",2002,"V.Castelo","Judo Clube de Caminha \"Jucaminha\"",{"$f":"SUM(M16:ZU16)-M16-N16-O16-P16-U16","v":22},10,1,1,1,4,4,null,4,null,3,null,null,4,null,null,6,null,null,null,null,4]
["Masculino","-81",12,"EFECTIVO",116005,{"$f":"COUNTIF(E:E,E17)","v":1},"Gonçalo Correia",2002,"Lisboa","Colégio Marista de Carcavelos",{"$f":"SUM(M17:ZU17)","v":20},5,4,2,null,null,null,null,null,null,null,null,null,9,4,null,null,1]
["Masculino","-81",13,"EFECTIVO",116124,{"$f":"COUNTIF(E:E,E18)","v":1},"Henrique Costa",2001,"Lisboa","Associação Humanitária de Bombeiros dos Estoris",{"$f":"SUM(M18:ZU18)","v":19},2,null,null,null,null,null,null,null,null,null,null,null,12,null,null,null,7]
["Masculino","-81",14,"EFECTIVO",134848,1,"Alexandre Soares",2002,"Coimbra","Associação Cristã da Mocidade de Coimbra",{"$f":"SUM(M19:ZU19)","v":15},3,6,null,null,null,null,null,null,null,null,null,null,null,null,null,6,null,null,null,null,null,3]
["Masculino","-81",15,"EFECTIVO",127155,{"$f":"COUNTIF(E:E,E20)","v":1},"João Novais",2001,"Santarém ","Sporting Clube de tomar",{"$f":"SUM(M20:ZU20)-U20","v":12},6,3,null,4,null,null,3,null,null,1,null,null,1,null,null,null,null,null,null,null,null,1]
["Masculino","-81",16,"EFECTIVO",144366,1,"Martim Louzeiro",2002,"Lisboa","Ginásio Clube Portugues",{"$f":"SUM(M21:ZU21)","v":11},4,null,null,null,null,null,null,null,null,null,null,null,3,3,null,1,4]
["Masculino","-81",17,"EFECTIVO",125885,1,"Diogo Costa",2001,"V.Castelo","Judo Clube de Valença - Juvalença",10,3,1,null,null,6,null,null,null,null,null,null,null,null,null,null,null,null,null,null,null,3]
["Masculino","-81",18,"EFECTIVO",124932,1,"Filipe Pinto",2002,"Lisboa","Sporting Clube de Portugal",8,3,null,null,null,null,null,null,null,null,null,null,null,1,6,null,null,1]
["Masculino","-81",19,"EFECTIVO",147300,1,"Diogo Matias",2001,"C.Branco","Sport Tortosendo e Benfica",5,1,null,null,null,null,null,null,null,null,null,null,null,null,null,null,null,null,null,5]
["Masculino","-81",20,"EFECTIVO",148874,1,"Tiago Silva",2002,"Braga","Associação Desportiva e Cultural Manhente",5,3,null,null,null,null,null,null,3,null,null,null,null,null,null,null,1,null,null,null,null,1]
["Masculino","-81",21,"EFECTIVO",153265,1,"Miguel Miguel",2002,"Lisboa","Sport Algés e Dafundo",5,3,null,null,null,null,null,null,null,null,null,null,null,1,1,null,null,3]
["Masculino","-81",22,"EFECTIVO",147111,1,"João Oliveira",2002,"Braga","Casa do Povo de Ronfe",4,2,null,null,null,null,null,null,null,null,null,null,null,null,null,null,3,null,null,null,null,1]
["Masculino","-81",23,"EFECTIVO",135040,{"$f":"COUNTIF(E:E,E28)","v":1},"Rodrigo Santos",2002,"C.Branco","Academia de Judo de Castelo Branco",4,2,null,null,null,null,1,null,null,null,null,null,null,null,null,null,null,null,null,3]
["Masculino","-81",24,"EFECTIVO",144327,1,"Daniel Rosado",2001,"Setúbal","Academia de Instrução e Recreio Almadense",3,1,null,null,null,null,3]
["Masculino","-81",25,"EFECTIVO",151095,1,"Marco Borges",2002,"Lisboa","Sport Algés e Dafundo",3,1,null,null,null,null,null,null,null,null,3]
["Masculino","-81",26,"EFECTIVO",115718,1,"António Rebelo",2002,"Leiria","Clube de Judo \"O Dragão\"",2,1,2]
["Masculino","-81",27,"EFECTIVO",155054,{"$f":"COUNTIF(E:E,E32)","v":1},"Yevgeniy Vysochyna",2002,"Guarda","Clube de Judo da Guarda",2,1,null,null,null,null,null,null,null,null,null,null,null,null,null,null,null,null,null,null,null,2]
["Masculino","-81",28,"EFECTIVO",113138,1,"Eduardo Rodrigues",2002,"Lisboa","Colégio Marista de Carcavelos",2,2,null,null,null,null,null,null,null,null,null,null,null,1,null,null,null,1]
["Masculino","-81",29,"EFECTIVO",149108,1,"Armando Oliveira",2003,"Coimbra","Associação Recreativa de São Miguel",2,2,null,null,null,null,null,null,null,null,null,null,null,null,null,null,1,null,null,null,null,null,1]
["Masculino","-81",30,"EFECTIVO",139971,1,"David Domingos",2001,"Santarém","Casa do Povo de Rio Maior",1,1,1]
["Masculino","-81",31,"EFECTIVO",151537,1,"José Silva",2002,"Braga","ARCAP - Associação Recreativa e Cultural \"Amigos da Ponte\"",1,1,null,null,null,1]
["Masculino","-81",32,"EFECTIVO",113747,1,"Diogo Gonçalves",2002,"C.Branco","Academia de Judo de Castelo Branco",1,1,null,null,null,null,1]
["Masculino","-81",33,"EFECTIVO",153905,1,"Gabriel Monteiro",2003,"Portalegre","Centro Popular Trab. Bairro da Boa-Fé",1,1,null,null,null,null,null,null,null,null,null,null,null,null,null,null,null,null,null,1]

{"sheet":"+81","index":9,"n_rows":21,"n_cols":34,"rows_kept":21,"cut":false,"hidden":false,"merged":[]}
[null,null,null,null,null,null,null,null,null,"CADETES",{"$f":"TODAY()","v":"2018-02-14"}]
[null,null,null,null,null,null,null,null,null,"+81KG ",null,null,"FPJ","Lisboa","Castelo Branco","Coimbra","Setúbal","Coimbra","V. Castelo","I.Terceira","Santarém","I.Terceira","Madeira","Lisboa","Setúbal","I.Terceira","Coimbra","LISBOA","MADEIRA","C.BRANCO","ALGARVE","GUARDA","SANTARÉM","AÇORES"]
[null,null,null,null,null,null,null,null,null,null,null,null,"2017-02-11","2017-04-01","2017-04-22","2017-04-29","2017-05-13","2017-06-17","2017-06-17","2017-06-25","2017-07-02","2017-10-21","2017-10-21","2017-11-11","2017-11-18","2017-11-18","2017-12-16","2018-01-21","2018-01-27","2018-01-27","2018-01-27","2018-01-27","2018-01-28","2018-02-03"]
["Género","Categoria",null,null,"LF",null,"NOME","Ano de Nascimento","Associação","CLUBE","Somatório de pontos","Número de provas","Camp.Nac. Cadetes","Open Cadetes","Open Cadetes \"Mestre António Morais\"","OPEN INT. CIDADE BARCELOS","Taça Cidade do Montijo","V Taça António Lopes Aleixo","III Open Int. Eurocidade Valença Tui","Torneio 41 Ano I.Terceira","V Open Int. Cadetes","Torneio Outono","Open Cadetes","Open Cadetes","Torneio Aniversário JC Pragal","Torneio AJIT","Open Cadetes","Zonal de Cadetes","Zonal de Cadetes","Zonal de Cadetes","Zonal de Cadetes","Zonal de Cadetes","Zonal de Cadetes","Zonal de Cadetes"]
[null,null,null,null,null,null,null,null,null,null,null,null,{"$f":"COUNT(M6:M557)","v":0},1,3,0,2,0,1,0,2,0,1,4,1,0,7,5,0,0,0,0,1,2]
["Masculino","+81",1,"LISBOA",121008,{"$f":"COUNTIF(E:E,E6)","v":1},"Artur Matias",2001,"Lisboa","Sport Lisboa e Benfica",{"$f":"SUM(M6:ZU6)-N6","v":32},{"$f":"COUNT(M6:ZU6)","v":6},null,2,7,null,6,null,null,null,6,null,null,5,null,null,null,8]
["Masculino","+81",2,"CENTRO",139423,1,"Tiago Marques",2001,"Leiria","Grupo Desportivo Santo Amaro",{"$f":"SUM(M7:ZU7)","v":1},{"$f":"COUNT(M7:ZU7)","v":1},null,null,null,null,null,null,null,null,null,null,null,null,null,null,null,null,null,null,null,null,1]
["Masculino","+81",3,"AÇORES",114819,1,"Rodrigo Saraiva",2001,"Açores","Judo Clube Ponta Delgada",6,1,null,null,null,null,null,null,null,null,null,null,null,null,null,null,null,null,null,null,null,null,null,6]
["Masculino","+81",4,"EFECTIVO",120367,1,"Eduardo Silva",2001,"Porto","Associação Desportiva Judo Force",17,2,null,null,null,null,null,null,null,null,null,null,null,7,null,null,10]
["Masculino","+81",5,"EFECTIVO",153222,1,"José Pacheco",2002,"Lisboa","Sport Lisboa e Benfica",11,4,null,null,null,null,null,null,null,null,null,null,null,3,6,null,1,1]
["Masculino","+81",6,"EFECTIVO",150311,1,"Rafael Graça",2001,"Lisboa","Universidade Lusofona de Humanidades de Tecnologias",9,2,null,null,3,null,null,null,null,null,null,null,null,null,null,null,null,6]
["Masculino","+81",7,"EFECTIVO",142278,1,"Diogo Fernandes",2001,"Braga","Casa do Povo de Ronfe",7,2,null,null,null,null,null,null,1,null,null,null,null,null,null,null,6]
["Masculino","+81",8,"EFECTIVO",152561,1,"Hugo Bernardo",2001,"Guarda","Clube de Judo da Guarda",7,3,null,null,1,null,null,null,null,null,1,null,null,null,null,null,5]
["Masculino","+81",9,"EFECTIVO",148950,1,"Tiago Francisco",2001,"Leiria","Escola de Judo de Pombal",4,1,null,null,null,null,null,null,null,null,null,null,null,null,null,null,4]
["Masculino","+81",10,"EFECTIVO",113898,1,"Pedro Vera",2001,"Lisboa","Colégio Marista de Carcavelos",4,1,null,null,null,null,null,null,null,null,null,null,null,null,null,null,null,4]
["Masculino","+81",11,"EFECTIVO",151721,1,"Gonçalo Tavares",2003,"Lisboa","Escola de Judo Nuno Delgado",3,1,null,null,null,null,null,null,null,null,null,null,null,null,null,null,null,3]
["Masculino","+81",12,"EFECTIVO",116365,1,"Miguel Oliveira",2003,"Porto","Associação Desportiva Judo Force",3,2,null,null,null,null,null,null,null,null,null,null,null,1,null,null,2]
["Masculino","+81",13,"EFECTIVO",137793,1,"Cristiano Gazdaru",2002,"Setúbal","Clube Recreativo Charnequense",1,1,null,null,null,null,1]
["Masculino","+81",14,"EFECTIVO",149945,1,"João Jesus",2001,"Madeira","Clube Judo Brava",1,1,null,null,null,null,null,null,null,null,null,null,1]
["Masculino","+81",15,"EFECTIVO",153618,1,"André Gonçalves",2002,"Setúbal","Clube Cultural e Recreativo do Alto do Moinho",1,1,null,null,null,null,null,null,null,null,null,null,null,null,null,null,1]
["Masculino","+81",16,"EFECTIVO",146533,1,"Carlos Boas",2002,"Açores","Judo Clube Ramo Grande",1,1,null,null,null,null,null,null,null,null,null,null,null,null,null,null,null,null,null,null,null,null,null,1]

{"sheet":"-90","index":10,"n_rows":14,"n_cols":34,"rows_kept":14,"cut":false,"hidden":false,"merged":[]}
[null,null,null,null,null,null,null,null,null,"CADETES",{"$f":"TODAY()","v":"2018-02-14"}]
[null,null,null,null,null,null,null,null,null,"-90KG ",null,null,"FPJ","Lisboa","Castelo Branco","Coimbra","Setúbal","Coimbra","V. Castelo","I.Terceira","Santarém","I.Terceira","Madeira","Lisboa","Setúbal","I.Terceira","Coimbra","LISBOA","MADEIRA","C.BRANCO","ALGARVE","GUARDA","SANTARÉM","AÇORES"]
[null,null,null,null,null,null,null,null,null,null,null,null,"2017-02-11","2017-04-01","2017-04-22","2017-04-29","2017-05-13","2017-06-17","2017-06-17","2017-06-25","2017-07-02","2017-10-21","2017-10-21","2017-11-11","2017-11-18","2017-11-18","2017-12-16","2018-01-21","2018-01-27","2018-01-27","2018-01-27","2018-01-27","2018-01-28","2018-02-03"]
["Género","Categoria",null,null,"LF",null,"NOME","Ano de Nascimento","Associação","CLUBE","Somatório de pontos","Número de provas","Camp.Nac. Cadetes","Open Cadetes","Open Cadetes \"Mestre António Morais\"","OPEN INT. CIDADE BARCELOS","Taça Cidade do Montijo","V Taça António Lopes Aleixo","III Open Int. Eurocidade Valença Tui","Torneio 41 Ano I.Terceira","V Open Int. Cadetes","Torneio Outono","Open Cadetes","Open Cadetes","Torneio Aniversário JC Pragal","Torneio AJIT","Open Cadetes","Zonal de Cadetes","Zonal de Cadetes","Zonal de Cadetes","Zonal de Cadetes","Zonal de Cadetes","Zonal de Cadetes","Zonal de Cadetes"]
[null,null,null,null,null,null,null,null,null,null,null,null,{"$f":"COUNT(M6:M563)","v":4},0,0,0,0,0,0,0,0,0,0,0,0,0,0,0,0,0,3,4,0,0]
["Masculino","-90",1,"1º CLASSIFICADO 2017",120367,{"$f":"COUNTIF(E:E,E6)","v":1},"Eduardo Silva",2001,"Porto","Associação Desportiva Judo Force",{"$f":"SUM(M6:ZU6)","v":8},{"$f":"COUNT(M6:ZU6)","v":1},8]
["Masculino","-90",1,"SUL",137793,1,"Cristiano Gazdaru",2002,"Setúbal","Clube Recreativo Charnequense",{"$f":"SUM(M7:ZU7)","v":7},{"$f":"COUNT(M7:ZU7)","v":2},1,null,null,null,null,null,null,null,null,null,null,null,null,null,null,null,null,null,6]
["Masculino","-90",1,"NORTE",116365,1,"Miguel Oliveira",2003,"Porto","Associação Desportiva Judo Force",6,1,null,null,null,null,null,null,null,null,null,null,null,null,null,null,null,null,null,null,null,6]
["Masculino","-90",1,"EFECTIVO",142278,1,"Diogo Fernandes",2001,"Braga","Casa do Povo de Ronfe",8,2,4,null,null,null,null,null,null,null,null,null,null,null,null,null,null,null,null,null,null,4]
["Masculino","-90",1,"EFECTIVO",137088,1,"António Noronha",2003,"Viseu","Judo Clube de Viseu",5,1,null,null,null,null,null,null,null,null,null,null,null,null,null,null,null,null,null,null,null,5]
["Masculino","-90",1,"EFECTIVO",150634,1,"Gonçalo Sargento",2001,"Beja","Judo Clube de Beja",4,1,null,null,null,null,null,null,null,null,null,null,null,null,null,null,null,null,null,null,4]
["Masculino","-90",1,"EFECTIVO",139423,1,"Tiago Marques",2001,"Leiria","Grupo Desportivo Santo Amaro",2,1,2]
["Masculino","-90",1,"EFECTIVO",152561,1,"Hugo Bernardo",2001,"Guarda","Clube de Judo da Guarda",1,1,null,null,null,null,null,null,null,null,null,null,null,null,null,null,null,null,null,null,null,1]
["Masculino","-90",1,"EFECTIVO",140077,1,"Henrique Cunha",2002,"Algarve","Unbreakable Force - Associação Desportiva e Cultural",1,1,null,null,null,null,null,null,null,null,null,null,null,null,null,null,null,null,null,null,1]

{"sheet":"+90","index":11,"n_rows":8,"n_cols":34,"rows_kept":8,"cut":false,"hidden":false,"merged":[]}
[null,null,null,null,null,null,null,null,null,"CADETES",{"$f":"TODAY()","v":"2018-02-14"}]
[null,null,null,null,null,null,null,null,null,"+90KG ",null,null,"FPJ","Lisboa","Castelo Branco","Coimbra","Setúbal","Coimbra","V. Castelo","I.Terceira","Santarém","I.Terceira","Madeira","Lisboa","Setúbal","I.Terceira","Coimbra","LISBOA","MADEIRA","C.BRANCO","ALGARVE","GUARDA","SANTARÉM","AÇORES"]
[null,null,null,null,null,null,null,null,null,null,null,null,"2017-02-11","2017-04-01","2017-04-22","2017-04-29","2017-05-13","2017-06-17","2017-06-17","2017-06-25","2017-07-02","2017-10-21","2017-10-21","2017-11-11","2017-11-18","2017-11-18","2017-12-16","2018-01-21","2018-01-27","2018-01-27","2018-01-27","2018-01-27","2018-01-28","2018-02-03"]
["Género","Categoria",null,null,"LF",null,"NOME","Ano de Nascimento","Associação","CLUBE","Somatório de pontos","Número de provas","Camp.Nac. Cadetes","Open Cadetes","Open Cadetes \"Mestre António Morais\"","OPEN INT. CIDADE BARCELOS","Taça Cidade do Montijo","V Taça António Lopes Aleixo","III Open Int. Eurocidade Valença Tui","Torneio 41 Ano I.Terceira","V Open Int. Cadetes","Torneio Outono","Open Cadetes","Open Cadetes","Torneio Aniversário JC Pragal","Torneio AJIT","Open Cadetes","Zonal de Cadetes","Zonal de Cadetes","Zonal de Cadetes","Zonal de Cadetes","Zonal de Cadetes","Zonal de Cadetes","Zonal de Cadetes"]
[null,null,null,null,null,null,null,null,null,null,null,null,{"$f":"COUNT(M6:M545)","v":2},0,0,0,0,0,0,0,0,0,0,0,0,0,0,0,0,0,1,0,0,0]
["Masculino","+90",1,"1º CLASSIFICADO 2017",121008,{"$f":"COUNTIF(E:E,E6)","v":1},"Artur Matias",2001,"Lisboa","Sport Lisboa e Benfica",{"$f":"SUM(M6:ZU6)","v":7},{"$f":"COUNT(M6:ZU6)","v":1},7]
["Masculino","+90",2,"SUL",112916,{"$f":"COUNTIF(E:E,E7)","v":1},"Gonçalo Antunes",2001,"Algarve","Clube Artes Marciais de Altura",{"$f":"SUM(M7:ZU7)","v":1},{"$f":"COUNT(M7:ZU7)","v":1},null,null,null,null,null,null,null,null,null,null,null,null,null,null,null,null,null,null,1]
["Masculino","+90",3,"EFECTIVO",129468,{"$f":"COUNTIF(E:E,E8)","v":1},"Diogo Santos",2001,"Braga","Associação Desportiva e Cultural Manhente",1,1,1]

{"sheet":"-40","index":12,"n_rows":7,"n_cols":34,"rows_kept":7,"cut":false,"hidden":false,"merged":[]}
[null,null,null,null,null,null,null,null,null,"CADETES",{"$f":"TODAY()","v":"2018-02-14"}]
[null,null,null,null,null,null,null,null,null,"-44KG ",null,null,"FPJ","Lisboa","Castelo Branco","Coimbra","Setúbal","Coimbra","V. Castelo","I.Terceira","Santarém","I.Terceira","Madeira","Lisboa","Setúbal","I.Terceira","Coimbra","LISBOA","MADEIRA","C.BRANCO","ALGARVE","GUARDA","SANTARÉM","AÇORES"]
[null,null,null,null,null,null,null,null,null,null,null,null,"2017-02-11","2017-04-01","2017-04-22","2017-04-29","2017-05-13","2017-06-17","2017-06-17","2017-06-25","2017-07-02","2017-10-21","2017-10-21","2017-11-11","2017-11-18","2017-11-18","2017-12-16","2018-01-21","2018-01-27","2018-01-27","2018-01-27","2018-01-27","2018-01-28","2018-02-03"]
["Género","Categoria",null,null,"LF",null,"NOME","Ano de Nascimento","Associação","CLUBE","Somatório de pontos","Número de provas","Camp.Nac. Cadetes","Open Cadetes","Open Cadetes \"Mestre António Morais\"","OPEN INT. CIDADE BARCELOS","Taça Cidade do Montijo","V Taça António Lopes Aleixo","III Open Int. Eurocidade Valença Tui","Torneio 41 Ano I.Terceira","V Open Int. Cadetes","Torneio Outono","Open Cadetes","Open Cadetes","Torneio Aniversário JC Pragal","Torneio AJIT","Open Cadetes","Zonal de Cadetes","Zonal de Cadetes","Zonal de Cadetes","Zonal de Cadetes","Zonal de Cadetes","Zonal de Cadetes","Zonal de Cadetes"]
[null,null,null,null,null,null,null,null,null,null,null,null,{"$f":"COUNT(M6:M562)","v":0},0,0,0,0,0,0,0,0,0,0,2,0,0,0,0,0,0,0,0,0,0]
["Feminino","-44",1,"EFECTIVO",140995,{"$f":"COUNTIF(E:E,E6)","v":1},"Diana Ribeiro",2003,"Lisboa","Escola de Judo Nuno Delgado",{"$f":"SUM(M6:ZU6)","v":6},{"$f":"COUNT(M6:ZU6)","v":1},null,null,null,null,null,null,null,null,null,null,null,6]
["Feminino","-44",2,"EFECTIVO",125978,{"$f":"COUNTIF(E:E,E7)","v":1},"Ana Dias",2003,"Lisboa","Sport Lisboa e Benfica",1,1,null,null,null,null,null,null,null,null,null,null,null,1]

{"sheet":"-44","index":13,"n_rows":15,"n_cols":34,"rows_kept":15,"cut":false,"hidden":false,"merged":[]}
[null,null,null,null,null,null,null,null,null,"CADETES",{"$f":"TODAY()","v":"2018-02-14"}]
[null,null,null,null,null,null,null,null,null,"-44KG ",null,null,"FPJ","Lisboa","Castelo Branco","Coimbra","Setúbal","Coimbra","V. Castelo","I.Terceira","Santarém","I.Terceira","Madeira","Lisboa","Setúbal","I.Terceira","Coimbra","LISBOA","MADEIRA","C.BRANCO","ALGARVE","GUARDA","SANTARÉM","AÇORES"]
[null,null,null,null,null,null,null,null,null,null,null,null,"2017-02-11","2017-04-01","2017-04-22","2017-04-29","2017-05-13","2017-06-17","2017-06-17","2017-06-25","2017-07-02","2017-10-21","2017-10-21","2017-11-11","2017-11-18","2017-11-18","2017-12-16","2018-01-21","2018-01-27","2018-01-27","2018-01-27","2018-01-27","2018-01-28","2018-02-03"]
["Género","Categoria",null,null,"LF",null,"NOME","Ano de Nascimento","Associação","CLUBE","Somatório de pontos","Número de provas","Camp.Nac. Cadetes","Open Cadetes","Open Cadetes \"Mestre António Morais\"","OPEN INT. CIDADE BARCELOS","Taça Cidade do Montijo","V Taça António Lopes Aleixo","III Open Int. Eurocidade Valença Tui","Torneio 41 Ano I.Terceira","V Open Int. Cadetes","Torneio Outono","Open Cadetes","Open Cadetes","Torneio Aniversário JC Pragal","Torneio AJIT","Open Cadetes","Zonal de Cadetes","Zonal de Cadetes","Zonal de Cadetes","Zonal de Cadetes","Zonal de Cadetes","Zonal de Cadetes","Zonal de Cadetes"]
[null,null,null,null,null,null,null,null,null,null,null,null,{"$f":"COUNT(M6:M568)","v":3},0,0,1,0,0,0,0,0,0,0,0,3,0,3,1,0,0,1,2,0,0]
["Feminino","-44",1,"1º CLASSIFICADO 2017",132822,{"$f":"COUNTIF(E:E,E6)","v":1},"Raquel Calado",2001,"Santarém","Grupo Recreativo 1º de Outubro",{"$f":"SUM(M6:ZU6)","v":6},{"$f":"COUNT(M6:ZU6)","v":1},6]
["Feminino","-44",2,"LISBOA",140995,1,"Diana Capucho",2003,"Lisboa","Escola de Judo Nuno Delgado",5,2,null,null,null,null,null,null,null,null,null,null,null,null,4,null,null,1]
["Feminino","-44",3,"SUL",153985,1,"Camila Nascida",2001,"Setúbal","Grupo de Amigos da Costa de Caparica",3,3,null,null,null,null,null,null,null,null,null,null,null,null,1,null,1,null,null,null,1]
["Feminino","-44",4,"NORTE",117202,1,"Joana Morgado",2003,"V.Castelo","Judo Clube de Valença - Juvalença",10,2,null,null,null,null,null,null,null,null,null,null,null,null,null,null,4,null,null,null,null,6]
["Feminino","-44",5,"EFECTIVO",133308,1,"Andreia Fernandes",2002,"Coimbra","Judo Clube de Barcelos - JUBA",6,1,null,null,null,6]
["Feminino","-44",6,"EFECTIVO",138223,1,"Beatriz Duarte",2003,"Setúbal","Judo Clube do Pragal",6,1,null,null,null,null,null,null,null,null,null,null,null,null,6]
["Feminino","-44",7,"EFECTIVO",125991,1,"Lara Costa",2003,"Lisboa","Sport Lisboa e Benfica",6,1,null,null,null,null,null,null,null,null,null,null,null,null,null,null,6]
["Feminino","-44",8,"EFECTIVO",117183,1,"Iara Neves",2002,"Leiria","Judo Clube Marinha Grande",3,1,3]
["Feminino","-44",9,"EFECTIVO",126256,1,"Beatriz Ortensio",2002,"Açores","Judo clube de Ponta Delgada",2,1,2]
["Feminino","-44",10,"EFECTIVO",150116,1,"Inês Morgado",2003,"Porto","Escola Secundária Fontes Pereira de Melo",1,1,null,null,null,null,null,null,null,null,null,null,null,null,null,null,null,null,null,null,null,1]

{"sheet":"-48","index":14,"n_rows":30,"n_cols":34,"rows_kept":30,"cut":false,"hidden":false,"merged":[]}
[null,null,null,null,null,null,null,null,null,"CADETES",{"$f":"TODAY()","v":"2018-02-14"}]
[null,null,null,null,null,null,null,null,null,"-48KG ",null,null,"FPJ","Lisboa","Castelo Branco","Coimbra","Setúbal","Coimbra","V. Castelo","I.Terceira","Santarém","I.Terceira","Madeira","Lisboa","Setúbal","I.Terceira","Coimbra","LISBOA","MADEIRA","C.BRANCO","ALGARVE","GUARDA","SANTARÉM","AÇORES"]
[null,null,null,null,null,null,null,null,null,null,null,null,"2017-02-11","2017-04-01","2017-04-22","2017-04-29","2017-05-13","2017-06-17","2017-06-17","2017-06-25","2017-07-02","2017-10-21","2017-10-21","2017-11-11","2017-11-18","2017-11-18","2017-12-16","2018-01-21","2018-01-27","2018-01-27","2018-01-27","2018-01-27","2018-01-28","2018-02-03"]
["Género","Categoria",null,null,"LF",null,"NOME","Ano de Nascimento","Associação","CLUBE","Somatório de Pontos","Número de provas","Camp.Nac. Cadetes","Open Cadetes","Open Cadetes \"Mestre António Morais\"","OPEN INT. CIDADE BARCELOS","Taça Cidade do Montijo","V Taça António Lopes Aleixo","III Open Int. Eurocidade Valença Tui","Torneio 41 Ano I.Terceira","V Open Int. Cadetes","Torneio Outono","Open Cadetes","Open Cadetes","Torneio Aniversário JC Pragal","Torneio AJIT","Open Cadetes","Zonal de Cadetes","Zonal de Cadetes","Zonal de Cadetes","Zonal de Cadetes","Zonal de Cadetes","Zonal de Cadetes","Zonal de Cadetes"]
[null,null,null,null,null,null,null,null,null,null,null,null,{"$f":"COUNT(M6:M558)","v":11},5,2,2,0,3,1,0,3,1,1,5,3,1,9,2,1,2,3,3,5,2]
["Feminino","-48",1,"1º CLASSIFICADA 2017",142498,{"$f":"COUNTIF(E:E,E6)","v":1},"Francisca Jorge",2002,"C.Branco","Escola de Judo Ana Hormigo",{"$f":"SUM(M6:ZU6)","v":18},{"$f":"COUNT(M6:ZU6)","v":2},12,null,null,null,null,null,null,null,null,null,null,null,null,null,null,null,null,6]
["Feminino","-48",2,"2º CLASSIFICADA 2017",115417,1,"Diana Valença",2001,"Coimbra","Associação Cristã da Mocidade de Coimbra",{"$f":"SUM(M7:ZU7)","v":25},{"$f":"COUNT(M7:ZU7)","v":4},9,null,null,null,null,4,null,null,null,null,null,null,null,null,6,null,null,null,null,null,6]
["Feminino","-48",3,"LISBOA",117568,1,"Raquel Brito",2002,"Lisboa","Sport Algés e Dafundo",{"$f":"SUM(M8:ZU8)-O8-R8-U8","v":32},{"$f":"COUNT(M8:ZU8)","v":8},7,7,6,null,null,6,null,null,4,null,null,6,6,null,null,6]
["Feminino","-48",4,"MADEIRA",135550,1,"Ana Vale",2003,"Madeira","Clube Judo Brava",{"$f":"SUM(M9:ZU9)","v":2},{"$f":"COUNT(M9:ZU9)","v":2},null,null,null,null,null,null,null,null,null,null,1,null,null,null,null,null,1]
["Feminino","-48",5,"CENTRO SUL",132738,1,"Maria Rosário",2003,"C.Branco","Escola de Judo Ana Hormigo",11,2,null,null,null,null,null,null,null,null,null,null,null,null,null,null,10,null,null,1]
["Feminino","-48",6,"SUL",114175,1,"Teresa Santos",2002,"Algarve","Unbreakable Force - Associação Desportiva e Cultural",{"$f":"SUM(M11:ZU11)-Y11","v":37},6,7,10,null,null,null,null,null,null,6,null,null,8,2,null,null,null,null,null,6]
["Feminino","-48",7,"NORTE",130819,1,"Helena Castro",2001,"Braga","ARCAP - Academia Recreativa e Cultural \"Amigos de Ponte\"",8,2,2,null,null,null,null,null,null,null,null,null,null,null,null,null,null,null,null,null,null,6]
["Feminino","-48",8,"CENTRO",127177,1,"Juliana Lopes",2002,"Coimbra","Associação Academica de Coimbra",31,5,2,3,null,6,null,null,null,null,null,null,null,null,null,null,12,null,null,null,null,null,8]
["Feminino","-48",9,"AÇORES",152082,1,"Cintia Amaral",2003,"I. Terceira","Clube de Judo da Praia da Vitória",8,3,null,null,null,null,null,null,null,null,null,1,null,null,null,1,null,null,null,null,null,null,null,6]
["Feminino","-48",10,"EFECTIVO",132822,1,"Raquel Calado",2001,"Santarém","Grupo Recreativo 1º de Outubro",{"$f":"SUM(M15:ZU15)-R15","v":18},6,null,null,4,null,null,1,null,null,1,null,null,4,null,null,6,null,null,null,null,null,3]
["Feminino","-48",11,"EFECTIVO",133308,1,"Andreia Fernandes",2002,"Coimbra","Judo Clube de Barcelos - JUBA",7,4,null,1,null,null,null,null,1,null,null,null,null,null,null,null,3,null,null,null,null,null,2]
["Feminino","-48",12,"EFECTIVO",139843,1,"Mariana Máximo",2003,"Setúbal","CCD-Clube Judo Montijo",5,2,null,null,null,null,null,null,null,null,null,null,null,null,1,null,null,null,null,null,4]
["Feminino","-48",13,"EFECTIVO",117204,1,"Beatriz Pedreiras",2003,"V.Castelo","Judo Clube de Valença - Juvalença",5,2,null,null,null,null,null,null,null,null,null,null,null,null,null,null,1,null,null,null,null,4]
["Feminino","-48",14,"EFECTIVO",122906,1,"Carolina Rodrigues",2001,"Coimbra","Associação Académica Coimbra",4,1,4]
["Feminino","-48",15,"EFECTIVO",151731,1,"Carolina Gonçalves",2003,"Lisboa","Clube de Judo Hajime",4,1,null,null,null,null,null,null,null,null,null,null,null,null,null,null,4]
["Feminino","-48",16,"EFECTIVO",127689,1,"Constança Alves",2003,"Aveiro","Sport Clube Beira-Mar",4,3,null,null,null,null,null,null,null,null,null,null,null,2,null,null,1,null,null,null,null,1]
["Feminino","-48",17,"EFECTIVO",117183,1,"Iara Neves",2002,"Leiria","Judo Clube Marinha Grande",3,2,null,null,null,null,null,null,null,null,null,null,null,null,null,null,1,null,null,null,null,null,2]
["Feminino","-48",18,"EFECTIVO",108553,1,"Ana Nunes",2001,"Madeira","Grupo Desportivo APEL",2,1,2]
["Feminino","-48",19,"EFECTIVO",146764,1,"Joana Sousa",2001,"Açores","Clube Escolar Desp. da Escola Basica 2 3 Arrifes",2,2,null,1,null,null,null,null,null,null,null,null,null,null,null,null,null,null,null,null,null,null,null,1]
["Feminino","-48",20,"EFECTIVO",125991,1,"Lara Costa",2003,"Lisboa","Sport Lisboa e Benfica",2,2,null,null,null,null,null,null,null,null,null,null,null,1,null,null,null,1]
["Feminino","-48",21,"EFECTIVO",119334,1,"Ana Fernandes",2001,"Setúbal","Grupo de Amigos da Costa da Caparica",1,1,1]
["Feminino","-48",22,"EFECTIVO",131277,1,"Filipa Barata",2002,"Lisboa","Escola de Judo Nuno Delgado",1,1,1]
["Feminino","-48",23,"EFECTIVO",120087,1,"Vânia Baptista",2001,"Lisboa","Sport Lisboa e Benfica",1,1,1]
["Feminino","-48",24,"EFECTIVO",130824,1,"Helena Lopes",2001,"Braga","ARCAP - Academia Recreativa e Cultural \"Amigos de Ponte\"",1,1,null,null,null,1]
["Feminino","-48",25,"EFECTIVO",154259,1,"Daniela Fonseca",2001,"Algarve","Judo Clube de Portimão",1,1,null,null,null,null,null,null,null,null,null,null,null,null,null,null,null,null,null,null,1]

{"sheet":"-52","index":15,"n_rows":36,"n_cols":34,"rows_kept":36,"cut":false,"hidden":false,"merged":[]}
[null,null,null,null,null,null,null,null,null,"CADETES",{"$f":"TODAY()","v":"2018-02-14"}]
[null,null,null,null,null,null,null,null,null,"-52KG ",null,null,"FPJ","Lisboa","Castelo Branco","Coimbra","Setúbal","Coimbra","V. Castelo","I.Terceira","Santarém","I.Terceira","Madeira","Lisboa","Setúbal","I.Terceira","Coimbra","LISBOA","MADEIRA","C.BRANCO","ALGARVE","GUARDA","SANTARÉM","AÇORES"]
[null,null,null,null,null,null,null,null,null,null,null,null,"2017-02-11","2017-04-01","2017-04-22","2017-04-29","2017-05-13","2017-06-17","2017-06-17","2017-06-25","2017-07-02","2017-10-21","2017-10-21","2017-11-11","2017-11-18","2017-11-18","2017-12-16","2018-01-21","2018-01-27","2018-01-27","2018-01-27","2018-01-27","2018-01-28","2018-02-03"]
["Género","Categoria",null,null,"LF",null,"NOME","Ano de Nascimento","Associação","CLUBE","Somatório de Pontos","Número de provas","Camp.Nac. Cadetes","Open Cadetes","Open Cadetes \"Mestre António Morais\"","OPEN INT. CIDADE BARCELOS","Taça Cidade do Montijo","V Taça António Lopes Aleixo","III Open Int. Eurocidade Valença Tui","Torneio 41 Ano I.Terceira","V Open Int. Cadetes","Torneio Outono","Open Cadetes","Open Cadetes","Torneio Aniversário JC Pragal","Torneio AJIT","Open Cadetes","Zonal de Cadetes","Zonal de Cadetes","Zonal de Cadetes","Zonal de Cadetes","Zonal de Cadetes","Zonal de Cadetes","Zonal de Cadetes"]
[null,null,null,null,null,null,null,null,null,null,null,null,{"$f":"COUNT(M6:M540)","v":14},2,1,3,2,5,1,1,2,1,3,5,5,1,7,5,2,0,3,2,4,1]
["Feminino","-52",1,"LISBOA",127860,{"$f":"COUNTIF(E:E,E6)","v":1},"Ana Agulhas",2001,"Lisboa","Sporting Clube de Portugal",{"$f":"SUM(M6:ZU6)-N6-O6-Y6-U6","v":54},{"$f":"COUNT(M6:ZU6)","v":10},11,8,6,null,8,10,null,null,7,null,null,10,6,null,7,8]
["Feminino","-52",2,"MADEIRA",115142,{"$f":"COUNTIF(E:E,E7)","v":1},"Beatriz Caires",2001,"Madeira","Judo Clube Madeira",{"$f":"SUM(M7:ZU7)","v":19},{"$f":"COUNT(M7:ZU7)","v":3},null,null,null,null,null,null,null,null,null,null,6,7,null,null,null,null,6]
["Feminino","-52",3,"SUL",120328,{"$f":"COUNTIF(E:E,E8)","v":1},"Maria Sena",2003,"Algarve","Academia de Judo de Faro - Associação AJF",6,1,null,null,null,null,null,null,null,null,null,null,null,null,null,null,null,null,null,null,6]
["Feminino","-52",4,"NORTE",123016,{"$f":"COUNTIF(E:E,E9)","v":1},"Inês Penetra",2001,"Braga","Associação Desportiva e Cultural Manhente",22,5,1,null,null,5,null,null,6,null,null,null,null,null,null,null,4,null,null,null,null,6]
["Feminino","-52",5,"CENTRO",112998,1,"Joana Rocha",2002,"Leiria","Judo Clube Marinha Grande",33,4,8,null,null,null,null,7,null,null,null,null,null,null,null,null,11,null,null,null,null,null,7]
["Feminino","-52",6,"AÇORES",118103,{"$f":"COUNTIF(E:E,E11)","v":1},"Ana Sousa",2002,"I.Terceira","Clube de Judo da Praia da Vitória",3,3,null,null,null,null,null,null,null,null,null,1,null,null,null,1,null,null,null,null,null,null,null,1]
["Feminino","-52",7,"EFECTIVO",124069,{"$f":"COUNTIF(E:E,E12)","v":1},"Margarida Brás",2003,"Lisboa","Sporting Clube de Portugal",22,4,null,null,null,null,null,null,null,null,null,null,null,3,8,null,5,6]
["Feminino","-52",8,"EFECTIVO",148964,1,"Catarina Alcarrão",2001,"Aveiro","Associação 4Judo Project",15,5,1,null,null,7,null,3,null,null,null,null,null,null,2,null,2]
["Feminino","-52",9,"EFECTIVO",140806,{"$f":"COUNTIF(E:E,E14)","v":1},"Fátima Costa",2002,"Coimbra","Judo Clube de Coimbra",10,1,10]
["Feminino","-52",10,"EFECTIVO",123092,1,"Iris Almeida",2003,"Setúbal","CCD-Clube Judo Montijo",8,2,null,null,null,null,null,null,null,null,null,null,null,null,4,null,null,null,null,null,4]
["Feminino","-52",11,"EFECTIVO",144376,1,"Lenira Martins",2001,"Lisboa","Sport Lisboa e Benfica",7,1,7]
["Feminino","-52",12,"EFECTIVO",119687,1,"Matilde Silva",2002,"Coimbra","Escola de Judo de Coimbra",7,3,null,null,null,null,null,3,null,null,null,null,null,null,null,null,1,null,null,null,null,null,3]
["Feminino","-52",13,"EFECTIVO",108553,1,"Ana Nunes",2001,"Madeira","Grupo Desportivo APEL",7,4,null,null,null,null,null,null,null,1,null,null,4,1,null,null,null,null,1]
["Feminino","-52",14,"EFECTIVO",122906,1,"Carolina Rodrigues",2001,"Coimbra","Associação Académica Coimbra",5,1,null,null,null,null,null,null,null,null,null,null,null,null,null,null,null,null,null,null,null,null,5]
["Feminino","-52",15,"EFECTIVO",128816,1,"Ana Teixeira",2002,"Coimbra","Clube de Judo do Porto",4,1,4]
["Feminino","-52",16,"EFECTIVO",117568,1,"Raquel Brito",2002,"Lisboa","Sport Algés e Dafundo",4,1,null,null,null,null,4]
["Feminino","-52",17,"EFECTIVO",110132,1,"Raquel Barbas",2001,"Lisboa","Colégio Militar (Secretaria Geral)",4,1,null,null,null,null,null,null,null,null,null,null,null,null,null,null,null,4]
["Feminino","-52",18,"EFECTIVO",115144,1,"Leonor Gomes",2003,"Madeira","Judo Clube da Madeira",4,2,null,null,null,null,null,null,null,null,null,null,1,3]
["Feminino","-52",19,"EFECTIVO",149112,1,"Mariana Silva",2001,"Santarém","Clube de Judo de Riachos",4,4,null,null,null,null,null,1,null,null,1,null,null,null,null,null,1,null,null,null,null,null,1]
["Feminino","-52",20,"EFECTIVO",142325,1,"Sofia Vale",2001,"V. Castelo","Centro Social Paroquial de Alvarães",3,2,2,null,null,1]
["Feminino","-52",21,"EFECTIVO",144343,1,"Lorena Marcolino",2002,"Algarve","Judo Clube de Portimão",3,2,1,2]
["Feminino","-52",22,"EFECTIVO",138033,1,"Bianca Fontes",2001,"Coimbra","Casa do Povo de Miranda do Corvo",2,1,2]
["Feminino","-52",23,"EFECTIVO",148565,1,"Sofia Silva",2001,"Lisboa","Judo Clube de Lisboa",2,1,null,null,null,null,null,null,null,null,null,null,null,null,null,null,null,2]
["Feminino","-52",24,"EFECTIVO",140761,1,"Beatriz Rodrigues",2002,"V. Castelo","Centro Social Paroquial de Alvarães",1,1,1]
["Feminino","-52",25,"EFECTIVO",110991,1,"Rita Soares",2001,"Lisboa","Escola de Judo Nuno Delgado",1,1,1]
["Feminino","-52",26,"EFECTIVO",126915,1,"Inês Vieira",2002,"Setúbal","ACA-Academia Chushin Associação",1,1,1]
["Feminino","-52",27,"EFECTIVO",141563,1,"Mariana Sousa",2002,"V.Castelo","Associação Desportiva e Cultural Taiki-Budo",1,1,1]
["Feminino","-52",28,"EFECTIVO",142001,1,"Ana Gonçalves",2003,"Beja","Judo Clube do Alvito",1,1,null,null,null,null,null,null,null,null,null,null,null,null,1]
["Feminino","-52",29,"EFECTIVO",150521,1,"Matilde Mimoso",2001,"Lisboa","A Turma dos Judokinhas - Associação Desportiva de Sintra",1,1,null,null,null,null,null,null,null,null,null,null,null,null,null,null,null,1]
["Feminino","-52",30,"EFECTIVO",125581,1,"Mariana Barreto",2003,"V.Castelo","Associação Desportiva e Cultural Taiki-Budo",1,1,null,null,null,null,null,null,null,null,null,null,null,null,null,null,null,null,null,null,null,1]
["Feminino","-52",31,"EFECTIVO",154157,1,"Jani Canelas",2002,"Beja","Judo Clube do Alvito",1,1,null,null,null,null,null,null,null,null,null,null,null,null,null,null,null,null,null,null,1]

{"sheet":"-57","index":16,"n_rows":47,"n_cols":34,"rows_kept":47,"cut":false,"hidden":false,"merged":[]}
[null,null,null,null,null,null,null,null,null,"CADETES",{"$f":"TODAY()","v":"2018-02-14"}]
[null,null,null,null,null,null,null,null,null,"-57KG ",null,null,"FPJ","Lisboa","Castelo Branco","Coimbra","Setúbal","Coimbra","V. Castelo","I.Terceira","Santarém","I.Terceira","Madeira","Lisboa","Setúbal","I.Terceira","Coimbra","LISBOA","MADEIRA","C.BRANCO","ALGARVE","GUARDA","SANTARÉM","AÇORES"]
[null,null,null,null,null,null,null,null,null,null,null,null,"2017-02-11","2017-04-01","2017-04-22","2017-04-29","2017-05-13","2017-06-17","2017-06-17","2017-06-25","2017-07-02","2017-10-21","2017-10-21","2017-11-11","2017-11-18","2017-11-18","2017-12-16","2018-01-21","2018-01-27","2018-01-27","2018-01-27","2018-01-27","2018-01-28","2018-02-03"]
["Género","Categoria",null,null,"LF",null,"NOME","Ano de Nascimento","Associação","CLUBE","Somatório de pontos","Número de provas","Camp.Nac. Cadetes","Open Cadetes","Open Cadetes \"Mestre António Morais\"","OPEN INT. CIDADE BARCELOS","Taça Cidade do Montijo","V Taça António Lopes Aleixo","III Open Int. Eurocidade Valença Tui","Torneio 41 Ano I.Terceira","V Open Int. Cadetes","Torneio Outono","Open Cadetes","Open Cadetes","Torneio Aniversário JC Pragal","Torneio AJIT","Open Cadetes","Zonal de Cadetes","Zonal de Cadetes","Zonal de Cadetes","Zonal de Cadetes","Zonal de Cadetes","Zonal de Cadetes","Zonal de Cadetes"]
[null,null,null,null,null,null,null,null,null,null,null,null,{"$f":"COUNT(M6:M537)","v":20},3,9,3,6,5,1,1,4,0,0,7,5,0,7,4,1,2,4,4,10,2]
["Feminino","-57",1,"LISBOA",117757,{"$f":"COUNTIF(E:E,E6)","v":1},"Inês Costa",2001,"Lisboa","Universidade Lusofona de Humanidades de Tecnologias",{"$f":"SUM(M6:ZU6)","v":12},{"$f":"COUNT(M6:ZU6)","v":2},5,null,null,null,null,null,null,null,null,null,null,null,null,null,null,7]
["Feminino","-57",2,"MADEIRA",115144,1,"Leonor Gomes",2003,"Madeira","Judo Clube da Madeira",1,1,null,null,null,null,null,null,null,null,null,null,null,null,null,null,null,null,1]
["Feminino","-57",3,"CENTRO SUL",111685,1,"Ana Moura",2001,"C.Branco","Escola de Judo Ana Hormigo",15,5,1,null,3,null,1,null,null,null,null,null,null,null,null,null,4,null,null,6]
["Feminino","-57",4,"SUL",105039,1,"Teresa Trindade",2001,"Setúbal","Judo Clube Pragal",{"$f":"SUM(M9:ZU9)-Q9","v":35},6,11,null,6,null,3,3,null,null,null,null,null,null,8,null,null,null,null,null,7]
["Feminino","-57",5,"NORTE",140761,1,"Beatriz Rodrigues",2002,"V. Castelo","Centro Social Paroquial de Alvarães",9,2,null,null,null,2,null,null,null,null,null,null,null,null,null,null,null,null,null,null,null,7]
["Feminino","-57",6,"CENTRO",140806,1,"Fátima Costa",2002,"Coimbra","Judo Clube de Coimbra",27,3,null,null,null,null,null,8,null,null,null,null,null,null,null,null,7,null,null,null,null,null,12]
["Feminino","-57",7,"AÇORES",121879,1,"Bárbara Almeida",2002,"Açores","Judo Clube de Ponta Delgada",14,4,2,4,null,null,null,null,null,null,null,null,null,null,null,null,2,null,null,null,null,null,null,6]
["Feminino","-57",8,"EFECTIVO",146273,1,"Julia Almeida",2001,"Setúbal","Grupo de Amigos da Costa da Caparica",{"$f":"SUM(M13:ZU13)-M13-Q13-S13-AE13","v":36},9,7,null,9,null,3,null,2,null,4,null,null,7,7,null,9,null,null,null,5]
["Feminino","-57",9,"EFECTIVO",120978,1,"Patricia Martins",2002,"Coimbra","Montanha Clube",25,4,2,null,12,6,null,5]
["Feminino","-57",10,"EFECTIVO",126811,1,"Vanessa Figueiredo",2002,"Coimbra","Judo Clube Coimbra",24,4,3,null,null,8,null,4,null,null,null,null,null,null,null,null,null,null,null,null,null,null,9]
["Feminino","-57",11,"EFECTIVO",136670,1,"Carolina Gonçalves",2002,"Lisboa","Sporting Clube de Portugal",21,5,2,4,3,null,4,null,null,null,8]
["Feminino","-57",12,"EFECTIVO",129891,1,"Beatriz Rocha",2001,"Madeira","Judo Clube Madeira",14,2,3,null,null,null,null,null,null,null,null,null,null,11]
["Feminino","-57",13,"EFECTIVO",127478,1,"Carolina Francês",2001,"Lisboa","Sport Lisboa e Benfica",14,2,8,null,6]
["Feminino","-57",14,"EFECTIVO",115766,1,"Flávia Sousa",2003,"Coimbra","Associação Académica de Coimbra",11,2,null,null,null,null,null,null,null,null,null,null,null,null,null,null,5,null,null,null,null,null,6]
["Feminino","-57",15,"EFECTIVO",124224,1,"Laura Costa",2003,"Lisboa","Sport Lisboa e Benfica",9,2,null,null,null,null,null,null,null,null,null,null,null,4,null,null,null,5]
["Feminino","-57",16,"EFECTIVO",141566,1,"Daniela Quaresma",2002,"Setúbal","Centro Cultural e Desportivo das Paivas",7,1,null,null,null,null,7]
["Feminino","-57",17,"EFECTIVO",123357,1,"Maria Gorjão",2001,"Santarém","Clube de Judo de Riachos",{"$f":"SUM(M22:ZU22)-M22","v":6},6,1,null,1,null,null,1,null,null,1,null,null,null,null,null,1,null,null,null,null,null,2]
["Feminino","-57",18,"EFECTIVO",121324,1,"Érica Loureiro",2002,"I. Terceira","Clube de Judo da Praia da Vitória",6,1,null,null,null,null,null,null,null,6]
["Feminino","-57",19,"EFECTIVO",128816,1,"Ana Teixeira",2002,"Coimbra","Clube de Judo do Porto",6,1,null,null,null,null,null,null,null,null,null,null,null,null,null,null,null,null,null,null,null,null,6]
["Feminino","-57",20,"EFECTIVO",148964,1,"Catarina Alcarrão",2001,"Aveiro","Associação 4Judo Project",6,2,null,null,1,null,null,null,null,null,null,null,null,null,null,null,null,null,null,null,null,5]
["Feminino","-57",21,"EFECTIVO",141064,{"$f":"COUNTIF(E:E,E26)","v":1},"Beatriz Esteves",2003,"Lisboa","Escola de Judo Nuno Delgado",6,3,null,null,null,null,null,null,null,null,null,null,null,3,2,null,null,1]
["Feminino","-57",22,"EFECTIVO",126915,1,"Inês Vieira",2002,"Setúbal","ACA-Academia Chushin Associação",5,2,null,null,null,null,null,null,null,null,null,null,null,null,4,null,null,null,null,null,1]
["Feminino","-57",23,"EFECTIVO",111515,1,"Mariana Lavos",2001,"Leiria","Judo clube Marinha Grande",5,2,1,null,null,null,null,null,null,null,null,null,null,null,null,null,null,null,null,null,null,null,4]
["Feminino","-57",24,"EFECTIVO",144381,1,"Ana Morgado",2001,"Lisboa","Judo Clube Sintra",5,3,1,null,null,null,null,null,null,null,null,null,null,1,null,null,null,3]
["Feminino","-57",25,"EFECTIVO",136589,1,"Maria Rodrigues",2002,"Setúbal","Vitória Futebol Clube",4,1,4]
["Feminino","-57",26,"EFECTIVO",137625,1,"Joana Lopes",2003,"Porto","Associação Desportiva Judo Force",4,2,null,null,null,null,null,null,null,null,null,null,null,null,null,null,1,null,null,null,null,3]
["Feminino","-57",27,"EFECTIVO",140103,1,"Mariana Domingues",2001,"C.Branco","Academia de Judo Castelo Branco",4,3,1,null,2,null,1]
["Feminino","-57",28,"EFECTIVO",142894,1,"Joana Videira",2003,"Coimbra","Associação Académica de Coimbra",3,1,null,null,null,null,null,null,null,null,null,null,null,null,null,null,null,null,null,null,null,null,3]
["Feminino","-57",29,"EFECTIVO",144343,1,"Lorena Marcolino",2002,"Algarve","Judo Clube de Portimão",3,1,null,null,null,null,null,null,null,null,null,null,null,null,null,null,null,null,null,null,3]
["Feminino","-57",30,"EFECTIVO",127943,1,"Leonor Costa",2001,"Lisboa","Sport Lisboa e Benfica",3,2,2,null,null,null,null,null,null,null,1]
["Feminino","-57",31,"EFECTIVO",138611,1,"Andreia Serrão",2001,"Setúbal","CCD-Clube Judo Montijo",2,1,2]
["Feminino","-57",32,"EFECTIVO",115142,1,"Beatriz Caires",2001,"Madeira","Judo Clube Madeira",2,1,2]
["Feminino","-57",33,"EFECTIVO",144122,1,"Mara Martins",2003,"Lisboa","Sport Lisboa e Benfica",2,1,null,null,null,null,null,null,null,null,null,null,null,2]
["Feminino","-57",34,"1º SUPLENTE",133310,1,"Helena Francisco",2002,"Coimbra","Judo Clube de Barcelos - JUBA",2,2,1,1]
["Feminino","-57",35,"1º SUPLENTE",151079,1,"Cristiana Vicente",2003,"Santarém","Sporting Clube de Tomar",2,2,null,null,null,null,null,null,null,null,null,null,null,1,null,null,null,null,null,null,null,null,1]
["Feminino","-57",36,"3º SUPLENTE",136079,1,"Madalena Lima",2002,"V. Castelo","Associação Desportiva e Cultural Taiki-Budo",1,1,1]
["Feminino","-57",37,"3º SUPLENTE",154157,1,"Jani Canelas",2002,"Beja","Judo Clube do Alvito",1,1,null,null,null,null,null,null,null,null,null,null,null,null,1]
["Feminino","-57",38,"3º SUPLENTE",138033,1,"Bianca Fontes",2001,"Coimbra","Casa do Povo de Miranda do Corvo",1,1,null,null,null,null,null,null,null,null,null,null,null,null,null,null,null,null,null,null,null,null,1]
["Feminino","-57",39,"3º SUPLENTE",151245,1,"Inês Martins",2002,"C.Branco","Sport Tortosendo e Benfica",1,1,null,null,null,null,null,null,null,null,null,null,null,null,null,null,null,null,null,1]
["Feminino","-57",40,"Efectiva 2º Z Açores",149614,1,"Francisca Rodrigues",2003,"Açores","Judo Clube de Ponta Delgada",1,1,null,null,null,null,null,null,null,null,null,null,null,null,null,null,null,null,null,null,null,null,null,1]
["Feminino","-57",41,"3º SUPLENTE",141065,1,"Jéssica Pereira",2003,"Santarém","Judo Clube Salvaterra de Magos",1,1,null,null,null,null,null,null,null,null,null,null,null,null,null,null,null,null,null,null,null,null,1]
["Feminino","-57",42,"3º SUPLENTE",153384,1,"Evania Dupret",2002,"V. Castelo","Judo Clube de Viana do Castelo",1,1,null,null,null,null,null,null,null,null,null,null,null,null,null,null,null,null,null,null,null,1]

{"sheet":"-63","index":17,"n_rows":38,"n_cols":34,"rows_kept":38,"cut":false,"hidden":false,"merged":[]}
[null,null,null,null,null,null,null,null,null,"CADETES",{"$f":"TODAY()","v":"2018-02-14"}]
[null,null,null,null,null,null,null,null,null,"-63KG ",null,null,"FPJ","Lisboa","Castelo Branco","Coimbra","Setúbal","Coimbra","V. Castelo","I.Terceira","Santarém","I.Terceira","Madeira","Lisboa","Setúbal","I.Terceira","Coimbra","LISBOA","MADEIRA","C.BRANCO","ALGARVE","GUARDA","SANTARÉM","AÇORES"]
[null,null,null,null,null,null,null,null,null,null,null,null,"2017-02-11","2017-04-01","2017-04-22","2017-04-29","2017-05-13","2017-06-17","2017-06-17","2017-06-25","2017-07-02","2017-10-21","2017-10-21","2017-11-11","2017-11-18","2017-11-18","2017-12-16","2018-01-21","2018-01-27","2018-01-27","2018-01-27","2018-01-27","2018-01-28","2018-02-03"]
["Género","Categoria",null,null,"LF",null,"NOME","Ano de Nascimento","Associação","CLUBE","Somatório de pontos","Número de provas","Camp.Nac. Cadetes","Open Cadetes","Open Cadetes \"Mestre António Morais\"","OPEN INT. CIDADE BARCELOS","Taça Cidade do Montijo","V Taça António Lopes Aleixo","III Open Int. Eurocidade Valença Tui","Torneio 41 Ano I.Terceira","V Open Int. Cadetes","Torneio Outono","Open Cadetes","Open Cadetes","Torneio Aniversário JC Pragal","Torneio AJIT","Open Cadetes","Zonal de Cadetes","Zonal de Cadetes","Zonal de Cadetes","Zonal de Cadetes","Zonal de Cadetes","Zonal de Cadetes","Zonal de Cadetes"]
[null,null,null,null,null,null,null,null,null,null,null,null,{"$f":"COUNT(M6:M550)","v":14},6,3,3,5,4,2,1,7,1,1,8,4,1,12,8,2,2,1,3,4,2]
["Feminino","-63",1,"1º CLASSIFICADA 2017",132613,{"$f":"COUNTIF(E:E,E6)","v":1},"Joana Crisóstomo",2001,"Lisboa","Universidade Lusofona de Humanidades de Tecnologias",{"$f":"SUM(M6:ZU6)","v":39},{"$f":"COUNT(M6:ZU6)","v":3},17,null,null,null,11,null,null,null,null,null,null,null,null,null,null,11]
["Feminino","-63",2,"2º CLASSIFICADA 2017",116713,1,"Alice Pereira",2002,"Lisboa","Escola de Judo Nuno Delgado",39,5,13,null,null,null,8,null,null,null,10,null,null,1,null,null,null,7]
["Feminino","-63",3,"LISBOA",127478,1,"Carolina Francês",2001,"Lisboa","Sport Lisboa e Benfica",29,5,null,1,null,null,null,null,null,null,null,null,null,10,7,null,6,5]
["Feminino","-63",4,"MADEIRA",129891,1,"Beatriz Rocha",2001,"Madeira","Judo Clube Madeira",7,2,null,null,null,null,null,null,null,null,null,null,1,null,null,null,null,null,6]
["Feminino","-63",5,"CENTRO SUL",140103,1,"Mariana Domingues",2001,"C.Branco","Academia de Judo Castelo Branco",7,2,null,null,null,null,null,null,null,null,null,null,null,null,null,null,1,null,null,6]
["Feminino","-63",6,"SUL",154156,1,"Fernanda Revez",2003,"Beja","Judo Clube do Alvito",{"$f":"SUM(M11:ZU11)","v":2},{"$f":"COUNT(M11:ZU11)","v":2},null,null,null,null,null,null,null,null,null,null,null,null,1,null,null,null,null,null,1]
["Feminino","-63",7,"NORTE",134930,1,"Renata Fernandes",2001,"Aveiro","Sport Clube Beira Mar",{"$f":"SUM(M12:ZU12)","v":32},{"$f":"COUNT(M12:ZU12)","v":7},2,null,7,null,null,1,null,null,2,null,null,4,null,null,10,null,null,null,null,6]
["Feminino","-63",8,"CENTRO",123198,1,"Ana Tavares",2002,"Coimbra","Associação Académica de Coimbra",{"$f":"SUM(M13:ZU13)","v":15},{"$f":"COUNT(M13:ZU13)","v":5},null,1,null,3,null,3,null,null,1,null,null,null,null,null,null,null,null,null,null,null,7]
["Feminino","-63",9,"AÇORES",122374,1,"Constança Bettencourt",2002,"Açores","Clube de Judo de Angra do Heroísmo",10,3,1,3,null,null,null,null,null,null,null,null,null,null,null,null,null,null,null,null,null,null,null,6]
["Feminino","-63",10,"EFECTIVO",120388,1,"Beatriz Lopes",2001,"Braga","Associação Desportiva e Cultural Manhente",{"$f":"SUM(M15:ZU15)","v":83},{"$f":"COUNT(M15:ZU15)","v":5},4,null,null,7,null,null,66,null,null,null,null,null,null,null,2,null,null,null,null,4]
["Feminino","-63",11,"EFECTIVO",133461,1,"Joana Bastos",2002,"Lisboa","Academia de Judo da Amadora",{"$f":"SUM(M16:ZU16)-N16-U16-Y16-AB16","v":25},9,7,2,5,null,null,5,null,null,2,null,null,4,3,null,4,2]
["Feminino","-63",12,"EFECTIVO",131923,1,"Marta Loureiro",2002,"Lisboa","Sport Lisboa e Benfica",19,3,3,null,null,null,null,null,null,null,null,null,null,null,null,null,12,4]
["Feminino","-63",13,"EFECTIVO",136670,1,"Carolina Gonçalves",2002,"Lisboa","Sporting Clube de Portugal",19,4,null,null,null,null,null,null,null,null,null,null,null,8,5,null,4,2]
["Feminino","-63",14,"EFECTIVO",113362,1,"Mariana Dias",2001,"Açores","Judo Clube Ramo Grande",17,2,6,11]
["Feminino","-63",15,"EFECTIVO",136589,1,"Maria Rodrigues",2002,"Setúbal","Vitória Futebol Clube",16,3,null,7,null,null,4,null,null,null,5]
["Feminino","-63",16,"EFECTIVO",133310,1,"Helena Francisco",2002,"Coimbra","Judo Clube de Barcelos - JUBA",13,4,null,null,null,5,null,null,2,null,null,null,null,null,null,null,1,null,null,null,null,null,5]
["Feminino","-63",17,"EFECTIVO",138611,1,"Andreia Serrão",2001,"Setúbal","CCD-Clube Judo Montijo",11,2,null,null,null,null,4,7]
["Feminino","-63",18,"EFECTIVO",108014,1,"Eduarda Mendes",2001,"Leiria","Clube de Judo do Dragão",10,1,10]
["Feminino","-63",19,"EFECTIVO",120978,1,"Patricia Martins",2002,"Coimbra","Montanha Clube",10,3,null,null,null,null,null,null,null,null,8,null,null,null,null,null,1,null,null,null,null,null,1]
["Feminino","-63",20,"EFECTIVO",144122,1,"Mara Martins",2003,"Lisboa","Sport Lisboa e Benfica",7,2,null,null,null,null,null,null,null,null,null,null,null,null,null,null,6,1]
["Feminino","-63",21,"EFECTIVO",120860,1,"Barbara Ribeiro",2003,"Santarém","Sporting Clube de Tomar",5,2,null,null,null,null,null,null,null,null,null,null,null,2,null,null,null,null,null,null,null,null,3]
["Feminino","-63",22,"EFECTIVO",146272,1,"Raquel Sequeira",2001,"Setúbal","Clube Recreativo Charnequense",4,2,2,null,null,null,2]
["Feminino","-63",23,"EFECTIVO",123613,1,"Carolina Sacavém",2003,"Lisboa","Grupo Recreativo Gonçalvinhense",4,2,null,null,null,null,null,null,null,null,null,null,null,3,null,null,null,1]
["Feminino","-63",24,"EFECTIVO",115453,1,"Margarida Freitas",2001,"Madeira","Grupo Desportivo APEL",4,3,2,null,null,null,null,null,null,null,null,null,null,1,null,null,null,null,1]
["Feminino","-63",25,"EFECTIVO",121324,1,"Érica Loureiro",2002,"I.Terceira","Clube de Judo da Praia da Vitória",3,3,1,null,null,null,null,null,null,null,null,1,null,null,null,1]
["Feminino","-63",26,"EFECTIVO",124224,1,"Laura Costa",2003,"Lisboa","Sport Lisboa e Benfica",2,1,null,null,null,null,null,null,null,null,null,null,null,null,null,null,2]
["Feminino","-63",27,"EFECTIVO",151238,1,"Beatriz Anacleto",2001,"Setúbal","Grupo amigos Costa da Caparica",2,2,null,null,1,null,null,null,null,null,1]
["Feminino","-63",28,"EFECTIVO",130776,1,"Beatriz Riscado",2003,"C.Branco","Escola de Judo Ana Hormigo",2,2,null,null,null,null,null,null,null,null,null,null,null,null,null,null,1,null,null,1]
["Feminino","-63",29,"EFECTIVO",122313,1,"Beatriz Romana",2001,"Santarém","Ateneu Artístico Cartxense",1,1,1]
["Feminino","-63",30,"EFECTIVO",139468,1,"Maria Ribeiro",2002,"Braga","ARCAP - Associação Recreativa e Cultural \"Amigos da Ponte\"",1,1,1]
["Feminino","-63",31,"EFECTIVO",136904,1,"Carolina Roxo",2002,"I.Terceira","Clube de Judo da Praia da Vitória",1,1,null,null,null,null,null,null,null,1]
["Feminino","-63",32,"EFECTIVO",150668,1,"Bruna Pedroso",2003,"Açores","Judo Clube de S.Jorge",1,1,null,null,null,null,null,null,null,null,null,null,null,null,null,null,null,null,null,null,null,null,null,1]
["Feminino","-63",33,"EFECTIVO",132487,1,"Carolina Brás",2003,"V.Castelo","Judo Clube de Valença - Juvalença",1,1,null,null,null,null,null,null,null,null,null,null,null,null,null,null,null,null,null,null,null,1]

{"sheet":"-70","index":18,"n_rows":33,"n_cols":34,"rows_kept":33,"cut":false,"hidden":false,"merged":[]}
[null,null,null,null,null,null,null,null,null,"CADETES",{"$f":"TODAY()","v":"2018-02-14"}]
[null,null,null,null,null,null,null,null,null,"-70KG ",null,null,"FPJ","Lisboa","Castelo Branco","Coimbra","Setúbal","Coimbra","V. Castelo","I.Terceira","Santarém","I.Terceira","Madeira","Lisboa","Setúbal","I.Terceira","Coimbra","LISBOA","MADEIRA","C.BRANCO","ALGARVE","GUARDA","SANTARÉM","AÇORES"]
[null,null,null,null,null,null,null,null,null,null,null,null,"2017-02-11","2017-04-01","2017-04-22","2017-04-29","2017-05-13","2017-06-17","2017-06-17","2017-06-25","2017-07-02","2017-10-21","2017-10-21","2017-11-11","2017-11-18","2017-11-18","2017-12-16","2018-01-21","2018-01-27","2018-01-27","2018-01-27","2018-01-27","2018-01-28","2018-02-03"]
["Género","Categoria",null,null,"LF",null,"NOME","Ano de Nascimento","Associação","CLUBE","Somatório de pontos","Número de provas","Camp.Nac. Cadetes","Open Cadetes","Open Cadetes \"Mestre António Morais\"","OPEN INT. CIDADE BARCELOS","Taça Cidade do Montijo","V Taça António Lopes Aleixo","III Open Int. Eurocidade Valença Tui","Torneio 41 Ano I.Terceira","V Open Int. Cadetes","Torneio Outono","Open Cadetes","Open Cadetes","Torneio Aniversário JC Pragal","Torneio AJIT","Open Cadetes","Zonal de Cadetes","Zonal de Cadetes","Zonal de Cadetes","Zonal de Cadetes","Zonal de Cadetes","Zonal de Cadetes","Zonal de Cadetes"]
[null,null,null,null,null,null,null,null,null,null,null,null,{"$f":"COUNT(M6:M563)","v":7},3,0,3,1,0,3,1,1,0,1,4,9,0,7,3,0,0,4,2,2,4]
["Feminino","-70",1,"1º CLASSIFICADA 2017",120609,{"$f":"COUNTIF(E:E,E6)","v":1},"Carolina Paiva",2002,"Lisboa","Universidade Lusofona de Humanidades de Tecnologias",{"$f":"SUM(M6:ZU6)","v":29},{"$f":"COUNT(M6:ZU6)","v":4},12,5,null,null,6,null,null,null,null,null,null,null,null,null,null,6]
["Feminino","-70",2,"LISBOA",154175,1,"Soraia Ferreira",2002,"Lisboa","Judo Clube de Sintra",{"$f":"SUM(M7:ZU7)","v":4},{"$f":"COUNT(M7:ZU7)","v":1},null,null,null,null,null,null,null,null,null,null,null,null,null,null,null,4]
["Feminino","-70",3,"SUL",138611,1,"Andreia Serrão",2001,"Setúbal","CCD-Clube Judo Montijo",20,2,null,null,null,null,null,null,null,null,null,null,null,null,12,null,null,null,null,null,8]
["Feminino","-70",4,"NORTE",131627,1,"Joana Morgado",2003,"V.Castelo","Judo Clube de Viana do Castelo (Juviana)",13,2,null,null,null,null,null,null,null,null,null,null,null,null,null,null,7,null,null,null,null,6]
["Feminino","-70",5,"CENTRO",145524,1,"Catarina Santos",2002,"Coimbra","Associação Académica de Coimbra",14,3,7,null,null,null,null,null,null,null,null,null,null,null,null,null,1,null,null,null,null,null,6]
["Feminino","-70",6,"AÇORES",122373,1,"Ana Ávila",2003,"Açores","Judo Clube de São Carlos",22,3,null,null,null,null,null,null,null,null,null,null,null,null,6,null,10,null,null,null,null,null,null,6]
["Feminino","-70",7,"EFECTIVO",124697,1,"Cláudia Gonçalves",2002,"Braga","Casa do Povo de Ronfe",17,4,4,null,null,4,null,null,6,null,null,null,null,null,null,null,3]
["Feminino","-70",8,"EFECTIVO",113362,1,"Mariana Dias",2001,"Açores","Judo Clube Ramo Grande",14,2,null,null,null,null,null,null,null,null,null,null,null,null,9,null,null,null,null,null,null,null,null,5]
["Feminino","-70",9,"EFECTIVO",145792,1,"Elisangela Fernandes",2003,"Lisboa","Sport Lisboa e Benfica",12,3,null,null,null,null,null,null,null,null,null,null,null,5,3,null,4]
["Feminino","-70",10,"EFECTIVO",132317,1,"Vera Ferreira",2001,"Lisboa","Judo Clube Portugal",11,3,1,3,null,null,null,null,null,null,null,null,null,7]
["Feminino","-70",11,"EFECTIVO",137385,1,"Filipa Maia",2003,"Setúbal","Grupo Desportivo Fabril do Barreiro",10,2,null,null,null,null,null,null,null,null,null,null,null,null,6,null,null,null,null,null,4]
["Feminino","-70",12,"EFECTIVO",120386,1,"Jaqueline Alves",2001,"Braga","Associação Desportiva e Cultural Manhente",7,2,null,null,null,null,null,null,4,null,null,null,null,null,null,null,3]
["Feminino","-70",13,"EFECTIVO",139982,1,"Beatriz Gonçalves",2002,"Santarém","Sociedade Filarmonica Gualdim Pais",6,1,6]
["Feminino","-70",14,"EFECTIVO",134930,1,"Renata Fernandes",2001,"Aveiro","Sport Clube Beira Mar",6,1,null,null,null,6]
["Feminino","-70",15,"EFECTIVO",132197,1,"Catarina Sousa",2003,"Lisboa","Escola de Judo Nuno Delgado",5,3,null,null,null,null,null,null,null,null,null,null,null,3,1,null,null,1]
["Feminino","-70",16,"EFECTIVO",151238,1,"Beatriz Anacleto",2001,"Setúbal","Grupo de Amigos da Costa de Caparica",4,2,null,null,null,null,null,null,null,null,null,null,null,null,3,null,null,null,null,null,1]
["Feminino","-70",17,"EFECTIVO",136354,1,"Maria Ulrich",2002,"Algarve","Unbreakable Force - Associação Desportiva e Cultural",4,3,null,null,null,null,null,null,null,null,1,null,null,1,2]
["Feminino","-70",18,"EFECTIVO",137698,1,"Cláudia Calado",2002,"Açores","JUDOLAG - Judo Clube Lagoa",3,1,null,null,null,null,null,null,null,null,null,null,null,null,null,null,null,null,null,null,null,null,null,3]
["Feminino","-70",19,"EFECTIVO",135031,1,"Aixa Marcolino",2003,"Algarve","Judo Clube de Portimão",2,1,null,null,null,null,null,null,null,null,null,null,null,null,null,null,null,null,null,null,2]
["Feminino","-70",20,"EFECTIVO",118301,1,"Tânia Moreno",2001,"I.Terceira","Clube de Judo Praia da Vitória",2,2,1,null,null,null,null,null,null,1]
["Feminino","-70",21,"EFECTIVO",144969,1,"Mariana Santos",2002,"Coimbra","Associação Académica de Coimbra",2,2,1,1]
["Feminino","-70",22,"EFECTIVO",139412,1,"Jéssica Gonçalves",2002,"V.Castelo","Judo Clube de Valença - Juvalença",2,2,null,null,null,1,null,null,1]
["Feminino","-70",23,"EFECTIVO",115453,1,"Margarida Freitas",2001,"Madeira","Grupo Desportivo APEL",1,1,null,null,null,null,null,null,null,null,null,null,1]
["Feminino","-70",24,"EFECTIVO",152711,1,"Joana Henriques",2003,"Beja","Associacao Bombeiros Voluntarios de Beja",1,1,null,null,null,null,null,null,null,null,null,null,null,null,1]
["Feminino","-70",25,"EFECTIVO",149418,1,"Ana Prestes",2002,"Coimbra","Escola de Judo de Coimbra",1,1,null,null,null,null,null,null,null,null,null,null,null,null,null,null,1]
["Feminino","-70",26,"EFECTIVO",151596,1,"Sara Andrade",2002,"Açores","JUDOLAG - Judo Clube Lagoa",1,1,null,null,null,null,null,null,null,null,null,null,null,null,null,null,null,null,null,null,null,null,null,1]
["Feminino","-70",27,"EFECTIVO",126416,1,"Violeta Carvalho",2003,"Coimbra","Judo Clube de Barcelos - JUBA",1,1,null,null,null,null,null,null,null,null,null,null,null,null,null,null,null,null,null,null,null,null,1]
["Feminino","-70",28,"EFECTIVO",151257,1,"Luisa Pinto",2003,"Aveiro","Sport Clube Beira Mar",1,1,null,null,null,null,null,null,null,null,null,null,null,null,null,null,null,null,null,null,null,1]

{"sheet":"+70","index":19,"n_rows":23,"n_cols":34,"rows_kept":23,"cut":false,"hidden":false,"merged":[]}
[null,null,null,null,null,null,null,null,null,"CADETES",{"$f":"TODAY()","v":"2018-02-14"}]
[null,null,null,null,null,null,null,null,null,"+70KG ",null,null,"FPJ","Lisboa","Castelo Branco","Coimbra","Setúbal","Coimbra","V. Castelo","I.Terceira","Santarém","I.Terceira","Madeira","Lisboa","Setúbal","I.Terceira","Coimbra","LISBOA","MADEIRA","C.BRANCO","ALGARVE","GUARDA","SANTARÉM","AÇORES"]
[null,null,null,null,null,null,null,null,null,null,null,null,"2017-02-11","2017-04-01","2017-04-22","2017-04-29","2017-05-13","2017-06-17","2017-06-17","2017-06-25","2017-07-02","2017-10-21","2017-10-21","2017-11-11","2017-11-18","2017-11-18","2017-12-16","2018-01-21","2018-01-27","2018-01-27","2018-01-27","2018-01-27","2018-01-28","2018-02-03"]
["Género","Categoria",null,null,"LF",null,"NOME","Ano de Nascimento","Associação","CLUBE","Somatório de Pontos","Número de provas","Camp.Nac. Cadetes","Open Cadetes","Open Cadetes \"Mestre António Morais\"","OPEN INT. CIDADE BARCELOS","Taça Cidade do Montijo","V Taça António Lopes Aleixo","III Open Int. Eurocidade Valença Tui","Torneio 41 Ano I.Terceira","V Open Int. Cadetes","Torneio Outono","Open Cadetes","Open Cadetes","Torneio Aniversário JC Pragal","Torneio AJIT","Open Cadetes","Zonal de Cadetes","Zonal de Cadetes","Zonal de Cadetes","Zonal de Cadetes","Zonal de Cadetes","Zonal de Cadetes","Zonal de Cadetes"]
[null,null,null,null,null,null,null,null,null,null,null,null,{"$f":"COUNT(M6:M565)","v":0},0,4,0,0,0,0,0,0,1,1,4,2,1,4,5,1,0,1,5,0,2]
["Feminino","+70",1,"LISBOA",142607,{"$f":"COUNTIF(E:E,E6)","v":1},"Alexandra Morais",2003,"Lisboa","Sporting Clube de Portugal",{"$f":"SUM(M6:ZU6)","v":21},{"$f":"COUNT(M6:ZU6)","v":3},null,null,null,null,null,null,null,null,null,null,null,null,6,null,7,8]
["Feminino","+70",2,"MADEIRA",134080,1,"Fátima Andrade",2001,"Madeira","Judo Clube Madeira",9,3,null,null,null,null,null,null,null,null,null,null,1,7,null,null,null,null,1]
["Feminino","+70",3,"SUL",152711,1,"Joana Henriques",2003,"Beja","Associação dos Bombeiros Voluntários de Beja",{"$f":"SUM(M8:ZU8)","v":1},{"$f":"COUNT(M8:ZU8)","v":1},null,null,null,null,null,null,null,null,null,null,null,null,null,null,null,null,null,null,1]
["Feminino","+70",4,"NORTE",124697,1,"Cláudia Gonçalves",2002,"Braga","Casa do Povo de Ronfe",8,1,null,null,null,null,null,null,null,null,null,null,null,null,null,null,null,null,null,null,null,8]
["Feminino","+70",5,"AÇORES",121517,1,"Ana Massa",2001,"Açores","Clube Escolar Desp. Da Escola Básica 2 e 3 de Arrifes",6,1,null,null,null,null,null,null,null,null,null,null,null,null,null,null,null,null,null,null,null,null,null,6]
["Feminino","+70",6,"EFECTIVO",143674,1,"Gabriela Barbosa",2001,"Aveiro","Associação 4Judo Project",12,3,null,null,5,null,null,null,null,null,null,null,null,null,1,null,null,null,null,null,null,6]
["Feminino","+70",7,"EFECTIVO",128994,1,"Carolina Teixeira",2002,"Porto","Associação Desportiva Judo Force",8,3,null,null,null,null,null,null,null,null,null,null,null,1,null,null,5,null,null,null,null,2]
["Feminino","+70",8,"EFECTIVO",129242,1,"Beatriz Moreira",2002,"Coimbra","Associação Academica de Coimbra",7,1,null,null,7]
["Feminino","+70",9,"EFECTIVO",106571,1,"Aida Simão",2001,"Santarém","Sporting Clube Tomar",5,1,null,null,null,null,null,null,null,null,null,null,null,5]
["Feminino","+70",10,"EFECTIVO",139505,1,"Isabela Silva",2002,"Lisboa","Clube de Judo da Lourinhã",5,1,null,null,null,null,null,null,null,null,null,null,null,null,null,null,null,5]
["Feminino","+70",11,"EFECTIVO",131812,1,"Isabel Carvalho",2002,"Lisboa","Oficinas de São José",5,2,null,null,null,null,null,null,null,null,null,null,null,3,null,null,null,2]
["Feminino","+70",12,"EFECTIVO",147564,1,"Beatriz Ferreira",2003,"Lisboa","Clube de Judo da Lourinhã",4,1,null,null,null,null,null,null,null,null,null,null,null,null,null,null,null,4]
["Feminino","+70",13,"EFECTIVO",120386,1,"Jaqueline Alves",2001,"Braga","Associação Desportiva e Cultural Manhente",4,1,null,null,null,null,null,null,null,null,null,null,null,null,null,null,null,null,null,null,null,4]
["Feminino","+70",14,"EFECTIVO",139412,1,"Jéssica Gonçalves",2002,"V.Castelo","Judo Clube de Valença - Juvalença",4,2,null,null,null,null,null,null,null,null,null,null,null,null,null,null,3,null,null,null,null,1]
["Feminino","+70",15,"EFECTIVO",131686,1,"Tryany Amarante",2002,"Lisboa","Sport Lisboa e Benfica",3,1,null,null,3]
["Feminino","+70",16,"EFECTIVO",154465,1,"Maria Leitão",2001,"Lisboa","Associação Instituto do Judo - IJPF",3,2,null,null,null,null,null,null,null,null,null,null,null,null,null,null,1,2]
["Feminino","+70",17,"EFECTIVO",118301,1,"Tânia Moreno",2001,"I.Terceira","Clube de Judo Praia da Vitória",3,3,null,null,null,null,null,null,null,null,null,1,null,null,null,1,null,null,null,null,null,null,null,1]
["Feminino","+70",18,"EFECTIVO",147497,1,"Maria Pereira",2002,"Lisboa","Sport Lisboa e Benfica",1,1,null,null,1]

{"sheet":"-78","index":20,"n_rows":13,"n_cols":34,"rows_kept":13,"cut":false,"hidden":false,"merged":[]}
[null,null,null,null,null,null,null,null,null,"CADETES",{"$f":"TODAY()","v":"2018-02-14"}]
[null,null,null,null,null,null,null,null,null,"+70KG ",null,null,"FPJ","Lisboa","Castelo Branco","Coimbra","Setúbal","Coimbra","V. Castelo","I.Terceira","Santarém","I.Terceira","Madeira","Lisboa","Setúbal","I.Terceira","Coimbra","LISBOA","MADEIRA","C.BRANCO","ALGARVE","GUARDA","SANTARÉM","AÇORES"]
[null,null,null,null,null,null,null,null,null,null,null,null,"2017-02-11","2017-04-01","2017-04-22","2017-04-29","2017-05-13","2017-06-17","2017-06-17","2017-06-25","2017-07-02","2017-10-21","2017-10-21","2017-11-11","2017-11-18","2017-11-18","2017-12-16","2018-01-21","2018-01-27","2018-01-27","2018-01-27","2018-01-27","2018-01-28","2018-02-03"]
["Género","Categoria",null,null,"LF",null,"NOME","Ano de Nascimento","Associação","CLUBE","Somatório de Pontos","Número de provas","Camp.Nac. Cadetes","Open Cadetes","Open Cadetes \"Mestre António Morais\"","OPEN INT. CIDADE BARCELOS","Taça Cidade do Montijo","V Taça António Lopes Aleixo","III Open Int. Eurocidade Valença Tui","Torneio 41 Ano I.Terceira","V Open Int. Cadetes","Torneio Outono","Open Cadetes","Open Cadetes","Torneio Aniversário JC Pragal","Torneio AJIT","Open Cadetes","Zonal de Cadetes","Zonal de Cadetes","Zonal de Cadetes","Zonal de Cadetes","Zonal de Cadetes","Zonal de Cadetes","Zonal de Cadetes"]
[null,null,null,null,null,null,null,null,null,null,null,null,{"$f":"COUNT(M6:M569)","v":7},2,0,4,0,0,0,0,0,0,0,0,0,0,0,0,0,0,0,0,2,0]
["Feminino","-78",1,"1º CLASSIFICADA 2017",134080,{"$f":"COUNTIF(E:E,E6)","v":1},"Fátima Andrade",2001,"Madeira","Judo Clube Madeira",{"$f":"SUM(M6:ZU6)","v":10},{"$f":"COUNT(M6:ZU6)","v":1},10]
["Feminino","-78",2,"2º CLASSIFICADA 2017",129242,1,"Beatriz Moreira",2002,"Coimbra","Associação Academica de Coimbra",{"$f":"SUM(M7:ZU7)","v":24},{"$f":"COUNT(M7:ZU7)","v":4},7,6,null,5,null,null,null,null,null,null,null,null,null,null,null,null,null,null,null,null,6]
["Feminino","-78",3,"CENTRO",145426,1,"Íris Paulo",2001,"Coimbra","Casa do Povo de Miranda do Corvo",{"$f":"SUM(M8:ZU8)","v":5},{"$f":"COUNT(M8:ZU8)","v":2},4,null,null,null,null,null,null,null,null,null,null,null,null,null,null,null,null,null,null,null,1]
["Feminino","-78",4,"EFECTIVO",143674,1,"Gabriela Barbosa",2001,"Aveiro","Associação 4Judo Project",10,2,3,null,null,7]
["Feminino","-78",5,"EFECTIVO",120386,1,"Jaqueline Alves",2001,"Braga","Associação Desportiva e Cultural Manhente",6,2,3,null,null,3]
["Feminino","-78",6,"EFECTIVO",131812,1,"Isabel Carvalho",2002,"Lisboa","Oficinas de São José",3,2,1,2]
["Feminino","-78",7,"EFECTIVO",139412,1,"Jéssica Gonçalves",2002,"V.Castelo","Judo Clube de Valença - Juvalença",1,1,1]
["Feminino","-78",8,"EFECTIVO",128994,1,"Carolina Teixeira",2002,"Porto","Associação Desportiva Judo Force",1,1,null,null,null,1]

{"sheet":"+78","index":21,"n_rows":9,"n_cols":34,"rows_kept":9,"cut":false,"hidden":false,"merged":[]}
[null,null,null,null,null,null,null,null,null,"CADETES",{"$f":"TODAY()","v":"2018-02-14"}]
[null,null,null,null,null,null,null,null,null,"+70KG ",null,null,"FPJ","Lisboa","Castelo Branco","Coimbra","Setúbal","Coimbra","V. Castelo","I.Terceira","Santarém","I.Terceira","Madeira","Lisboa","Setúbal","I.Terceira","Coimbra","LISBOA","MADEIRA","C.BRANCO","ALGARVE","GUARDA","SANTARÉM","AÇORES"]
[null,null,null,null,null,null,null,null,null,null,null,null,"2017-02-11","2017-04-01","2017-04-22","2017-04-29","2017-05-13","2017-06-17","2017-06-17","2017-06-25","2017-07-02","2017-10-21","2017-10-21","2017-11-11","2017-11-18","2017-11-18","2017-12-16","2018-01-21","2018-01-27","2018-01-27","2018-01-27","2018-01-27","2018-01-28","2018-02-03"]
["Género","Categoria",null,null,"LF",null,"NOME","Ano de Nascimento","Associação","CLUBE","Somatório de Pontos","Número de provas","Camp.Nac. Cadetes","Open Cadetes","Open Cadetes \"Mestre António Morais\"","OPEN INT. CIDADE BARCELOS","Taça Cidade do Montijo","V Taça António Lopes Aleixo","III Open Int. Eurocidade Valença Tui","Torneio 41 Ano I.Terceira","V Open Int. Cadetes","Torneio Outono","Open Cadetes","Open Cadetes","Torneio Aniversário JC Pragal","Torneio AJIT","Open Cadetes","Zonal de Cadetes","Zonal de Cadetes","Zonal de Cadetes","Zonal de Cadetes","Zonal de Cadetes","Zonal de Cadetes","Zonal de Cadetes"]
[null,null,null,null,null,null,null,null,null,null,null,null,{"$f":"COUNT(M6:M565)","v":3},3,0,0,0,0,0,0,0,0,0,0,0,0,0,0,0,0,0,0,1,0]
["Feminino","+78",1,"1º CLASSIFICADA 2017",106571,{"$f":"COUNTIF(E:E,E6)","v":1},"Aida Simão",2001,"Santarém","Sportiing Clube Tomar",{"$f":"SUM(M6:ZU6)","v":14},{"$f":"COUNT(M6:ZU6)","v":3},7,6,null,null,null,null,null,null,null,null,null,null,null,null,null,null,null,null,null,null,1]
["Feminino","+78",2,"2º CLASSIFICADA 2017",149475,{"$f":"COUNTIF(E:E,E7)","v":1},"Cátia Rosa",2001,"Algarve","Academia de Judo de Faro",{"$f":"SUM(M7:ZU7)","v":5},{"$f":"COUNT(M7:ZU7)","v":1},5]
["Feminino","+78",3,"EFECTIVO",147497,{"$f":"COUNTIF(E:E,E8)","v":1},"Maria Pereira",2002,"Lisboa","Sport Lisboa e Benfica",{"$f":"SUM(M8:ZU8)","v":7},{"$f":"COUNT(M8:ZU8)","v":2},3,4]
["Feminino","+78",4,"EFECTIVO",131686,{"$f":"COUNTIF(E:E,E9)","v":1},"Tryany Amarante",2002,"Lisboa","Sport Lisboa e Benfica",{"$f":"SUM(M9:ZU9)","v":1},{"$f":"COUNT(M9:ZU9)","v":1},null,1]

{"sheet":"Parameters","index":22,"n_rows":29,"n_cols":14,"rows_kept":29,"cut":false,"hidden":true,"merged":[[3,3,3,7]]}
[null,null,null,null,null,null,null,null,null,"Version : ",1.1000000000000001]
[null,null,null,null,null,null,null,null,null,"Date :","2016-01-15",null,null,"Shape #1"]
[null,null,null,null,null,null,null,null,null,null,null,null,null,"Title"]
[]
[]
[null,null,null,null,null,null,null,null,null,null,null,null,null,"Shape #2"]
[null,null,null,null,null,null,null,null,null,null,null,null,null,"IJF"]
[]
[]
["Title","LCD de Cadetes"]
["Data ","2016-01-15",null,null,null,null,null,null,null,null,null,null,null,"Shape #3"]
[null,null,null,null,null,null,null,null,null,null,null,null,null,"CatM"]
[]
[]
[]
[]
[]
[null,null,null,null,null,null,null,null,null,null,null,null,null,"Shape #4"]
[null,null,null,null,null,null,null,null,null,null,null,null,null,"CatW"]
[]
[]
[]
[null,null,null,null,null,null,null,null,null,null,null,null,null,"Shape #5"]
[null,null,null,null,null,null,null,null,null,null,null,null,null,"Date"]
[]
[]
["Versions","Date","Author","Updates"]
[]
[1.1000000000000001,"2016-01-15","IR","LCD Template Grafico"]